Workbook

Sheet Energy Data
A1: Source | B1: Monthly Agency Data
A3: Agency
A4: John Jay College
M5: FY 2008 | Y5: FY 2009 | AK5: FY 2010 | AW5: FY 2011 | BI5: FY 2012 | BU5: FY 2013 | CG5: FY 2014 | CS5: FY 2015 | DE5: FY 2016 | DQ5: FY 2017 | EC5: FY 2018 | EO5: FY 2019 | FA5: FY 2020 | FD5: FY 2021
B6: Jul-2007 | C6: Aug-2007 | D6: Sep-2007 | E6: Oct-2007 | F6: Nov-2007 | G6: Dec-2007 | H6: Jan-2008 | I6: Feb-2008 | J6: Mar-2008 | K6: Apr-2008 | L6: May-2008 | M6: Jun-2008 | N6: Jul-2008 | O6: Aug-2008 | P6: Sep-2008 | Q6: Oct-2008 | R6: Nov-2008 | S6: Dec-2008 | T6: Jan-2009 | U6: Feb-2009 | V6: Mar-2009 | W6: Apr-2009 | X6: May-2009 | Y6: Jun-2009 | Z6: Jul-2009 | AA6: Aug-2009 | AB6: Sep-2009 | AC6: Oct-2009 | AD6: Nov-2009 | AE6: Dec-2009 | AF6: Jan-2010 | AG6: Feb-2010 | AH6: Mar-2010 | AI6: Apr-2010 | AJ6: May-2010 | AK6: Jun-2010 | AL6: Jul-2010 | AM6: Aug-2010 | AN6: Sep-2010 | AO6: Oct-2010 | AP6: Nov-2010 | AQ6: Dec-2010 | AR6: Jan-2011 | AS6: Feb-2011 | AT6: Mar-2011 | AU6: Apr-2011 | AV6: May-2011 | AW6: Jun-2011 | AX6: Jul-2011 | AY6: Aug-2011 | AZ6: Sep-2011 | BA6: Oct-2011 | BB6: Nov-2011 | BC6: Dec-2011 | BD6: Jan-2012 | BE6: Feb-2012 | BF6: Mar-2012 | BG6: Apr-2012 | BH6: May-2012 | BI6: Jun-2012 | BJ6: Jul-2012 | BK6: Aug-2012 | BL6: Sep-2012 | BM6: Oct-2012 | BN6: Nov-2012 | BO6: Dec-2012 | BP6: Jan-2013 | BQ6: Feb-2013 | BR6: Mar-2013 | BS6: Apr-2013 | BT6: May-2013 | BU6: Jun-2013 | BV6: Jul-2013 | BW6: Aug-2013 | BX6: Sep-2013 | BY6: Oct-2013 | BZ6: Nov-2013 | CA6: Dec-2013 | CB6: Jan-2014 | CC6: Feb-2014 | CD6: Mar-2014 | CE6: Apr-2014 | CF6: May-2014 | CG6: Jun-2014 | CH6: Jul-2014 | CI6: Aug-2014 | CJ6: Sep-2014 | CK6: Oct-2014 | CL6: Nov-2014 | CM6: Dec-2014 | CN6: Jan-2015 | CO6: Feb-2015 | CP6: Mar-2015 | CQ6: Apr-2015 | CR6: May-2015 | CS6: Jun-2015 | CT6: Jul-2015 | CU6: Aug-2015 | CV6: Sep-2015 | CW6: Oct-2015 | CX6: Nov-2015 | CY6: Dec-2015 | CZ6: Jan-2016 | DA6: Feb-2016 | DB6: Mar-2016 | DC6: Apr-2016 | DD6: May-2016 | DE6: Jun-2016 | DF6: Jul-2016 | DG6: Aug-2016 | DH6: Sep-2016 | DI6: Oct-2016 | DJ6: Nov-2016 | DK6: Dec-2016 | DL6: Jan-2017 | DM6: Feb-2017 | DN6: Mar-2017 | DO6: Apr-2017 | DP6: May-2017 | DQ6: Jun-2017 | DR6: Jul-2017 | DS6: Aug-2017 | DT6: Sep-2017 | DU6: Oct-2017 | DV6: Nov-2017 | DW6: Dec-2017 | DX6: Jan-2018 | DY6: Feb-2018 | DZ6: Mar-2018 | EA6: Apr-2018 | EB6: May-2018 | EC6: Jun-2018 | ED6: Jul-2018 | EE6: Aug-2018 | EF6: Sep-2018 | EG6: Oct-2018 | EH6: Nov-2018 | EI6: Dec-2018 | EJ6: Jan-2019 | EK6: Feb-2019 | EL6: Mar-2019 | EM6: Apr-2019 | EN6: May-2019 | EO6: Jun-2019 | EP6: Jul-2019 | EQ6: Aug-2019 | ER6: Sep-2019 | ES6: Oct-2019 | ET6: Nov-2019 | EU6: Dec-2019 | EV6: Jan-2020 | EW6: Feb-2020 | EX6: Mar-2020 | EY6: Apr-2020 | EZ6: May-2020 | FA6: Jun-2020 | FB6: Jul-2020 | FC6: Aug-2020 | FD6: Sep-2020 | FE6: 2020-10-01 | FF6: 2020-11-01 | FG6: 2020-12-01 | FH6: 2021-01-01 | FI6: 2021-02-01 | FJ6: 2021-03-01
A7: Electricity Cost ($) | B7: 157723.98 | C7: 150307.91 | D7: 159928.13 | E7: 125056.21 | F7: 96174.57 | G7: 90330.01 | H7: 91005.3 | I7: 108253.71 | J7: 102948.75 | K7: 101759.47 | L7: 123133.27 | M7: 155886.1 | N7: 170112.36 | O7: 188214.94 | P7: 182050.59 | Q7: 116875.84 | R7: 109696.83 | S7: 108583.51 | T7: 124430.18 | U7: 121030.98 | V7: 153760.09 | W7: 134259.09 | X7: 140148.44 | Y7: 173993.39 | Z7: 181460.73 | AA7: 194285.08 | AB7: 176639.39 | AC7: 140914.47 | AD7: 109997.19 | AE7: 146899.62 | AF7: 117925.13 | AG7: 134810.26 | AH7: 138223.18 | AI7: 154385.68 | AJ7: 144602.06 | AK7: 199363.13 | AL7: 221003.96 | AM7: 190516.81 | AN7: 194609.84 | AO7: 170251.38 | AP7: 148151.33 | AQ7: 293156.43 | AR7: 272908.2 | AS7: 295860.14 | AT7: 252952.79 | AU7: 188580.74 | AV7: 166226.99 | AW7: 288845.42 | AX7: 396871.04 | AY7: 384011.9 | AZ7: 407121.2 | BA7: 251173.7 | BB7: 253581.71 | BC7: 209141.62 | BD7: 253552.99 | BE7: 249258.68 | BF7: 253507.57 | BG7: 376470.69 | BH7: 314556.15 | BI7: 517770.57 | BJ7: 536636.24 | BK7: 457236.81 | BL7: 492110.05 | BM7: 328125.22 | BN7: 267392.33 | BO7: 299491.49 | BP7: 289120.78 | BQ7: 288289.52 | BR7: 304450.34 | BS7: 273539.17 | BT7: 348983.03 | BU7: 439229.16 | BV7: 473604.21 | BW7: 428698.6 | BX7: 427299.22 | BY7: 313422.87 | BZ7: 269418.49 | CA7: 304966.35 | CB7: 236373.5 | CC7: 240614.02 | CD7: 392000.57 | CE7: 339203.86 | CF7: 380382.88 | CG7: 400667.3 | CH7: 466712.59 | CI7: 390822.51 | CJ7: 421131.72 | CK7: 310038.38 | CL7: 245219.34 | CM7: 302082.09 | CN7: 255276.19 | CO7: 240031.03 | CP7: 284147.82 | CQ7: 343808.86 | CR7: 265693.29 | CS7: 360236.31 | CT7: 408197.94 | CU7: 356190.63 | CV7: 387973.4 | CW7: 279018.91 | CX7: 209467.06 | CY7: 237167.26 | CZ7: 202208.39 | DA7: 210500.7 | DB7: 222694.36 | DC7: 200493.34 | DD7: 201199.45 | DE7: 333414.9 | DF7: 367489.92 | DG7: 377891.54 | DH7: 397463.75 | DI7: 247849.33 | DJ7: 214459.59 | DK7: 227563.03 | DL7: 228481.94 | DM7: 264528.7 | DN7: 240747.26 | DO7: 236450.08 | DP7: 254831.38 | DQ7: 373885.92 | DR7: 371554.48 | DS7: 370478.79 | DT7: 375633.04 | DU7: 279873.54 | DV7: 245095.15 | DW7: 241929.8 | DX7: 208239.97 | DY7: 253679.77 | DZ7: 287064.76 | EA7: 196298.32 | EB7: 216476.91 | EC7: 319525.12 | ED7: 313435.66 | EE7: 308871.78 | EF7: 340563.4 | EG7: 232314.37 | EH7: 207525.26 | EI7: 195034.48 | EJ7: 204866.62 | EK7: 187571.01 | EL7: 186379.18 | EM7: 157644.83 | EN7: 195666.98 | EO7: 255729.18 | EP7: 285611.68 | EQ7: 295503.94 | ER7: 295368.21 | ES7: 193060.65 | ET7: 160771.8 | EU7: 161293.82 | EV7: 151425.4 | EW7: 150952.19 | EX7: 156517.66 | EY7: 120994.49 | EZ7: 117362.92 | FA7: 176790.62 | FB7: 223952.3 | FC7: 203545.27 | FD7: 199861.24
A8: Electricity Demand (KW) | B8: 2784.8 | C8: 2903.2 | D8: 2862.4 | E8: 2867.2 | F8: 2395.2 | G8: 2172.8 | H8: 1915.2 | I8: 2132 | J8: 2180 | K8: 2212 | L8: 2547.2 | M8: 2650.4 | N8: 2655.2 | O8: 2740 | P8: 2752 | Q8: 2595.2 | R8: 2345.6 | S8: 2142.4 | T8: 1975.2 | U8: 2218.4 | V8: 2231.2 | W8: 2772.8 | X8: 2791.2 | Y8: 2591.2 | Z8: 2528.8 | AA8: 2709.6 | AB8: 2744.8 | AC8: 2492 | AD8: 2331.2 | AE8: 2136 | AF8: 1940.8 | AG8: 2044.96 | AH8: 2188.16 | AI8: 2542.08 | AJ8: 2628.8 | AK8: 2646.56 | AL8: 2695.36 | AM8: 2604.96 | AN8: 2713.92 | AO8: 2649.12 | AP8: 2643.52 | AQ8: 4379.84 | AR8: 4364.48 | AS8: 4462.4 | AT8: 4125.76 | AU8: 4087.04 | AV8: 3159.36 | AW8: 3742.56 | AX8: 4394.88 | AY8: 4188.32 | AZ8: 4668.64 | BA8: 4362 | BB8: 3774.14 | BC8: 3727.34 | BD8: 3596.8 | BE8: 3978.78 | BF8: 4334.56 | BG8: 5092.5 | BH8: 5090 | BI8: 5587.26 | BJ8: 5439.62 | BK8: 5408.22 | BL8: 5496.9 | BM8: 4953.34 | BN8: 4317.84 | BO8: 4318.56 | BP8: 3731.5 | BQ8: 4308.62 | BR8: 4124.61 | BS8: 4489.58 | BT8: 5060.24 | BU8: 5134.32 | BV8: 5117.7 | BW8: 4598.58 | BX8: 4690.69 | BY8: 4701.7 | BZ8: 4306.82 | CA8: 4269.92 | CB8: 3783.09 | CC8: 3884.22 | CD8: 3980.83 | CE8: 4089.1 | CF8: 4611.46 | CG8: 4963.65 | CH8: 5072.13 | CI8: 4658.4 | CJ8: 5314 | CK8: 4624.21 | CL8: 4326.8 | CM8: 4090.64 | CN8: 3539.86 | CO8: 3716.56 | CP8: 3850.64 | CQ8: 3918.64 | CR8: 4652.18 | CS8: 4924.4 | CT8: 4743.41 | CU8: 4689.52 | CV8: 5184.3 | CW8: 4684.46 | CX8: 3790.82 | CY8: 3633.89 | CZ8: 3075.34 | DA8: 3537.73 | DB8: 3957.6 | DC8: 3842.96 | DD8: 4112.85 | DE8: 4330.93 | DF8: 4854.24 | DG8: 5090.82 | DH8: 4867.14 | DI8: 4395.74 | DJ8: 4027.1 | DK8: 3678.64 | DL8: 3744.08 | DM8: 3901.76 | DN8: 3892.64 | DO8: 3779.28 | DP8: 4412.02 | DQ8: 4474.32 | DR8: 4369.28 | DS8: 4566.42 | DT8: 4396.86 | DU8: 4483.28 | DV8: 3907.04 | DW8: 3785.89 | DX8: 3670.66 | DY8: 3870.06 | DZ8: 3567.54 | EA8: 3713.36 | EB8: 3833.09 | EC8: 3972.45 | ED8: 3941.22 | EE8: 3841.84 | EF8: 3908.86 | EG8: 3689.82 | EH8: 3559.28 | EI8: 3009.52 | EJ8: 2961.84 | EK8: 3111.44 | EL8: 3029.36 | EM8: 3004.56 | EN8: 3049.52 | EO8: 3171.14 | EP8: 3665.36 | EQ8: 3625.98 | ER8: 3642.46 | ES8: 3641.17 | ET8: 3248.24 | EU8: 2973.34 | EV8: 2781.3 | EW8: 2768.08 | EX8: 2783.5 | EY8: 1867.02 | EZ8: 1828.06 | FA8: 2134 | FB8: 2268.8 | FC8: 2257.28 | FD8: 2260.78
A9: Electricity Usage (KWH) | B9: 1070560 | C9: 1089520 | D9: 1120800 | E9: 1081600 | F9: 1039360 | G9: 932800 | H9: 879760 | I9: 968880 | J9: 925840 | K9: 948160 | L9: 997200 | M9: 1002320 | N9: 1091200 | O9: 1112880 | P9: 1105280 | Q9: 964640 | R9: 1010800 | S9: 1027440 | T9: 1116720 | U9: 1108160 | V9: 1146480 | W9: 1029440 | X9: 1170720 | Y9: 1182000 | Z9: 1394400 | AA9: 1403440 | AB9: 1228720 | AC9: 1207760 | AD9: 1046800 | AE9: 1236960 | AF9: 1072480 | AG9: 1198960 | AH9: 1148560 | AI9: 1116800 | AJ9: 1144080 | AK9: 1338240 | AL9: 1483520 | AM9: 1176400 | AN9: 1255360 | AO9: 1307840 | AP9: 1153440 | AQ9: 2841680 | AR9: 2657600 | AS9: 2896000 | AT9: 2220560 | AU9: 1560000 | AV9: 1365600 | AW9: 1784080 | AX9: 1997200 | AY9: 2203040 | AZ9: 2357360 | BA9: 1947360 | BB9: 2133520 | BC9: 1845840 | BD9: 1908560 | BE9: 2192720 | BF9: 2104720 | BG9: 2232240 | BH9: 2509440 | BI9: 2987200 | BJ9: 2950320 | BK9: 2839360 | BL9: 2947680 | BM9: 2462800 | BN9: 2469440 | BO9: 2266160 | BP9: 2279040 | BQ9: 2216800 | BR9: 2197680 | BS9: 2166560 | BT9: 2605440 | BU9: 2486560 | BV9: 2702880 | BW9: 2618240 | BX9: 2490160 | BY9: 2422640 | BZ9: 2297200 | CA9: 2298160 | CB9: 2221920 | CC9: 2193680 | CD9: 2135440 | CE9: 2247600 | CF9: 2297840 | CG9: 2300560 | CH9: 2569840 | CI9: 2213440 | CJ9: 2375040 | CK9: 2301120 | CL9: 2050240 | CM9: 2313440 | CN9: 1880560 | CO9: 2021600 | CP9: 2112560 | CQ9: 1930080 | CR9: 2108160 | CS9: 2197920 | CT9: 2360560 | CU9: 2145920 | CV9: 2246320 | CW9: 2121680 | CX9: 1834160 | CY9: 1915200 | CZ9: 1665680 | DA9: 1908000 | DB9: 1728160 | DC9: 1824480 | DD9: 1820880 | DE9: 2128880 | DF9: 2038160 | DG9: 2031120 | DH9: 2206640 | DI9: 1848240 | DJ9: 1960720 | DK9: 1756000 | DL9: 1678960 | DM9: 1876160 | DN9: 1756320 | DO9: 1681040 | DP9: 1747600 | DQ9: 2047120 | DR9: 1993040 | DS9: 1897600 | DT9: 2054640 | DU9: 1990400 | DV9: 1983200 | DW9: 1775360 | DX9: 1831040 | DY9: 1924160 | DZ9: 1720480 | EA9: 1598560 | EB9: 1675680 | EC9: 1836800 | ED9: 1761680 | EE9: 1713280 | EF9: 1883520 | EG9: 1636720 | EH9: 1690400 | EI9: 1579440 | EJ9: 1624080 | EK9: 1601680 | EL9: 1511600 | EM9: 1473440 | EN9: 1625200 | EO9: 1548640 | EP9: 1290960 | EQ9: 1985600 | ER9: 1676240 | ES9: 1555920 | ET9: 1553360 | EU9: 1552080 | EV9: 1470000 | EW9: 1439600 | EX9: 1236320 | EY9: 1057200 | EZ9: 966880 | FA9: 1165280 | FB9: 1338320 | FC9: 1302640 | FD9: 1324480
A10: Gas (Therms) | B10: 301 | C10: 312 | D10: 530 | E10: 588 | F10: 660 | G10: 556 | H10: 306 | I10: 644 | J10: 600 | K10: 563 | L10: 604 | M10: 345 | N10: 320 | O10: 354 | P10: 480 | Q10: 526 | R10: 669 | S10: 599 | T10: 410 | U10: 622 | V10: 658 | W10: 503 | X10: 590 | Y10: 368 | Z10: 349 | AA10: 293 | AB10: 454 | AC10: 597 | AD10: 613 | AE10: 524 | AF10: 393 | AG10: 449 | AH10: 517 | AI10: 476 | AJ10: 492 | AK10: 302 | AL10: 272 | AM10: 250 | AN10: 419 | AO10: 538 | AP10: 466 | AQ10: 525 | AR10: 348 | AS10: 248 | AT10: 468 | AU10: 365 | AV10: 432 | AW10: 263 | AX10: 250 | AY10: 205 | AZ10: 375 | BA10: 336 | BB10: 397 | BC10: 287 | BD10: 173 | BE10: 274 | BF10: 418 | BG10: 323 | BH10: 291 | BI10: 337 | BJ10: 318 | BK10: 230 | BL10: 417 | BM10: 413 | BN10: 499 | BO10: 395 | BP10: 189 | BQ10: 445 | BR10: 457 | BS10: 382 | BT10: 428 | BU10: 260 | BV10: 302 | BW10: 199 | BX10: 308 | BY10: 374 | BZ10: 412 | CA10: 353 | CB10: 197 | CC10: 383 | CD10: 424 | CE10: 351 | CF10: 433 | CG10: 268 | CH10: 210 | CI10: 233 | CJ10: 308 | CK10: 485 | CL10: 460 | CM10: 420 | CN10: 221 | CO10: 387 | CP10: 471 | CQ10: 497 | CR10: 453 | CS10: 305 | CT10: 237 | CU10: 258 | CV10: 367 | CW10: 513 | CX10: 460 | CY10: 421 | CZ10: 255 | DA10: 428 | DB10: 445 | DC10: 476 | DD10: 515 | DE10: 390 | DF10: 234 | DG10: 300 | DH10: 463 | DI10: 496 | DJ10: 531 | DK10: 4863 | DL10: 288 | DM10: 8687 | DN10: 564 | DO10: 478 | DP10: 610 | DQ10: 425 | DR10: 324 | DS10: 330 | DT10: 517 | DU10: 9501 | DV10: 10675 | DW10: 692 | DX10: 385 | DY10: 519 | DZ10: 470 | EA10: 477 | EB10: 639 | EC10: 405 | ED10: 314 | EE10: 136 | EF10: 495 | EG10: 597 | EH10: 599 | EI10: 497 | EJ10: 302 | EK10: 547 | EL10: 602 | EM10: 537 | EN10: 625 | EO10: 367 | EP10: 270 | EQ10: 280 | ER10: 543 | ES10: 528 | ET10: 588 | EU10: 529 | EV10: 251 | EW10: 494 | EX10: 602 | EY10: 573 | EZ10: 585 | FA10: 312 | FB10: 345 | FC10: 261 | FD10: 544
A11: Gas Cost ($) | B11: 512.81 | C11: 503.87 | D11: 733.42 | E11: 877.11 | F11: 1077.27 | G11: 909.58 | H11: 514.91 | I11: 988.87 | J11: 922.17 | K11: 930.28 | L11: 1061.72 | M11: 621.28 | N11: 639.25 | O11: 646.48 | P11: 777.37 | Q11: 889.6 | R11: 1219.37 | S11: 1070.81 | T11: 692.32 | U11: 961.41 | V11: 1072.63 | W11: 672.72 | X11: 746.19 | Y11: 479.15 | Z11: 485.1 | AA11: 397.7 | AB11: 571.92 | AC11: 732.74 | AD11: 808.77 | AE11: 736.99 | AF11: 613.83 | AG11: 669.1 | AH11: 704.14 | AI11: 619.99 | AJ11: 657.08 | AK11: 431.29 | AL11: 421.21 | AM11: 389.27 | AN11: 598.9 | AO11: 755.08 | AP11: 605.4 | AQ11: 694 | AR11: 488.14 | AS11: 381.18 | AT11: 607.35 | AU11: 487.66 | AV11: 559.72 | AW11: 370.14 | AX11: 350.71 | AY11: 300.9 | AZ11: 476.83 | BA11: 428.57 | BB11: 503.3 | BC11: 375.51 | BD11: 255.56 | BE11: 382.11 | BF11: 549.33 | BG11: 400.24 | BH11: 346.8 | BI11: 393.36 | BJ11: 372.69 | BK11: 307.84 | BL11: 464.19 | BM11: 482.07 | BN11: 628.25 | BO11: 536.8 | BP11: 328.76 | BQ11: 616.96 | BR11: 647.66 | BS11: 562.28 | BT11: 639.13 | BU11: 405.62 | BV11: 465.39 | BW11: 325.94 | BX11: 428.72 | BY11: 510.69 | BZ11: 558.85 | CA11: 505.89 | CB11: 345.75 | CC11: 623.32 | CD11: 664.37 | CE11: 544.89 | CF11: 610.72 | CG11: 377.18 | CH11: 327.16 | CI11: 325.58 | CJ11: 414.8 | CK11: 578.43 | CL11: 520.46 | CM11: 551.73 | CN11: 316.12 | CO11: 446.83 | CP11: 532.19 | CQ11: 532.49 | CR11: 496.73 | CS11: 366.85 | CT11: 296.83 | CU11: 293.19 | CV11: 376.86 | CW11: 498.96 | CX11: 450.48 | CY11: 459.12 | CZ11: 314.85 | DA11: 467.8 | DB11: 458.45 | DC11: 469.34 | DD11: 512.73 | DE11: 428.99 | DF11: 314.72 | DG11: 354.85 | DH11: 490 | DI11: 519.18 | DJ11: 535.37 | DK11: 3547.27 | DL11: 325.19 | DM11: 9201.01 | DN11: 610.25 | DO11: 529.76 | DP11: 657.03 | DQ11: 529.48 | DR11: 404.95 | DS11: 404.63 | DT11: 559.01 | DU11: 10211.79 | DV11: 8846.92 | DW11: 710.89 | DX11: 448.31 | DY11: 675.64 | DZ11: 609.69 | EA11: 664.91 | EB11: 843.27 | EC11: 562.32 | ED11: 454.9 | EE11: 248.62 | EF11: 597.88 | EG11: 674.83 | EH11: 704.18 | EI11: 668.42 | EJ11: 465.17 | EK11: 678.17 | EL11: 654.14 | EM11: 580.14 | EN11: 647.51 | EO11: 408.11 | EP11: 321.77 | EQ11: 330.37 | ER11: 535.36 | ES11: 527.35 | ET11: 594.13 | EU11: 582.84 | EV11: 335.59 | EW11: 533.78 | EX11: 594.21 | EY11: 545.14 | EZ11: 564.97 | FA11: 338.85 | FB11: 368.29 | FC11: 297.23 | FD11: 511.24
A12: Steam (mlbs) | B12: 3462 | C12: 2764 | D12: 2980 | E12: 2821 | F12: 2587 | G12: 3535 | H12: 3957 | I12: 4208 | J12: 3667 | K12: 1932 | L12: 1642 | M12: 3219 | N12: 4227 | O12: 3393 | P12: 3156 | Q12: 1879 | R12: 2969 | S12: 4179 | T12: 5409 | U12: 3906 | V12: 3382 | W12: 2249 | X12: 2208 | Y12: 2365 | Z12: 3240 | AA12: 4301 | AB12: 2440 | AC12: 1496 | AD12: 2122 | AE12: 4617 | AF12: 4676 | AG12: 2657 | AH12: 2123 | AI12: 1759 | AJ12: 2361 | AK12: 4628 | AL12: 3420 | AM12: 2226 | AN12: 2298 | AO12: 1664 | AP12: 3036 | AQ12: 5312 | AR12: 5900 | AS12: 3953 | AT12: 3351 | AU12: 2212 | AV12: 2605 | AW12: 4811 | AX12: 5712 | AY12: 5472 | AZ12: 3615 | BA12: 2091 | BB12: 3622 | BC12: 5038 | BD12: 7814 | BE12: 5606 | BF12: 4104 | BG12: 3576 | BH12: 4063 | BI12: 5038 | BJ12: 7384 | BK12: 6437 | BL12: 4669 | BM12: 3689 | BN12: 6999 | BO12: 7824 | BP12: 10279 | BQ12: 10441 | BR12: 8766 | BS12: 5141 | BT12: 4165 | BU12: 4586 | BV12: 6276 | BW12: 3449 | BX12: 3608 | BY12: 3448 | BZ12: 5845 | CA12: 10181 | CB12: 12052 | CC12: 10072 | CD12: 9316 | CE12: 3649 | CF12: 2987 | CG12: 3906 | CH12: 5039 | CI12: 3451 | CJ12: 3788 | CK12: 2790 | CL12: 5399 | CM12: 8320 | CN12: 10763 | CO12: 11336 | CP12: 9021 | CQ12: 3832 | CR12: 2747 | CS12: 4358 | CT12: 4628 | CU12: 4513 | CV12: 3891 | CW12: 2703 | CX12: 3961 | CY12: 4841 | CZ12: 7089 | DA12: 7811 | DB12: 4777 | DC12: 3535 | DD12: 2407 | DE12: 1281 | DF12: 1211 | DG12: 1260 | DH12: 1028 | DI12: 2213 | DJ12: 4702 | DK12: 7633 | DL12: 7996 | DM12: 5209 | DN12: 6039 | DO12: 3457 | DP12: 2890 | DQ12: 1701 | DR12: 1296 | DS12: 1144 | DT12: 1308 | DU12: 1638 | DV12: 5179 | DW12: 7465 | DX12: 11070 | DY12: 6739 | DZ12: 7055 | EA12: 4027 | EB12: 1449 | EC12: 1204 | ED12: 1218 | EE12: 1006 | EF12: 1020 | EG12: 1835 | EH12: 4249 | EI12: 5474 | EJ12: 6533 | EK12: 5701 | EL12: 5046 | EM12: 2955 | EN12: 1462 | EO12: 771 | EP12: 843 | EQ12: 803 | ER12: 982 | ES12: 1614 | ET12: 3900 | EU12: 6217 | EV12: 5969 | EW12: 4832 | EX12: 3232 | EY12: 1342 | EZ12: 1355 | FA12: 899 | FB12: 709 | FC12: 697 | FD12: 856
A13: Steam Cost ($) | B13: 64447.81 | C13: 52792.01 | D13: 48716.74 | E13: 54582.47 | F13: 72904.39 | G13: 101806.68 | H13: 125066.23 | I13: 134979.52 | J13: 121826.63 | K13: 67975.68 | L13: 42594.52 | M13: 72611.95 | N13: 86723.63 | O13: 78958.35 | P13: 58819.91 | Q13: 46807.55 | R13: 100352.54 | S13: 147202.4 | T13: 196269.29 | U13: 142588.52 | V13: 118738.38 | W13: 83674.07 | X13: 55434.56 | Y13: 48563.37 | Z13: 58754.11 | AA13: 68479.66 | AB13: 42596.08 | AC13: 29684.77 | AD13: 75032.52 | AE13: 139507.38 | AF13: 163202.27 | AG13: 99794.37 | AH13: 78299.89 | AI13: 66017.48 | AJ13: 44803.6 | AK13: 70866.6 | AL13: 60451.26 | AM13: 45047.66 | AN13: 43713.94 | AO13: 37045.68 | AP13: 108940.28 | AQ13: 179706.34 | AR13: 225955.37 | AS13: 158327.83 | AT13: 132304.31 | AU13: 84939.57 | AV13: 71153.22 | AW13: 79728.46 | AX13: 90025.4 | AY13: 94295.74 | AZ13: 65858.08 | BA13: 60900.35 | BB13: 165147.99 | BC13: 234032.39 | BD13: 348813.49 | BE13: 243367.75 | BF13: 177693.7 | BG13: 145279.29 | BH13: 85777.68 | BI13: 82363.47 | BJ13: 115428.32 | BK13: 110446.22 | BL13: 78482.58 | BM13: 82817.81 | BN13: 277941.61 | BO13: 338595.15 | BP13: 375475.86 | BQ13: 411408.3 | BR13: 346963.69 | BS13: 228252.74 | BT13: 102418.25 | BU13: 108292.48 | BV13: 112081.46 | BW13: 72802.21 | BX13: 69544.53 | BY13: 70157.12 | BZ13: 189729.09 | CA13: 316772.07 | CB13: 377537.63 | CC13: 390065.35 | CD13: 310834.05 | CE13: 148186.02 | CF13: 61176.31 | CG13: 70451.96 | CH13: 82435.97 | CI13: 60469.69 | CJ13: 63691.53 | CK13: 54892.58 | CL13: 197212.54 | CM13: 284626.95 | CN13: 370440.75 | CO13: 404333.71 | CP13: 367716.25 | CQ13: 158008.41 | CR13: 56280.25 | CS13: 69695.35 | CT13: 71528.14 | CU13: 70607.15 | CV13: 63155.5 | CW13: 52439.28 | CX13: 137209.39 | CY13: 175605.93 | CZ13: 230002.86 | DA13: 273548.54 | DB13: 183005.26 | DC13: 132507.12 | DD13: 54245.77 | DE13: 34982.36 | DF13: 31960.68 | DG13: 36921.52 | DH13: 32491.69 | DI13: 49927.73 | DJ13: 173055.59 | DK13: 243026.4 | DL13: 297119.12 | DM13: 206013.02 | DN13: 237711.4 | DO13: 141733.37 | DP13: 63725.29 | DQ13: 41190.88 | DR13: 37520.02 | DS13: 32952.86 | DT13: 34954.88 | DU13: 38503.37 | DV13: 193507.19 | DW13: 257647.88 | DX13: 426901.12 | DY13: 286562.19 | DZ13: 271962.86 | EA13: 159656.15 | EB13: 37975.02 | EC13: 29931.43 | ED13: 31657.91 | EE13: 28237.76 | EF13: 29146.37 | EG13: 41782.43 | EH13: 161027.7 | EI13: 201148.29 | EJ13: 246626.91 | EK13: 245963.47 | EL13: 205754.79 | EM13: 94613.15 | EN13: 35728.15 | EO13: 23486.96 | EP13: 25765.72 | EQ13: 23119.63 | ER13: 26141.06 | ES13: 32998.99 | ET13: 138639.77 | EU13: 224902.39 | EV13: 228492.22 | EW13: 189664.79 | EX13: 135414.33 | EY13: 53679.35 | EZ13: 33857.65 | FA13: 26454.06 | FB13: 23600.3 | FC13: 22049.5 | FD13: 24919.94
A14: Total Cost ($) | B14: 222684.6 | C14: 203603.79 | D14: 209378.29 | E14: 180515.79 | F14: 170156.23 | G14: 193046.27 | H14: 216586.44 | I14: 244222.1 | J14: 225697.55 | K14: 170665.43 | L14: 166789.51 | M14: 229119.33 | N14: 257475.24 | O14: 267819.77 | P14: 241647.87 | Q14: 164572.99 | R14: 211268.74 | S14: 256856.72 | T14: 321391.79 | U14: 264580.91 | V14: 273571.1 | W14: 218605.88 | X14: 196329.19 | Y14: 223035.91 | Z14: 240699.94 | AA14: 263162.44 | AB14: 219807.39 | AC14: 171331.98 | AD14: 185838.48 | AE14: 287143.99 | AF14: 281741.23 | AG14: 235273.73 | AH14: 217227.21 | AI14: 221023.15 | AJ14: 190062.74 | AK14: 270661.02 | AL14: 281876.43 | AM14: 235953.74 | AN14: 238922.68 | AO14: 208052.14 | AP14: 257697.01 | AQ14: 473556.77 | AR14: 499351.71 | AS14: 454569.15 | AT14: 385864.45 | AU14: 274007.97 | AV14: 237939.93 | AW14: 368944.02 | AX14: 487247.15 | AY14: 478608.54 | AZ14: 473456.11 | BA14: 312502.62 | BB14: 419233 | BC14: 443549.52 | BD14: 602622.04 | BE14: 493008.54 | BF14: 431750.6 | BG14: 522150.22 | BH14: 400680.63 | BI14: 600527.4 | BJ14: 652437.25 | BK14: 567990.87 | BL14: 571056.82 | BM14: 411425.1 | BN14: 545962.19 | BO14: 638623.44 | BP14: 664925.4 | BQ14: 700314.78 | BR14: 652061.69 | BS14: 502354.19 | BT14: 452040.41 | BU14: 547927.26 | BV14: 586151.06 | BW14: 501826.75 | BX14: 497272.47 | BY14: 384090.68 | BZ14: 459706.43 | CA14: 622244.31 | CB14: 614256.88 | CC14: 631302.69 | CD14: 703498.99 | CE14: 487934.77 | CF14: 442169.91 | CG14: 471496.44 | CH14: 549475.72 | CI14: 451617.78 | CJ14: 485238.05 | CK14: 365509.39 | CL14: 442952.34 | CM14: 587260.77 | CN14: 626033.06 | CO14: 644811.57 | CP14: 652396.26 | CQ14: 502349.76 | CR14: 322470.27 | CS14: 430298.51 | CT14: 480022.91 | CU14: 427090.97 | CV14: 451505.76 | CW14: 331957.15 | CX14: 347126.93 | CY14: 413232.31 | CZ14: 432526.1 | DA14: 484517.04 | DB14: 406158.07 | DC14: 333469.8 | DD14: 255957.95 | DE14: 368826.25 | DF14: 399765.32 | DG14: 415167.91 | DH14: 430445.44 | DI14: 298296.24 | DJ14: 388050.55 | DK14: 474136.7 | DL14: 525926.25 | DM14: 479742.73 | DN14: 479068.91 | DO14: 378713.21 | DP14: 319213.7 | DQ14: 415606.28 | DR14: 409479.45 | DS14: 403836.28 | DT14: 411146.93 | DU14: 328588.7 | DV14: 447449.26 | DW14: 500288.57 | DX14: 635589.4 | DY14: 540917.6 | DZ14: 559637.31 | EA14: 356619.38 | EB14: 255295.2 | EC14: 350018.87 | ED14: 345548.47 | EE14: 337358.16 | EF14: 370307.65 | EG14: 274771.63 | EH14: 369257.14 | EI14: 396851.19 | EJ14: 451958.7 | EK14: 434212.65 | EL14: 392788.11 | EM14: 252838.12 | EN14: 232042.64 | EO14: 279624.25 | EP14: 311699.17 | EQ14: 318953.94 | ER14: 322044.63 | ES14: 226586.99 | ET14: 300005.7 | EU14: 386779.05 | EV14: 380253.21 | EW14: 341150.76 | EX14: 292526.2 | EY14: 175218.98 | EZ14: 151785.54 | FA14: 203583.53 | FB14: 247920.89 | FC14: 225892 | FD14: 225292.42
A15: Total Usage (mmBTUs) | B15: 7551.5984 | C15: 6837.6173 | D15: 7207.4868 | E15: 6901.8656 | F15: 6503.4803 | G15: 7188.4777 | H15: 7453.9021 | I15: 8072.2809 | J15: 7316.591 | K15: 5450.7618 | L15: 5298.2532 | M15: 7051.6206 | N15: 8478.5855 | O15: 7624.2512 | P15: 7346.1407 | Q15: 5444.0975 | R15: 6833.6678 | S15: 8235.2479 | T15: 9895.192 | U15: 8208.0552 | V15: 7757.039 | W15: 6076.3165 | X15: 6521.4008 | Y15: 6713.0967 | Z15: 8413.6504 | AA15: 9624.2319 | AB15: 6964.9406 | AC15: 5853.0862 | AD15: 6004.6844 | AE15: 9432.1645 | AF15: 8923.6079 | AG15: 7105.2977 | AH15: 6343.5084 | AI15: 5824.358 | AJ15: 6591.607 | AK15: 9767.9222 | AL15: 8911.2094 | AM15: 6526.8959 | AN15: 6893.7233 | AO15: 6376.4454 | AP15: 7375.0492 | AQ15: 15685.614 | AR15: 15696.5508 | AS15: 14325.0605 | AT15: 11369.2415 | AU15: 7831.9822 | AV15: 7614.2467 | AW15: 11490.118 | AX15: 13222.7758 | AY15: 13652.6845 | AZ15: 12121.7754 | BA15: 9015.9631 | BB15: 11367.8297 | BC15: 11956.9048 | BD15: 15260.8598 | BE15: 13774.0644 | BF15: 11810.1161 | BG15: 11645.9708 | BH15: 13132.9211 | BI15: 15857.3664 | BJ15: 18350.4993 | BK15: 16905.0233 | BL15: 15318.2453 | BM15: 12568.1134 | BN15: 16297.2415 | BO15: 16514.7204 | BP15: 19280.7567 | BQ15: 19274.9148 | BR15: 17339.5817 | BS15: 13176.0917 | BT15: 13588.2214 | BU15: 13636.0168 | BV15: 16266.5511 | BW15: 12809.1069 | BX15: 12560.5015 | BY15: 12157.907 | BZ15: 14411.4607 | CA15: 19252.9297 | CB15: 21067.3663 | CC15: 18777.5668 | CD15: 17738.3056 | CE15: 11782.7486 | CF15: 11222.8446 | CG15: 12242.3164 | CH15: 14421.3339 | CI15: 11433.1589 | CJ15: 12368.6894 | CK15: 11019.1548 | CL15: 13075.1239 | CM15: 17232.7083 | CN15: 18464.6596 | CO15: 19602.7733 | CP15: 17335.3481 | CQ15: 10918.0968 | CR15: 10309.3435 | CS15: 12400.6714 | CT15: 13250.6003 | CU15: 12391.6583 | CV15: 12050.3375 | CW15: 10312.3314 | CX15: 10731.1381 | CY15: 11986.946 | CZ15: 13630.1549 | DA15: 15281.097 | DB15: 11279.4789 | DC15: 10223.7815 | DD15: 8955.2157 | DE15: 8735.975 | DF15: 8332.5451 | DG15: 8369.8594 | DH15: 8726.0234 | DI15: 8829.9625 | DJ15: 11998.0177 | DK15: 15006.9629 | DL15: 14692.0618 | DM15: 13091.4247 | DN15: 12797.3702 | DO15: 9647.2808 | DP15: 9254.209 | DQ15: 8929.6437 | DR15: 8282.5108 | DS15: 7787.5627 | DT15: 8525.4578 | DU15: 9573.276 | DV15: 13622.0368 | DW15: 14468.2524 | DX15: 18655.0221 | DY15: 14147.7341 | DZ15: 13800.7031 | EA15: 10002.4691 | EB15: 7401.7897 | EC15: 7654.5831 | ED15: 7404.7391 | EE15: 6984.9077 | EF15: 7617.4774 | EG15: 7695.8507 | EH15: 10576.133 | EI15: 11555.772 | EJ15: 12871.722 | EK15: 11890.277 | EL15: 10856.5811 | EM15: 8383.8176 | EN15: 7242.6248 | EO15: 6183.5541 | EP15: 5374.8292 | EQ15: 7701.9483 | ER15: 6872.3779 | ES15: 7166.2835 | ET15: 9717.4197 | EU15: 12295.6571 | EV15: 11710.6574 | EW15: 10360.9686 | EX15: 7890.4859 | EY15: 5164.7792 | EZ15: 4872.2403 | FA15: 5012.6455 | FB15: 5394.2668 | FC15: 5250.6848 | FD15: 5531.1563
A17: Fuel Oil Data | B17: 2005-01-01 | C17: 2005-02-01 | D17: 2005-03-01 | E17: 2005-04-01 | F17: 2005-05-01 | G17: 2005-06-01 | H17: 2005-07-01 | I17: 2005-08-01 | J17: 2005-09-01 | K17: 2005-10-01 | L17: 2005-11-01 | M17: 2005-12-01 | N17: 2006-01-01 | O17: 2006-02-01 | P17: 2006-03-01 | Q17: 2006-04-01 | R17: 2006-05-01 | S17: 2006-06-01 | T17: 2006-07-01 | U17: 2006-08-01 | V17: 2006-09-01 | W17: 2006-10-01 | X17: 2006-11-01 | Y17: 2006-12-01 | Z17: 2007-01-01 | AA17: 2007-02-01 | AB17: 2007-03-01 | AC17: 2007-04-01 | AD17: 2007-05-01 | AE17: 2007-06-01 | AF17: Jul-2007 | AG17: Aug-2007 | AH17: Sep-2007 | AI17: Oct-2007 | AJ17: Nov-2007 | AK17: Dec-2007 | AL17: Jan-2008 | AM17: Feb-2008 | AN17: Mar-2008 | AO17: Apr-2008 | AP17: May-2008 | AQ17: Jun-2008 | AR17: Jul-2008 | AS17: Aug-2008 | AT17: Sep-2008 | AU17: Oct-2008 | AV17: Nov-2008 | AW17: Dec-2008 | AX17: Jan-2009 | AY17: Feb-2009 | AZ17: Mar-2009 | BA17: Apr-2009 | BB17: May-2009 | BC17: Jun-2009 | BD17: Jul-2009 | BE17: Aug-2009 | BF17: Sep-2009 | BG17: Oct-2009 | BH17: Nov-2009 | BI17: Dec-2009 | BJ17: Jan-2010 | BK17: Feb-2010 | BL17: Mar-2010 | BM17: Apr-2010 | BN17: May-2010 | BO17: Jun-2010 | BP17: Jul-2010 | BQ17: Aug-2010 | BR17: Sep-2010 | BS17: Oct-2010 | BT17: Nov-2010 | BU17: Dec-2010 | BV17: Jan-2011 | BW17: Feb-2011 | BX17: Mar-2011 | BY17: Apr-2011 | BZ17: May-2011 | CA17: Jun-2011 | CB17: Jul-2011 | CC17: Aug-2011 | CD17: Sep-2011 | CE17: Oct-2011 | CF17: Nov-2011 | CG17: Dec-2011 | CH17: Jan-2012 | CI17: Feb-2012 | CJ17: Mar-2012 | CK17: Apr-2012 | CL17: May-2012 | CM17: Jun-2012 | CN17: Jul-2012 | CO17: Aug-2012 | CP17: Sep-2012 | CQ17: Oct-2012 | CR17: Nov-2012 | CS17: Dec-2012 | CT17: Jan-2013 | CU17: Feb-2013 | CV17: Mar-2013 | CW17: Apr-2013 | CX17: May-2013 | CY17: Jun-2013 | CZ17: Jul-2013 | DA17: Aug-2013 | DB17: Sep-2013 | DC17: Oct-2013 | DD17: Nov-2013 | DE17: Dec-2013 | DF17: Jan-2014 | DG17: Feb-2014 | DH17: Mar-2014 | DI17: Apr-2014 | DJ17: May-2014 | DK17: Jun-2014 | DL17: Jul-2014 | DM17: Aug-2014 | DN17: Sep-2014 | DO17: Oct-2014 | DP17: Nov-2014 | DQ17: Dec-2014 | DR17: Jan-2015 | DS17: Feb-2015 | DT17: Mar-2015 | DU17: Apr-2015 | DV17: May-2015 | DW17: Jun-2015 | DX17: Jul-2015 | DY17: Aug-2015 | DZ17: Sep-2015 | EA17: Oct-2015 | EB17: Nov-2015 | EC17: Dec-2015 | ED17: Jan-2016 | EE17: Feb-2016 | EF17: Mar-2016 | EG17: Apr-2016 | EH17: May-2016 | EI17: Jun-2016 | EJ17: Jul-2016 | EK17: Aug-2016 | EL17: Sep-2016 | EM17: Oct-2016 | EN17: Nov-2016 | EO17: Dec-2016 | EP17: Jan-2017 | EQ17: Feb-2017 | ER17: Mar-2017 | ES17: Apr-2017 | ET17: May-2017 | EU17: Jun-2017 | EV17: Jul-2017 | EW17: Aug-2017 | EX17: Sep-2017 | EY17: Oct-2017 | EZ17: Nov-2017 | FA17: Dec-2017 | FB17: Jan-2018 | FC17: Feb-2018 | FD17: Mar-2018 | FE17: Apr-2018 | FF17: May-2018 | FG17: Jun-2018 | FH17: Jul-2018 | FI17: Aug-2018 | FJ17: Sep-2018 | FK17: Oct-2018 | FL17: Nov-2018 | FM17: Dec-2018 | FN17: Jan-2019 | FO17: Feb-2019 | FP17: Mar-2019 | FQ17: Apr-2019 | FR17: May-2019 | FS17: Jun-2019 | FT17: Jul-2019 | FU17: Aug-2019 | FV17: Sep-2019 | FW17: Oct-2019 | FX17: Nov-2019 | FY17: Dec-2019 | FZ17: Jan-2020 | GA17: Feb-2020 | GB17: Mar-2020 | GC17: Apr-2020 | GD17: May-2020 | GE17: Jun-2020 | GF17: Jul-2020 | GG17: Aug-2020 | GH17: 2020-09-01 | GI17: 2020-10-01 | GJ17: 2020-11-01 | GK17: 2020-12-01 | GL17: 2021-01-01 | GM17: 2021-02-01 | GN17: 2021-03-01 | GO17: 2021-04-01 | GP17: 2021-05-01 | GQ17: 2021-06-01
A18: Diesel Fuel (Gal) | B18: 102.5 | C18: 102.5 | D18: 102.5 | E18: 102.5 | F18: 102.5 | G18: 102.5 | H18: 102.5 | I18: 102.5 | J18: 102.5 | K18: 102.5 | L18: 102.5 | M18: 102.5 | N18: 102.5 | O18: 102.5 | P18: 102.5 | Q18: 102.5 | R18: 102.5 | S18: 102.5 | T18: 102.5 | U18: 102.5 | V18: 102.5 | W18: 102.5 | X18: 102.5 | Y18: 102.5 | Z18: 102.5 | AA18: 102.5 | AB18: 102.5 | AC18: 102.5 | AD18: 102.5 | AE18: 102.5 | AF18: 102.5 | AG18: 102.5 | AH18: 102.5 | AI18: 102.5 | AJ18: 102.5 | AK18: 102.5 | AL18: 102.5 | AM18: 102.5 | AN18: 102.5 | AO18: 102.5 | AP18: 102.5 | AQ18: 102.5 | AR18: 102.5 | AS18: 102.5 | AT18: 102.5 | AU18: 102.5 | AV18: 102.5 | AW18: 102.5 | AX18: 102.5 | AY18: 102.5 | AZ18: 102.5 | BA18: 102.5 | BB18: 102.5 | BC18: 102.5 | BD18: 102.5 | BE18: 102.5 | BF18: 102.5 | BG18: 102.5 | BH18: 102.5 | BI18: 102.5 | BJ18: 102.5 | BK18: 102.5 | BL18: 102.5 | BM18: 102.5 | BN18: 102.5 | BO18: 102.5 | BP18: 102.5 | BQ18: 102.5 | BR18: 102.5 | BS18: 102.5 | BT18: 102.5 | BU18: 102.5 | BV18: 102.5 | BW18: 102.5 | BX18: 102.5 | BY18: 102.5 | BZ18: 102.5 | CA18: 102.5 | CB18: 102.5 | CC18: 102.5 | CD18: 102.5 | CE18: 102.5 | CF18: 102.5 | CG18: 102.5 | CH18: 534 | CT18: 22.33333333 | CU18: 22.33333333 | CV18: 22.33333333 | CW18: 22.33333333 | CX18: 22.33333333 | CY18: 22.33333333 | CZ18: 22.33333333 | DA18: 22.33333333 | DB18: 22.33333333 | DC18: 22.33333333 | DD18: 22.33333333 | DE18: 22.33333333 | DF18: 9.166666667 | DG18: 9.166666667 | DH18: 9.166666667 | DI18: 9.166666667 | DJ18: 9.166666667 | DK18: 9.166666667 | DL18: 9.166666667 | DM18: 9.166666667 | DN18: 9.166666667 | DO18: 9.166666667 | DP18: 9.166666667 | DQ18: 9.166666667 | DR18: 9.166666667 | DS18: 9.166666667 | DT18: 9.166666667 | DU18: 9.166666667 | DV18: 9.166666667 | DW18: 9.166666667 | DX18: 9.166666667 | DY18: 9.166666667 | DZ18: 9.166666667 | EA18: 9.166666667 | EB18: 9.166666667 | EC18: 9.166666667 | ED18: 9.166666667 | EE18: 9.166666667 | EF18: 9.166666667 | EG18: 9.166666667 | EH18: 9.166666667 | EI18: 9.166666667 | EJ18: 9.166666667 | EK18: 9.166666667 | EL18: 9.166666667 | EM18: 9.166666667 | EN18: 9.166666667 | EO18: 9.166666667 | EP18: 9.166666667 | EQ18: 9.166666667 | ER18: 9.166666667 | ES18: 9.166666667 | ET18: 9.166666667 | EU18: 9.166666667 | EV18: 9.166666667 | EW18: 9.166666667 | EX18: 9.166666667 | EY18: 9.166666667 | EZ18: 9.166666667 | FA18: 9.166666667 | FB18: 9.166666667 | FC18: 9.166666667 | FD18: 9.166666667 | FE18: 9.166666667 | FF18: 9.166666667 | FG18: 9.166666667 | FH18: 9.166666667 | FI18: 9.166666667 | FJ18: 9.166666667 | FK18: 9.166666667 | FL18: 9.166666667 | FM18: 9.166666667 | FY18: 200
A19: Fuel Oil - #2 (Gal)
A20: Fuel Oil - #4 (Gal)
A21: Fuel Oil - #6 (Gal)
A22: Total Diesel + Oil mmBtus | B22: =(B18*'Reference Data'!$E$7)+(B19*'Reference Data'!$E$8)+(B20*'Reference Data'!$E$9)+(B21*'Reference Data'!$E$10) -> 14.195225 | C22: =(C18*'Reference Data'!$E$7)+(C19*'Reference Data'!$E$8)+(C20*'Reference Data'!$E$9)+(C21*'Reference Data'!$E$10) -> 14.195225 | D22: =(D18*'Reference Data'!$E$7)+(D19*'Reference Data'!$E$8)+(D20*'Reference Data'!$E$9)+(D21*'Reference Data'!$E$10) -> 14.195225 | E22: =(E18*'Reference Data'!$E$7)+(E19*'Reference Data'!$E$8)+(E20*'Reference Data'!$E$9)+(E21*'Reference Data'!$E$10) -> 14.195225 | F22: =(F18*'Reference Data'!$E$7)+(F19*'Reference Data'!$E$8)+(F20*'Reference Data'!$E$9)+(F21*'Reference Data'!$E$10) -> 14.195225 | G22: =(G18*'Reference Data'!$E$7)+(G19*'Reference Data'!$E$8)+(G20*'Reference Data'!$E$9)+(G21*'Reference Data'!$E$10) -> 14.195225 | H22: =(H18*'Reference Data'!$E$7)+(H19*'Reference Data'!$E$8)+(H20*'Reference Data'!$E$9)+(H21*'Reference Data'!$E$10) -> 14.195225 | I22: =(I18*'Reference Data'!$E$7)+(I19*'Reference Data'!$E$8)+(I20*'Reference Data'!$E$9)+(I21*'Reference Data'!$E$10) -> 14.195225 | J22: =(J18*'Reference Data'!$E$7)+(J19*'Reference Data'!$E$8)+(J20*'Reference Data'!$E$9)+(J21*'Reference Data'!$E$10) -> 14.195225 | K22: =(K18*'Reference Data'!$E$7)+(K19*'Reference Data'!$E$8)+(K20*'Reference Data'!$E$9)+(K21*'Reference Data'!$E$10) -> 14.195225 | L22: =(L18*'Reference Data'!$E$7)+(L19*'Reference Data'!$E$8)+(L20*'Reference Data'!$E$9)+(L21*'Reference Data'!$E$10) -> 14.195225 | M22: =(M18*'Reference Data'!$E$7)+(M19*'Reference Data'!$E$8)+(M20*'Reference Data'!$E$9)+(M21*'Reference Data'!$E$10) -> 14.195225 | N22: =(N18*'Reference Data'!$E$7)+(N19*'Reference Data'!$E$8)+(N20*'Reference Data'!$E$9)+(N21*'Reference Data'!$E$10) -> 14.195225 | O22: =(O18*'Reference Data'!$E$7)+(O19*'Reference Data'!$E$8)+(O20*'Reference Data'!$E$9)+(O21*'Reference Data'!$E$10) -> 14.195225 | P22: =(P18*'Reference Data'!$E$7)+(P19*'Reference Data'!$E$8)+(P20*'Reference Data'!$E$9)+(P21*'Reference Data'!$E$10) -> 14.195225 | Q22: =(Q18*'Reference Data'!$E$7)+(Q19*'Reference Data'!$E$8)+(Q20*'Reference Data'!$E$9)+(Q21*'Reference Data'!$E$10) -> 14.195225 | R22: =(R18*'Reference Data'!$E$7)+(R19*'Reference Data'!$E$8)+(R20*'Reference Data'!$E$9)+(R21*'Reference Data'!$E$10) -> 14.195225 | S22: =(S18*'Reference Data'!$E$7)+(S19*'Reference Data'!$E$8)+(S20*'Reference Data'!$E$9)+(S21*'Reference Data'!$E$10) -> 14.195225 | T22: =(T18*'Reference Data'!$E$7)+(T19*'Reference Data'!$E$8)+(T20*'Reference Data'!$E$9)+(T21*'Reference Data'!$E$10) -> 14.195225 | U22: =(U18*'Reference Data'!$E$7)+(U19*'Reference Data'!$E$8)+(U20*'Reference Data'!$E$9)+(U21*'Reference Data'!$E$10) -> 14.195225 | V22: =(V18*'Reference Data'!$E$7)+(V19*'Reference Data'!$E$8)+(V20*'Reference Data'!$E$9)+(V21*'Reference Data'!$E$10) -> 14.195225 | W22: =(W18*'Reference Data'!$E$7)+(W19*'Reference Data'!$E$8)+(W20*'Reference Data'!$E$9)+(W21*'Reference Data'!$E$10) -> 14.195225 | X22: =(X18*'Reference Data'!$E$7)+(X19*'Reference Data'!$E$8)+(X20*'Reference Data'!$E$9)+(X21*'Reference Data'!$E$10) -> 14.195225 | Y22: =(Y18*'Reference Data'!$E$7)+(Y19*'Reference Data'!$E$8)+(Y20*'Reference Data'!$E$9)+(Y21*'Reference Data'!$E$10) -> 14.195225 | Z22: =(Z18*'Reference Data'!$E$7)+(Z19*'Reference Data'!$E$8)+(Z20*'Reference Data'!$E$9)+(Z21*'Reference Data'!$E$10) -> 14.195225 | AA22: =(AA18*'Reference Data'!$E$7)+(AA19*'Reference Data'!$E$8)+(AA20*'Reference Data'!$E$9)+(AA21*'Reference Data'!$E$10) -> 14.195225 | AB22: =(AB18*'Reference Data'!$E$7)+(AB19*'Reference Data'!$E$8)+(AB20*'Reference Data'!$E$9)+(AB21*'Reference Data'!$E$10) -> 14.195225 | AC22: =(AC18*'Reference Data'!$E$7)+(AC19*'Reference Data'!$E$8)+(AC20*'Reference Data'!$E$9)+(AC21*'Reference Data'!$E$10) -> 14.195225 | AD22: =(AD18*'Reference Data'!$E$7)+(AD19*'Reference Data'!$E$8)+(AD20*'Reference Data'!$E$9)+(AD21*'Reference Data'!$E$10) -> 14.195225 | AE22: =(AE18*'Reference Data'!$E$7)+(AE19*'Reference Data'!$E$8)+(AE20*'Reference Data'!$E$9)+(AE21*'Reference Data'!$E$10) -> 14.195225 | AF22: =(AF18*'Reference Data'!$E$7)+(AF19*'Reference Data'!$E$8)+(AF20*'Reference Data'!$E$9)+(AF21*'Reference Data'!$E$10) -> 14.195225 | AG22: =(AG18*'Reference Data'!$E$7)+(AG19*'Reference Data'!$E$8)+(AG20*'Reference Data'!$E$9)+(AG21*'Reference Data'!$E$10) -> 14.195225 | AH22: =(AH18*'Reference Data'!$E$7)+(AH19*'Reference Data'!$E$8)+(AH20*'Reference Data'!$E$9)+(AH21*'Reference Data'!$E$10) -> 14.195225 | AI22: =(AI18*'Reference Data'!$E$7)+(AI19*'Reference Data'!$E$8)+(AI20*'Reference Data'!$E$9)+(AI21*'Reference Data'!$E$10) -> 14.195225 | AJ22: =(AJ18*'Reference Data'!$E$7)+(AJ19*'Reference Data'!$E$8)+(AJ20*'Reference Data'!$E$9)+(AJ21*'Reference Data'!$E$10) -> 14.195225 | AK22: =(AK18*'Reference Data'!$E$7)+(AK19*'Reference Data'!$E$8)+(AK20*'Reference Data'!$E$9)+(AK21*'Reference Data'!$E$10) -> 14.195225 | AL22: =(AL18*'Reference Data'!$E$7)+(AL19*'Reference Data'!$E$8)+(AL20*'Reference Data'!$E$9)+(AL21*'Reference Data'!$E$10) -> 14.195225 | AM22: =(AM18*'Reference Data'!$E$7)+(AM19*'Reference Data'!$E$8)+(AM20*'Reference Data'!$E$9)+(AM21*'Reference Data'!$E$10) -> 14.195225 | AN22: =(AN18*'Reference Data'!$E$7)+(AN19*'Reference Data'!$E$8)+(AN20*'Reference Data'!$E$9)+(AN21*'Reference Data'!$E$10) -> 14.195225 | AO22: =(AO18*'Reference Data'!$E$7)+(AO19*'Reference Data'!$E$8)+(AO20*'Reference Data'!$E$9)+(AO21*'Reference Data'!$E$10) -> 14.195225 | AP22: =(AP18*'Reference Data'!$E$7)+(AP19*'Reference Data'!$E$8)+(AP20*'Reference Data'!$E$9)+(AP21*'Reference Data'!$E$10) -> 14.195225 | AQ22: =(AQ18*'Reference Data'!$E$7)+(AQ19*'Reference Data'!$E$8)+(AQ20*'Reference Data'!$E$9)+(AQ21*'Reference Data'!$E$10) -> 14.195225 | AR22: =(AR18*'Reference Data'!$E$7)+(AR19*'Reference Data'!$E$8)+(AR20*'Reference Data'!$E$9)+(AR21*'Reference Data'!$E$10) -> 14.195225 | AS22: =(AS18*'Reference Data'!$E$7)+(AS19*'Reference Data'!$E$8)+(AS20*'Reference Data'!$E$9)+(AS21*'Reference Data'!$E$10) -> 14.195225 | AT22: =(AT18*'Reference Data'!$E$7)+(AT19*'Reference Data'!$E$8)+(AT20*'Reference Data'!$E$9)+(AT21*'Reference Data'!$E$10) -> 14.195225 | AU22: =(AU18*'Reference Data'!$E$7)+(AU19*'Reference Data'!$E$8)+(AU20*'Reference Data'!$E$9)+(AU21*'Reference Data'!$E$10) -> 14.195225 | AV22: =(AV18*'Reference Data'!$E$7)+(AV19*'Reference Data'!$E$8)+(AV20*'Reference Data'!$E$9)+(AV21*'Reference Data'!$E$10) -> 14.195225 | AW22: =(AW18*'Reference Data'!$E$7)+(AW19*'Reference Data'!$E$8)+(AW20*'Reference Data'!$E$9)+(AW21*'Reference Data'!$E$10) -> 14.195225 | AX22: =(AX18*'Reference Data'!$E$7)+(AX19*'Reference Data'!$E$8)+(AX20*'Reference Data'!$E$9)+(AX21*'Reference Data'!$E$10) -> 14.195225 | AY22: =(AY18*'Reference Data'!$E$7)+(AY19*'Reference Data'!$E$8)+(AY20*'Reference Data'!$E$9)+(AY21*'Reference Data'!$E$10) -> 14.195225 | AZ22: =(AZ18*'Reference Data'!$E$7)+(AZ19*'Reference Data'!$E$8)+(AZ20*'Reference Data'!$E$9)+(AZ21*'Reference Data'!$E$10) -> 14.195225 | BA22: =(BA18*'Reference Data'!$E$7)+(BA19*'Reference Data'!$E$8)+(BA20*'Reference Data'!$E$9)+(BA21*'Reference Data'!$E$10) -> 14.195225 | BB22: =(BB18*'Reference Data'!$E$7)+(BB19*'Reference Data'!$E$8)+(BB20*'Reference Data'!$E$9)+(BB21*'Reference Data'!$E$10) -> 14.195225 | BC22: =(BC18*'Reference Data'!$E$7)+(BC19*'Reference Data'!$E$8)+(BC20*'Reference Data'!$E$9)+(BC21*'Reference Data'!$E$10) -> 14.195225 | BD22: =(BD18*'Reference Data'!$E$7)+(BD19*'Reference Data'!$E$8)+(BD20*'Reference Data'!$E$9)+(BD21*'Reference Data'!$E$10) -> 14.195225 | BE22: =(BE18*'Reference Data'!$E$7)+(BE19*'Reference Data'!$E$8)+(BE20*'Reference Data'!$E$9)+(BE21*'Reference Data'!$E$10) -> 14.195225 | BF22: =(BF18*'Reference Data'!$E$7)+(BF19*'Reference Data'!$E$8)+(BF20*'Reference Data'!$E$9)+(BF21*'Reference Data'!$E$10) -> 14.195225 | BG22: =(BG18*'Reference Data'!$E$7)+(BG19*'Reference Data'!$E$8)+(BG20*'Reference Data'!$E$9)+(BG21*'Reference Data'!$E$10) -> 14.195225 | BH22: =(BH18*'Reference Data'!$E$7)+(BH19*'Reference Data'!$E$8)+(BH20*'Reference Data'!$E$9)+(BH21*'Reference Data'!$E$10) -> 14.195225 | BI22: =(BI18*'Reference Data'!$E$7)+(BI19*'Reference Data'!$E$8)+(BI20*'Reference Data'!$E$9)+(BI21*'Reference Data'!$E$10) -> 14.195225 | BJ22: =(BJ18*'Reference Data'!$E$7)+(BJ19*'Reference Data'!$E$8)+(BJ20*'Reference Data'!$E$9)+(BJ21*'Reference Data'!$E$10) -> 14.195225 | BK22: =(BK18*'Reference Data'!$E$7)+(BK19*'Reference Data'!$E$8)+(BK20*'Reference Data'!$E$9)+(BK21*'Reference Data'!$E$10) -> 14.195225 | BL22: =(BL18*'Reference Data'!$E$7)+(BL19*'Reference Data'!$E$8)+(BL20*'Reference Data'!$E$9)+(BL21*'Reference Data'!$E$10) -> 14.195225 | BM22: =(BM18*'Reference Data'!$E$7)+(BM19*'Reference Data'!$E$8)+(BM20*'Reference Data'!$E$9)+(BM21*'Reference Data'!$E$10) -> 14.195225 | BN22: =(BN18*'Reference Data'!$E$7)+(BN19*'Reference Data'!$E$8)+(BN20*'Reference Data'!$E$9)+(BN21*'Reference Data'!$E$10) -> 14.195225 | BO22: =(BO18*'Reference Data'!$E$7)+(BO19*'Reference Data'!$E$8)+(BO20*'Reference Data'!$E$9)+(BO21*'Reference Data'!$E$10) -> 14.195225 | BP22: =(BP18*'Reference Data'!$E$7)+(BP19*'Reference Data'!$E$8)+(BP20*'Reference Data'!$E$9)+(BP21*'Reference Data'!$E$10) -> 14.195225 | BQ22: =(BQ18*'Reference Data'!$E$7)+(BQ19*'Reference Data'!$E$8)+(BQ20*'Reference Data'!$E$9)+(BQ21*'Reference Data'!$E$10) -> 14.195225 | BR22: =(BR18*'Reference Data'!$E$7)+(BR19*'Reference Data'!$E$8)+(BR20*'Reference Data'!$E$9)+(BR21*'Reference Data'!$E$10) -> 14.195225 | BS22: =(BS18*'Reference Data'!$E$7)+(BS19*'Reference Data'!$E$8)+(BS20*'Reference Data'!$E$9)+(BS21*'Reference Data'!$E$10) -> 14.195225 | BT22: =(BT18*'Reference Data'!$E$7)+(BT19*'Reference Data'!$E$8)+(BT20*'Reference Data'!$E$9)+(BT21*'Reference Data'!$E$10) -> 14.195225 | BU22: =(BU18*'Reference Data'!$E$7)+(BU19*'Reference Data'!$E$8)+(BU20*'Reference Data'!$E$9)+(BU21*'Reference Data'!$E$10) -> 14.195225 | BV22: =(BV18*'Reference Data'!$E$7)+(BV19*'Reference Data'!$E$8)+(BV20*'Reference Data'!$E$9)+(BV21*'Reference Data'!$E$10) -> 14.195225 | BW22: =(BW18*'Reference Data'!$E$7)+(BW19*'Reference Data'!$E$8)+(BW20*'Reference Data'!$E$9)+(BW21*'Reference Data'!$E$10) -> 14.195225 | BX22: =(BX18*'Reference Data'!$E$7)+(BX19*'Reference Data'!$E$8)+(BX20*'Reference Data'!$E$9)+(BX21*'Reference Data'!$E$10) -> 14.195225 | BY22: =(BY18*'Reference Data'!$E$7)+(BY19*'Reference Data'!$E$8)+(BY20*'Reference Data'!$E$9)+(BY21*'Reference Data'!$E$10) -> 14.195225 | BZ22: =(BZ18*'Reference Data'!$E$7)+(BZ19*'Reference Data'!$E$8)+(BZ20*'Reference Data'!$E$9)+(BZ21*'Reference Data'!$E$10) -> 14.195225 | CA22: =(CA18*'Reference Data'!$E$7)+(CA19*'Reference Data'!$E$8)+(CA20*'Reference Data'!$E$9)+(CA21*'Reference Data'!$E$10) -> 14.195225 | CB22: =(CB18*'Reference Data'!$E$7)+(CB19*'Reference Data'!$E$8)+(CB20*'Reference Data'!$E$9)+(CB21*'Reference Data'!$E$10) -> 14.195225 | CC22: =(CC18*'Reference Data'!$E$7)+(CC19*'Reference Data'!$E$8)+(CC20*'Reference Data'!$E$9)+(CC21*'Reference Data'!$E$10) -> 14.195225 | CD22: =(CD18*'Reference Data'!$E$7)+(CD19*'Reference Data'!$E$8)+(CD20*'Reference Data'!$E$9)+(CD21*'Reference Data'!$E$10) -> 14.195225 | CE22: =(CE18*'Reference Data'!$E$7)+(CE19*'Reference Data'!$E$8)+(CE20*'Reference Data'!$E$9)+(CE21*'Reference Data'!$E$10) -> 14.195225 | CF22: =(CF18*'Reference Data'!$E$7)+(CF19*'Reference Data'!$E$8)+(CF20*'Reference Data'!$E$9)+(CF21*'Reference Data'!$E$10) -> 14.195225 | CG22: =(CG18*'Reference Data'!$E$7)+(CG19*'Reference Data'!$E$8)+(CG20*'Reference Data'!$E$9)+(CG21*'Reference Data'!$E$10) -> 14.195225 | CH22: =(CH18*'Reference Data'!$E$7)+(CH19*'Reference Data'!$E$8)+(CH20*'Reference Data'!$E$9)+(CH21*'Reference Data'!$E$10) -> 73.95366 | CI22: =(CI18*'Reference Data'!$E$7)+(CI19*'Reference Data'!$E$8)+(CI20*'Reference Data'!$E$9)+(CI21*'Reference Data'!$E$10) -> 0 | CJ22: =(CJ18*'Reference Data'!$E$7)+(CJ19*'Reference Data'!$E$8)+(CJ20*'Reference Data'!$E$9)+(CJ21*'Reference Data'!$E$10) -> 0 | CK22: =(CK18*'Reference Data'!$E$7)+(CK19*'Reference Data'!$E$8)+(CK20*'Reference Data'!$E$9)+(CK21*'Reference Data'!$E$10) -> 0 | CL22: =(CL18*'Reference Data'!$E$7)+(CL19*'Reference Data'!$E$8)+(CL20*'Reference Data'!$E$9)+(CL21*'Reference Data'!$E$10) -> 0 | CM22: =(CM18*'Reference Data'!$E$7)+(CM19*'Reference Data'!$E$8)+(CM20*'Reference Data'!$E$9)+(CM21*'Reference Data'!$E$10) -> 0 | CN22: =(CN18*'Reference Data'!$E$7)+(CN19*'Reference Data'!$E$8)+(CN20*'Reference Data'!$E$9)+(CN21*'Reference Data'!$E$10) -> 0 | CO22: =(CO18*'Reference Data'!$E$7)+(CO19*'Reference Data'!$E$8)+(CO20*'Reference Data'!$E$9)+(CO21*'Reference Data'!$E$10) -> 0 | CP22: =(CP18*'Reference Data'!$E$7)+(CP19*'Reference Data'!$E$8)+(CP20*'Reference Data'!$E$9)+(CP21*'Reference Data'!$E$10) -> 0 | CQ22: =(CQ18*'Reference Data'!$E$7)+(CQ19*'Reference Data'!$E$8)+(CQ20*'Reference Data'!$E$9)+(CQ21*'Reference Data'!$E$10) -> 0 | CR22: =(CR18*'Reference Data'!$E$7)+(CR19*'Reference Data'!$E$8)+(CR20*'Reference Data'!$E$9)+(CR21*'Reference Data'!$E$10) -> 0 | CS22: =(CS18*'Reference Data'!$E$7)+(CS19*'Reference Data'!$E$8)+(CS20*'Reference Data'!$E$9)+(CS21*'Reference Data'!$E$10) -> 0 | CT22: =(CT18*'Reference Data'!$E$7)+(CT19*'Reference Data'!$E$8)+(CT20*'Reference Data'!$E$9)+(CT21*'Reference Data'!$E$10) -> 3.092943333 | CU22: =(CU18*'Reference Data'!$E$7)+(CU19*'Reference Data'!$E$8)+(CU20*'Reference Data'!$E$9)+(CU21*'Reference Data'!$E$10) -> 3.092943333 | CV22: =(CV18*'Reference Data'!$E$7)+(CV19*'Reference Data'!$E$8)+(CV20*'Reference Data'!$E$9)+(CV21*'Reference Data'!$E$10) -> 3.092943333 | CW22: =(CW18*'Reference Data'!$E$7)+(CW19*'Reference Data'!$E$8)+(CW20*'Reference Data'!$E$9)+(CW21*'Reference Data'!$E$10) -> 3.092943333 | CX22: =(CX18*'Reference Data'!$E$7)+(CX19*'Reference Data'!$E$8)+(CX20*'Reference Data'!$E$9)+(CX21*'Reference Data'!$E$10) -> 3.092943333 | CY22: =(CY18*'Reference Data'!$E$7)+(CY19*'Reference Data'!$E$8)+(CY20*'Reference Data'!$E$9)+(CY21*'Reference Data'!$E$10) -> 3.092943333 | CZ22: =(CZ18*'Reference Data'!$E$7)+(CZ19*'Reference Data'!$E$8)+(CZ20*'Reference Data'!$E$9)+(CZ21*'Reference Data'!$E$10) -> 3.092943333 | DA22: =(DA18*'Reference Data'!$E$7)+(DA19*'Reference Data'!$E$8)+(DA20*'Reference Data'!$E$9)+(DA21*'Reference Data'!$E$10) -> 3.092943333 | DB22: =(DB18*'Reference Data'!$E$7)+(DB19*'Reference Data'!$E$8)+(DB20*'Reference Data'!$E$9)+(DB21*'Reference Data'!$E$10) -> 3.092943333 | DC22: =(DC18*'Reference Data'!$E$7)+(DC19*'Reference Data'!$E$8)+(DC20*'Reference Data'!$E$9)+(DC21*'Reference Data'!$E$10) -> 3.092943333 | DD22: =(DD18*'Reference Data'!$E$7)+(DD19*'Reference Data'!$E$8)+(DD20*'Reference Data'!$E$9)+(DD21*'Reference Data'!$E$10) -> 3.092943333 | DE22: =(DE18*'Reference Data'!$E$7)+(DE19*'Reference Data'!$E$8)+(DE20*'Reference Data'!$E$9)+(DE21*'Reference Data'!$E$10) -> 3.092943333 | DF22: =(DF18*'Reference Data'!$E$7)+(DF19*'Reference Data'!$E$8)+(DF20*'Reference Data'!$E$9)+(DF21*'Reference Data'!$E$10) -> 1.269491667 | DG22: =(DG18*'Reference Data'!$E$7)+(DG19*'Reference Data'!$E$8)+(DG20*'Reference Data'!$E$9)+(DG21*'Reference Data'!$E$10) -> 1.269491667 | DH22: =(DH18*'Reference Data'!$E$7)+(DH19*'Reference Data'!$E$8)+(DH20*'Reference Data'!$E$9)+(DH21*'Reference Data'!$E$10) -> 1.269491667 | DI22: =(DI18*'Reference Data'!$E$7)+(DI19*'Reference Data'!$E$8)+(DI20*'Reference Data'!$E$9)+(DI21*'Reference Data'!$E$10) -> 1.269491667 | DJ22: =(DJ18*'Reference Data'!$E$7)+(DJ19*'Reference Data'!$E$8)+(DJ20*'Reference Data'!$E$9)+(DJ21*'Reference Data'!$E$10) -> 1.269491667 | DK22: =(DK18*'Reference Data'!$E$7)+(DK19*'Reference Data'!$E$8)+(DK20*'Reference Data'!$E$9)+(DK21*'Reference Data'!$E$10) -> 1.269491667 | DL22: =(DL18*'Reference Data'!$E$7)+(DL19*'Reference Data'!$E$8)+(DL20*'Reference Data'!$E$9)+(DL21*'Reference Data'!$E$10) -> 1.269491667 | DM22: =(DM18*'Reference Data'!$E$7)+(DM19*'Reference Data'!$E$8)+(DM20*'Reference Data'!$E$9)+(DM21*'Reference Data'!$E$10) -> 1.269491667 | DN22: =(DN18*'Reference Data'!$E$7)+(DN19*'Reference Data'!$E$8)+(DN20*'Reference Data'!$E$9)+(DN21*'Reference Data'!$E$10) -> 1.269491667 | DO22: =(DO18*'Reference Data'!$E$7)+(DO19*'Reference Data'!$E$8)+(DO20*'Reference Data'!$E$9)+(DO21*'Reference Data'!$E$10) -> 1.269491667 | DP22: =(DP18*'Reference Data'!$E$7)+(DP19*'Reference Data'!$E$8)+(DP20*'Reference Data'!$E$9)+(DP21*'Reference Data'!$E$10) -> 1.269491667 | DQ22: =(DQ18*'Reference Data'!$E$7)+(DQ19*'Reference Data'!$E$8)+(DQ20*'Reference Data'!$E$9)+(DQ21*'Reference Data'!$E$10) -> 1.269491667 | DR22: =(DR18*'Reference Data'!$E$7)+(DR19*'Reference Data'!$E$8)+(DR20*'Reference Data'!$E$9)+(DR21*'Reference Data'!$E$10) -> 1.269491667 | DS22: =(DS18*'Reference Data'!$E$7)+(DS19*'Reference Data'!$E$8)+(DS20*'Reference Data'!$E$9)+(DS21*'Reference Data'!$E$10) -> 1.269491667 | DT22: =(DT18*'Reference Data'!$E$7)+(DT19*'Reference Data'!$E$8)+(DT20*'Reference Data'!$E$9)+(DT21*'Reference Data'!$E$10) -> 1.269491667 | DU22: =(DU18*'Reference Data'!$E$7)+(DU19*'Reference Data'!$E$8)+(DU20*'Reference Data'!$E$9)+(DU21*'Reference Data'!$E$10) -> 1.269491667 | DV22: =(DV18*'Reference Data'!$E$7)+(DV19*'Reference Data'!$E$8)+(DV20*'Reference Data'!$E$9)+(DV21*'Reference Data'!$E$10) -> 1.269491667 | DW22: =(DW18*'Reference Data'!$E$7)+(DW19*'Reference Data'!$E$8)+(DW20*'Reference Data'!$E$9)+(DW21*'Reference Data'!$E$10) -> 1.269491667 | DX22: =(DX18*'Reference Data'!$E$7)+(DX19*'Reference Data'!$E$8)+(DX20*'Reference Data'!$E$9)+(DX21*'Reference Data'!$E$10) -> 1.269491667 | DY22: =(DY18*'Reference Data'!$E$7)+(DY19*'Reference Data'!$E$8)+(DY20*'Reference Data'!$E$9)+(DY21*'Reference Data'!$E$10) -> 1.269491667 | DZ22: =(DZ18*'Reference Data'!$E$7)+(DZ19*'Reference Data'!$E$8)+(DZ20*'Reference Data'!$E$9)+(DZ21*'Reference Data'!$E$10) -> 1.269491667 | EA22: =(EA18*'Reference Data'!$E$7)+(EA19*'Reference Data'!$E$8)+(EA20*'Reference Data'!$E$9)+(EA21*'Reference Data'!$E$10) -> 1.269491667 | EB22: =(EB18*'Reference Data'!$E$7)+(EB19*'Reference Data'!$E$8)+(EB20*'Reference Data'!$E$9)+(EB21*'Reference Data'!$E$10) -> 1.269491667 | EC22: =(EC18*'Reference Data'!$E$7)+(EC19*'Reference Data'!$E$8)+(EC20*'Reference Data'!$E$9)+(EC21*'Reference Data'!$E$10) -> 1.269491667 | ED22: =(ED18*'Reference Data'!$E$7)+(ED19*'Reference Data'!$E$8)+(ED20*'Reference Data'!$E$9)+(ED21*'Reference Data'!$E$10) -> 1.269491667 | EE22: =(EE18*'Reference Data'!$E$7)+(EE19*'Reference Data'!$E$8)+(EE20*'Reference Data'!$E$9)+(EE21*'Reference Data'!$E$10) -> 1.269491667 | EF22: =(EF18*'Reference Data'!$E$7)+(EF19*'Reference Data'!$E$8)+(EF20*'Reference Data'!$E$9)+(EF21*'Reference Data'!$E$10) -> 1.269491667 | EG22: =(EG18*'Reference Data'!$E$7)+(EG19*'Reference Data'!$E$8)+(EG20*'Reference Data'!$E$9)+(EG21*'Reference Data'!$E$10) -> 1.269491667 | EH22: =(EH18*'Reference Data'!$E$7)+(EH19*'Reference Data'!$E$8)+(EH20*'Reference Data'!$E$9)+(EH21*'Reference Data'!$E$10) -> 1.269491667 | EI22: =(EI18*'Reference Data'!$E$7)+(EI19*'Reference Data'!$E$8)+(EI20*'Reference Data'!$E$9)+(EI21*'Reference Data'!$E$10) -> 1.269491667 | EJ22: =(EJ18*'Reference Data'!$E$7)+(EJ19*'Reference Data'!$E$8)+(EJ20*'Reference Data'!$E$9)+(EJ21*'Reference Data'!$E$10) -> 1.269491667 | EK22: =(EK18*'Reference Data'!$E$7)+(EK19*'Reference Data'!$E$8)+(EK20*'Reference Data'!$E$9)+(EK21*'Reference Data'!$E$10) -> 1.269491667 | EL22: =(EL18*'Reference Data'!$E$7)+(EL19*'Reference Data'!$E$8)+(EL20*'Reference Data'!$E$9)+(EL21*'Reference Data'!$E$10) -> 1.269491667 | EM22: =(EM18*'Reference Data'!$E$7)+(EM19*'Reference Data'!$E$8)+(EM20*'Reference Data'!$E$9)+(EM21*'Reference Data'!$E$10) -> 1.269491667 | EN22: =(EN18*'Reference Data'!$E$7)+(EN19*'Reference Data'!$E$8)+(EN20*'Reference Data'!$E$9)+(EN21*'Reference Data'!$E$10) -> 1.269491667 | EO22: =(EO18*'Reference Data'!$E$7)+(EO19*'Reference Data'!$E$8)+(EO20*'Reference Data'!$E$9)+(EO21*'Reference Data'!$E$10) -> 1.269491667 | EP22: =(EP18*'Reference Data'!$E$7)+(EP19*'Reference Data'!$E$8)+(EP20*'Reference Data'!$E$9)+(EP21*'Reference Data'!$E$10) -> 1.269491667 | EQ22: =(EQ18*'Reference Data'!$E$7)+(EQ19*'Reference Data'!$E$8)+(EQ20*'Reference Data'!$E$9)+(EQ21*'Reference Data'!$E$10) -> 1.269491667 | ER22: =(ER18*'Reference Data'!$E$7)+(ER19*'Reference Data'!$E$8)+(ER20*'Reference Data'!$E$9)+(ER21*'Reference Data'!$E$10) -> 1.269491667 | ES22: =(ES18*'Reference Data'!$E$7)+(ES19*'Reference Data'!$E$8)+(ES20*'Reference Data'!$E$9)+(ES21*'Reference Data'!$E$10) -> 1.269491667 | ET22: =(ET18*'Reference Data'!$E$7)+(ET19*'Reference Data'!$E$8)+(ET20*'Reference Data'!$E$9)+(ET21*'Reference Data'!$E$10) -> 1.269491667 | EU22: =(EU18*'Reference Data'!$E$7)+(EU19*'Reference Data'!$E$8)+(EU20*'Reference Data'!$E$9)+(EU21*'Reference Data'!$E$10) -> 1.269491667 | EV22: =(EV18*'Reference Data'!$E$7)+(EV19*'Reference Data'!$E$8)+(EV20*'Reference Data'!$E$9)+(EV21*'Reference Data'!$E$10) -> 1.269491667 | EW22: =(EW18*'Reference Data'!$E$7)+(EW19*'Reference Data'!$E$8)+(EW20*'Reference Data'!$E$9)+(EW21*'Reference Data'!$E$10) -> 1.269491667 | EX22: =(EX18*'Reference Data'!$E$7)+(EX19*'Reference Data'!$E$8)+(EX20*'Reference Data'!$E$9)+(EX21*'Reference Data'!$E$10) -> 1.269491667 | EY22: =(EY18*'Reference Data'!$E$7)+(EY19*'Reference Data'!$E$8)+(EY20*'Reference Data'!$E$9)+(EY21*'Reference Data'!$E$10) -> 1.269491667 | EZ22: =(EZ18*'Reference Data'!$E$7)+(EZ19*'Reference Data'!$E$8)+(EZ20*'Reference Data'!$E$9)+(EZ21*'Reference Data'!$E$10) -> 1.269491667 | FA22: =(FA18*'Reference Data'!$E$7)+(FA19*'Reference Data'!$E$8)+(FA20*'Reference Data'!$E$9)+(FA21*'Reference Data'!$E$10) -> 1.269491667 | FB22: =(FB18*'Reference Data'!$E$7)+(FB19*'Reference Data'!$E$8)+(FB20*'Reference Data'!$E$9)+(FB21*'Reference Data'!$E$10) -> 1.269491667 | FC22: =(FC18*'Reference Data'!$E$7)+(FC19*'Reference Data'!$E$8)+(FC20*'Reference Data'!$E$9)+(FC21*'Reference Data'!$E$10) -> 1.269491667 | FD22: =(FD18*'Reference Data'!$E$7)+(FD19*'Reference Data'!$E$8)+(FD20*'Reference Data'!$E$9)+(FD21*'Reference Data'!$E$10) -> 1.269491667 | FE22: =(FE18*'Reference Data'!$E$7)+(FE19*'Reference Data'!$E$8)+(FE20*'Reference Data'!$E$9)+(FE21*'Reference Data'!$E$10) -> 1.269491667 | FF22: =(FF18*'Reference Data'!$E$7)+(FF19*'Reference Data'!$E$8)+(FF20*'Reference Data'!$E$9)+(FF21*'Reference Data'!$E$10) -> 1.269491667 | FG22: =(FG18*'Reference Data'!$E$7)+(FG19*'Reference Data'!$E$8)+(FG20*'Reference Data'!$E$9)+(FG21*'Reference Data'!$E$10) -> 1.269491667 | FH22: =(FH18*'Reference Data'!$E$7)+(FH19*'Reference Data'!$E$8)+(FH20*'Reference Data'!$E$9)+(FH21*'Reference Data'!$E$10) -> 1.269491667 | FI22: =(FI18*'Reference Data'!$E$7)+(FI19*'Reference Data'!$E$8)+(FI20*'Reference Data'!$E$9)+(FI21*'Reference Data'!$E$10) -> 1.269491667 | FJ22: =(FJ18*'Reference Data'!$E$7)+(FJ19*'Reference Data'!$E$8)+(FJ20*'Reference Data'!$E$9)+(FJ21*'Reference Data'!$E$10) -> 1.269491667 | FK22: =(FK18*'Reference Data'!$E$7)+(FK19*'Reference Data'!$E$8)+(FK20*'Reference Data'!$E$9)+(FK21*'Reference Data'!$E$10) -> 1.269491667 | FL22: =(FL18*'Reference Data'!$E$7)+(FL19*'Reference Data'!$E$8)+(FL20*'Reference Data'!$E$9)+(FL21*'Reference Data'!$E$10) -> 1.269491667 | FM22: =(FM18*'Reference Data'!$E$7)+(FM19*'Reference Data'!$E$8)+(FM20*'Reference Data'!$E$9)+(FM21*'Reference Data'!$E$10) -> 1.269491667 | FN22: =(FN18*'Reference Data'!$E$7)+(FN19*'Reference Data'!$E$8)+(FN20*'Reference Data'!$E$9)+(FN21*'Reference Data'!$E$10) -> 0 | FO22: =(FO18*'Reference Data'!$E$7)+(FO19*'Reference Data'!$E$8)+(FO20*'Reference Data'!$E$9)+(FO21*'Reference Data'!$E$10) -> 0 | FP22: =(FP18*'Reference Data'!$E$7)+(FP19*'Reference Data'!$E$8)+(FP20*'Reference Data'!$E$9)+(FP21*'Reference Data'!$E$10) -> 0 | FQ22: =(FQ18*'Reference Data'!$E$7)+(FQ19*'Reference Data'!$E$8)+(FQ20*'Reference Data'!$E$9)+(FQ21*'Reference Data'!$E$10) -> 0 | FR22: =(FR18*'Reference Data'!$E$7)+(FR19*'Reference Data'!$E$8)+(FR20*'Reference Data'!$E$9)+(FR21*'Reference Data'!$E$10) -> 0 | FS22: =(FS18*'Reference Data'!$E$7)+(FS19*'Reference Data'!$E$8)+(FS20*'Reference Data'!$E$9)+(FS21*'Reference Data'!$E$10) -> 0 | FT22: =(FT18*'Reference Data'!$E$7)+(FT19*'Reference Data'!$E$8)+(FT20*'Reference Data'!$E$9)+(FT21*'Reference Data'!$E$10) -> 0 | FU22: =(FU18*'Reference Data'!$E$7)+(FU19*'Reference Data'!$E$8)+(FU20*'Reference Data'!$E$9)+(FU21*'Reference Data'!$E$10) -> 0 | FV22: =(FV18*'Reference Data'!$E$7)+(FV19*'Reference Data'!$E$8)+(FV20*'Reference Data'!$E$9)+(FV21*'Reference Data'!$E$10) -> 0 | FW22: =(FW18*'Reference Data'!$E$7)+(FW19*'Reference Data'!$E$8)+(FW20*'Reference Data'!$E$9)+(FW21*'Reference Data'!$E$10) -> 0 | FX22: =(FX18*'Reference Data'!$E$7)+(FX19*'Reference Data'!$E$8)+(FX20*'Reference Data'!$E$9)+(FX21*'Reference Data'!$E$10) -> 0 | FY22: =(FY18*'Reference Data'!$E$7)+(FY19*'Reference Data'!$E$8)+(FY20*'Reference Data'!$E$9)+(FY21*'Reference Data'!$E$10) -> 27.698 | FZ22: =(FZ18*'Reference Data'!$E$7)+(FZ19*'Reference Data'!$E$8)+(FZ20*'Reference Data'!$E$9)+(FZ21*'Reference Data'!$E$10) -> 0 | GA22: =(GA18*'Reference Data'!$E$7)+(GA19*'Reference Data'!$E$8)+(GA20*'Reference Data'!$E$9)+(GA21*'Reference Data'!$E$10) -> 0 | GB22: =(GB18*'Reference Data'!$E$7)+(GB19*'Reference Data'!$E$8)+(GB20*'Reference Data'!$E$9)+(GB21*'Reference Data'!$E$10) -> 0 | GC22: =(GC18*'Reference Data'!$E$7)+(GC19*'Reference Data'!$E$8)+(GC20*'Reference Data'!$E$9)+(GC21*'Reference Data'!$E$10) -> 0 | GD22: =(GD18*'Reference Data'!$E$7)+(GD19*'Reference Data'!$E$8)+(GD20*'Reference Data'!$E$9)+(GD21*'Reference Data'!$E$10) -> 0 | GE22: =(GE18*'Reference Data'!$E$7)+(GE19*'Reference Data'!$E$8)+(GE20*'Reference Data'!$E$9)+(GE21*'Reference Data'!$E$10) -> 0 | GF22: =(GF18*'Reference Data'!$E$7)+(GF19*'Reference Data'!$E$8)+(GF20*'Reference Data'!$E$9)+(GF21*'Reference Data'!$E$10) -> 0 | GG22: =(GG18*'Reference Data'!$E$7)+(GG19*'Reference Data'!$E$8)+(GG20*'Reference Data'!$E$9)+(GG21*'Reference Data'!$E$10) -> 0 | GH22: =(GH18*'Reference Data'!$E$7)+(GH19*'Reference Data'!$E$8)+(GH20*'Reference Data'!$E$9)+(GH21*'Reference Data'!$E$10) -> 0
A24: Current Year Data - CY19 | B24: =SWITCH(Year.Indicator, "FY","Jul","CY","Jan","SFY","Apr") -> Jan | C24: =SWITCH(Year.Indicator, "FY","Aug","CY","Feb","SFY","May") -> Feb | D24: =SWITCH(Year.Indicator, "FY","Sep","CY","Mar","SFY","Jun") -> Mar | E24: =SWITCH(Year.Indicator, "FY","Oct","CY","Apr","SFY","Jul") -> Apr | F24: =SWITCH(Year.Indicator, "FY","Nov","CY","May","SFY","Aug") -> May | G24: =SWITCH(Year.Indicator, "FY","Dec","CY","Jun","SFY","Sep") -> Jun | H24: =SWITCH(Year.Indicator, "FY","Jan","CY","Jul","SFY","Oct") -> Jul | I24: =SWITCH(Year.Indicator, "FY","Feb","CY","Jul","SFY","Nov") -> Jul | J24: =SWITCH(Year.Indicator, "FY","Mar","CY","Aug","SFY","Dec") -> Aug | K24: =SWITCH(Year.Indicator, "FY","Apr","CY","Sep","SFY","Jan") -> Sep | L24: =SWITCH(Year.Indicator, "FY","May","CY","Oct","SFY","Feb") -> Oct | M24: =IF(Year.Indicator= "FY", "Jun", "Dec") -> Dec
A25: Electricity (kWh) | B25: =IF(Year.Indicator= "FY", ED9, EJ9) -> 1624080 | C25: =IF(Year.Indicator= "FY", EE9, EK9) -> 1601680 | D25: =IF(Year.Indicator= "FY", EF9, EL9) -> 1511600 | E25: =IF(Year.Indicator= "FY", EG9, EM9) -> 1473440 | F25: =IF(Year.Indicator= "FY", EH9, EN9) -> 1625200 | G25: =IF(Year.Indicator= "FY", EI9, EO9) -> 1548640 | H25: =IF(Year.Indicator= "FY", EJ9, EP9) -> 1290960 | I25: =IF(Year.Indicator= "FY", EK9, EQ9) -> 1985600 | J25: =IF(Year.Indicator= "FY", EL9, ER9) -> 1676240 | K25: =IF(Year.Indicator= "FY", EM9, ES9) -> 1555920 | L25: =IF(Year.Indicator= "FY", EN9, ET9) -> 1553360 | M25: =IF(Year.Indicator= "FY", EO9, EU9) -> 1552080
A26: Gas (Therms) | B26: =IF(Year.Indicator= "FY", ED10, EJ10) -> 302 | C26: =IF(Year.Indicator= "FY", EE10, EK10) -> 547 | D26: =IF(Year.Indicator= "FY", EF10, EL10) -> 602 | E26: =IF(Year.Indicator= "FY", EG10, EM10) -> 537 | F26: =IF(Year.Indicator= "FY", EH10, EN10) -> 625 | G26: =IF(Year.Indicator= "FY", EI10, EO10) -> 367 | H26: =IF(Year.Indicator= "FY", EJ10, EP10) -> 270 | I26: =IF(Year.Indicator= "FY", EK10, EQ10) -> 280 | J26: =IF(Year.Indicator= "FY", EL10, ER10) -> 543 | K26: =IF(Year.Indicator= "FY", EM10, ES10) -> 528 | L26: =IF(Year.Indicator= "FY", EN10, ET10) -> 588 | M26: =IF(Year.Indicator= "FY", EO10, EU10) -> 529
A27: Steam (mlbs) | B27: =IF(Year.Indicator= "FY", ED12, EJ12) -> 6533 | C27: =IF(Year.Indicator= "FY", EE12, EK12) -> 5701 | D27: =IF(Year.Indicator= "FY", EF12, EL12) -> 5046 | E27: =IF(Year.Indicator= "FY", EG12, EM12) -> 2955 | F27: =IF(Year.Indicator= "FY", EH12, EN12) -> 1462 | G27: =IF(Year.Indicator= "FY", EI12, EO12) -> 771 | H27: =IF(Year.Indicator= "FY", EJ12, EP12) -> 843 | I27: =IF(Year.Indicator= "FY", EK12, EQ12) -> 803 | J27: =IF(Year.Indicator= "FY", EL12, ER12) -> 982 | K27: =IF(Year.Indicator= "FY", EM12, ES12) -> 1614 | L27: =IF(Year.Indicator= "FY", EN12, ET12) -> 3900 | M27: =IF(Year.Indicator= "FY", EO12, EU12) -> 6217
A28: Diesel Fuel (Gal) | B28: =IF(Year.Indicator= "FY", FH18, FN18) ->  | C28: =IF(Year.Indicator= "FY", FI18, FO18) ->  | D28: =IF(Year.Indicator= "FY", FJ18, FP18) ->  | E28: =IF(Year.Indicator= "FY", FK18, FQ18) ->  | F28: =IF(Year.Indicator= "FY", FL18, FR18) ->  | G28: =IF(Year.Indicator= "FY", FM18, FS18) ->  | H28: =IF(Year.Indicator= "FY", FN18, FT18) ->  | I28: =IF(Year.Indicator= "FY", FO18, FU18) ->  | J28: =IF(Year.Indicator= "FY", FP18, FV18) ->  | K28: =IF(Year.Indicator= "FY", FQ18, FW18) ->  | L28: =IF(Year.Indicator= "FY", FR18, FX18) ->  | M28: =IF(Year.Indicator= "FY", FS18, FY18) -> 200
A29: Fuel Oil - #2 (Gal) | B29: =IF(Year.Indicator= "FY", FH19, FN19) ->  | C29: =IF(Year.Indicator= "FY", FI19, FO19) ->  | D29: =IF(Year.Indicator= "FY", FJ19, FP19) ->  | E29: =IF(Year.Indicator= "FY", FK19, FQ19) ->  | F29: =IF(Year.Indicator= "FY", FL19, FR19) ->  | G29: =IF(Year.Indicator= "FY", FM19, FS19) ->  | H29: =IF(Year.Indicator= "FY", FN19, FT19) ->  | I29: =IF(Year.Indicator= "FY", FO19, FU19) ->  | J29: =IF(Year.Indicator= "FY", FP19, FV19) ->  | K29: =IF(Year.Indicator= "FY", FQ19, FW19) ->  | L29: =IF(Year.Indicator= "FY", FR19, FX19) ->  | M29: =IF(Year.Indicator= "FY", FS19, FY19) -> 
A30: Fuel Oil - #4 (Gal) | B30: =IF(Year.Indicator= "FY", FH20, FN20) ->  | C30: =IF(Year.Indicator= "FY", FI20, FO20) ->  | D30: =IF(Year.Indicator= "FY", FJ20, FP20) ->  | E30: =IF(Year.Indicator= "FY", FK20, FQ20) ->  | F30: =IF(Year.Indicator= "FY", FL20, FR20) ->  | G30: =IF(Year.Indicator= "FY", FM20, FS20) ->  | H30: =IF(Year.Indicator= "FY", FN20, FT20) ->  | I30: =IF(Year.Indicator= "FY", FO20, FU20) ->  | J30: =IF(Year.Indicator= "FY", FP20, FV20) ->  | K30: =IF(Year.Indicator= "FY", FQ20, FW20) ->  | L30: =IF(Year.Indicator= "FY", FR20, FX20) ->  | M30: =IF(Year.Indicator= "FY", FS20, FY20) -> 
A31: Fuel Oil - #6 (Gal) | B31: =IF(Year.Indicator= "FY", FH21, FN21) ->  | C31: =IF(Year.Indicator= "FY", FI21, FO21) ->  | D31: =IF(Year.Indicator= "FY", FJ21, FP21) ->  | E31: =IF(Year.Indicator= "FY", FK21, FQ21) ->  | F31: =IF(Year.Indicator= "FY", FL21, FR21) ->  | G31: =IF(Year.Indicator= "FY", FM21, FS21) ->  | H31: =IF(Year.Indicator= "FY", FN21, FT21) ->  | I31: =IF(Year.Indicator= "FY", FO21, FU21) ->  | J31: =IF(Year.Indicator= "FY", FP21, FV21) ->  | K31: =IF(Year.Indicator= "FY", FQ21, FW21) ->  | L31: =IF(Year.Indicator= "FY", FR21, FX21) ->  | M31: =IF(Year.Indicator= "FY", FS21, FY21) -> 
A33: Year | B33: 2006 | C33: 2007 | D33: 2008 | E33: 2009 | F33: 2010 | G33: 2011 | H33: 2012 | I33: 2013 | J33: 2014 | K33: 2015 | L33: 2016 | M33: 2017 | N33: 2018 | O33: 2019 | P33: 2020
A34: Sq_Ft | B34: 964140 | C34: 775678 | D34: 800856 | E34: 800856 | F34: 800856 | G34: 1138923 | H34: 1463371 | I34: 1463371 | J34: 1463371 | K34: 1463371 | L34: 1463371 | M34: 1463371 | N34: 1461292 | O34: 1461292 | P34: 1461292
A36: Usage (Fiscal or Calendar)
A37: Current Year
A38: Usage (mmBtu) | B38: =B24 -> Jan | C38: Feb | D38: Mar | E38: Apr | F38: May | G38: Jun | H38: Jul | I38: Jul | J38: Aug | K38: Sep | L38: Oct | M38: Dec | N38: Total
A39: Electricity | B39: =B25*'Reference Data'!$E$4 -> 5542.98504 | C39: =C25*'Reference Data'!$E$4 -> 5466.53384 | D39: =D25*'Reference Data'!$E$4 -> 5159.0908 | E39: =E25*'Reference Data'!$E$4 -> 5028.85072 | F39: =F25*'Reference Data'!$E$4 -> 5546.8076 | G39: =G25*'Reference Data'!$E$4 -> 5285.50832 | H39: =H25*'Reference Data'!$E$4 -> 4406.04648 | I39: =I25*'Reference Data'!$E$4 -> 6776.8528 | J39: =J25*'Reference Data'!$E$4 -> 5721.00712 | K39: =K25*'Reference Data'!$E$4 -> 5310.35496 | L39: =L25*'Reference Data'!$E$4 -> 5301.61768 | M39: =M25*'Reference Data'!$E$4 -> 5297.24904 | N39: =SUM(Current.Elec.mmBtu) -> 64842.9044
A40: Gas | B40: =B26*'Reference Data'!$E$5 -> 30.2 | C40: =C26*'Reference Data'!$E$5 -> 54.7 | D40: =D26*'Reference Data'!$E$5 -> 60.2 | E40: =E26*'Reference Data'!$E$5 -> 53.7 | F40: =F26*'Reference Data'!$E$5 -> 62.5 | G40: =G26*'Reference Data'!$E$5 -> 36.7 | H40: =H26*'Reference Data'!$E$5 -> 27 | I40: =I26*'Reference Data'!$E$5 -> 28 | J40: =J26*'Reference Data'!$E$5 -> 54.3 | K40: =K26*'Reference Data'!$E$5 -> 52.8 | L40: =L26*'Reference Data'!$E$5 -> 58.8 | M40: =M26*'Reference Data'!$E$5 -> 52.9 | N40: =SUM(Current.Gas.mmBtu) -> 571.8
A41: Steam | B41: =B27*'Reference Data'!$E$6 -> 7224.8447 | C41: =C27*'Reference Data'!$E$6 -> 6304.7359 | D41: =D27*'Reference Data'!$E$6 -> 5580.3714 | E41: =E27*'Reference Data'!$E$6 -> 3267.9345 | F41: =F27*'Reference Data'!$E$6 -> 1616.8258 | G41: =G27*'Reference Data'!$E$6 -> 852.6489 | H41: =H27*'Reference Data'!$E$6 -> 932.2737 | I41: =I27*'Reference Data'!$E$6 -> 888.0377 | J41: =J27*'Reference Data'!$E$6 -> 1085.9938 | K41: =K27*'Reference Data'!$E$6 -> 1784.9226 | L41: =L27*'Reference Data'!$E$6 -> 4313.01 | M41: =M27*'Reference Data'!$E$6 -> 6875.3803 | N41: =SUM(Current.Steam.mmBtu) -> 40726.9793
A42: Total Diesel + Oil mmBtus | B42: =IF(Year.Indicator= "FY", FT22, FZ22) -> 0 | C42: =IF(Year.Indicator= "FY", FU22, GA22) -> 0 | D42: =IF(Year.Indicator= "FY", FV22, GB22) -> 0 | E42: =IF(Year.Indicator= "FY", FW22, GC22) -> 0 | F42: =IF(Year.Indicator= "FY", FX22, GD22) -> 0 | G42: =IF(Year.Indicator= "FY", FY22, GE22) -> 0 | H42: =IF(Year.Indicator= "FY", FZ22, GF22) -> 0 | I42: =IF(Year.Indicator= "FY", GA22, GG22) -> 0 | J42: =IF(Year.Indicator= "FY", GB22, GH22) -> 0 | K42: =IF(Year.Indicator= "FY", GC22, GI22) ->  | L42: =IF(Year.Indicator= "FY", GD22, GJ22) ->  | M42: =IF(Year.Indicator= "FY", GE22, GK22) ->  | N42: =SUM(Current.FuelOil.mmBtu) -> 0
A43: Total Usage mmBtus | B43: =SUM(B39:B42) -> 12798.02974 | C43: 11825.96974 | D43: 10799.6622 | E43: 8350.48522 | F43: 7226.1334 | G43: 6174.85722 | H43: 5365.32018 | I43: 7692.8905 | J43: 6861.30092 | K43: 7148.07756 | L43: 9673.42768 | M43: 12225.52934 | N43: 106141.6837
A45: Annual (Fiscal or Calendar)
A46: Usage (mmBtu) | B46: 2008 | C46: 2009 | D46: 2010 | E46: 2011 | F46: 2012 | G46: 2013 | H46: 2014 | I46: 2015 | J46: 2016 | K46: 2017 | L46: 2018 | M46: 2019 | N46: 2020
A47: Electricity | B47: =IF(Year.Indicator ="FY",(SUM(FY.08.Elec.kWh)*'Reference Data'!$E$4),(SUM(CY.08.Elec.kWh)*'Reference Data'!$E$4)) -> 41073.4072 | C47: =IF(Year.Indicator ="FY",(SUM(FY.09.Elec.kWh)*'Reference Data'!$E$4),(SUM(CY.09.Elec.kWh)*'Reference Data'!$E$4)) -> 48708.9708 | D47: =IF(Year.Indicator ="FY",(SUM(FY.10.Elec.kWh)*'Reference Data'!$E$4),(SUM(CY.10.Elec.kWh)*'Reference Data'!$E$4)) -> 55418.10968 | E47: =IF(Year.Indicator ="FY",(SUM(FY.11.Elec.kWh)*'Reference Data'!$E$4),(SUM(CY.11.Elec.kWh)*'Reference Data'!$E$4)) -> 85216.33008 | F47: =IF(Year.Indicator ="FY",(SUM(FY.12.Elec.kWh)*'Reference Data'!$E$4),(SUM(CY.12.Elec.kWh)*'Reference Data'!$E$4)) -> 101948.4943 | G47: =IF(Year.Indicator ="FY",(SUM(FY.13.Elec.kWh)*'Reference Data'!$E$4),(SUM(CY.13.Elec.kWh)*'Reference Data'!$E$4)) -> 98230.78168 | H47: =IF(Year.Indicator ="FY",(SUM(FY.14.Elec.kWh)*'Reference Data'!$E$4),(SUM(CY.14.Elec.kWh)*'Reference Data'!$E$4)) -> 92902.40608 | I47: =IF(Year.Indicator ="FY",(SUM(FY.15.Elec.kWh)*'Reference Data'!$E$4),(SUM(CY.15.Elec.kWh)*'Reference Data'!$E$4)) -> 84897.41936 | J47: =IF(Year.Indicator ="FY",(SUM(FY.16.Elec.kWh)*'Reference Data'!$E$4),(SUM(CY.16.Elec.kWh)*'Reference Data'!$E$4)) -> 78215.58448 | K47: =IF(Year.Indicator ="FY",(SUM(FY.17.Elec.kWh)*'Reference Data'!$E$4),(SUM(CY.17.Elec.kWh)*'Reference Data'!$E$4)) -> 76729.15472 | L47: =IF(Year.Indicator ="FY",(SUM(FY.18.Elec.kWh)*'Reference Data'!$E$4),(SUM(CY.18.Elec.kWh)*'Reference Data'!$E$4)) -> 71167.05688 | M47: =IF(Year.Indicator ="FY",(SUM(FY.19.Elec.kWh)*'Reference Data'!$E$4),(SUM(CY.19.Elec.kWh)*'Reference Data'!$E$4)) -> 64842.9044 | N47: =IF(Year.Indicator ="FY",(SUM(FY.20.Elec.kWh)*'Reference Data'!$E$4),(SUM(CY.20.Elec.kWh)*'Reference Data'!$E$4)) -> 38569.35736
A48: Gas | B48: =IF(Year.Indicator ="FY",(SUM(FY.08.Gas.Therms)*'Reference Data'!$E$5),(SUM(CY.08.Gas.Therms)*'Reference Data'!$E$5)) -> 601 | C48: =IF(Year.Indicator ="FY",(SUM(FY.09.Gas.Therms)*'Reference Data'!$E$5),(SUM(CY.09.Gas.Therms)*'Reference Data'!$E$5)) -> 598.1 | D48: =IF(Year.Indicator ="FY",(SUM(FY.10.Gas.Therms)*'Reference Data'!$E$5),(SUM(CY.10.Gas.Therms)*'Reference Data'!$E$5)) -> 509.9 | E48: =IF(Year.Indicator ="FY",(SUM(FY.11.Gas.Therms)*'Reference Data'!$E$5),(SUM(CY.11.Gas.Therms)*'Reference Data'!$E$5)) -> 397.4 | F48: =IF(Year.Indicator ="FY",(SUM(FY.12.Gas.Therms)*'Reference Data'!$E$5),(SUM(CY.12.Gas.Therms)*'Reference Data'!$E$5)) -> 408.8 | G48: =IF(Year.Indicator ="FY",(SUM(FY.13.Gas.Therms)*'Reference Data'!$E$5),(SUM(CY.13.Gas.Therms)*'Reference Data'!$E$5)) -> 410.9 | H48: =IF(Year.Indicator ="FY",(SUM(FY.14.Gas.Therms)*'Reference Data'!$E$5),(SUM(CY.14.Gas.Therms)*'Reference Data'!$E$5)) -> 417.2 | I48: =IF(Year.Indicator ="FY",(SUM(FY.15.Gas.Therms)*'Reference Data'!$E$5),(SUM(CY.15.Gas.Therms)*'Reference Data'!$E$5)) -> 459 | J48: =IF(Year.Indicator ="FY",(SUM(FY.16.Gas.Therms)*'Reference Data'!$E$5),(SUM(CY.16.Gas.Therms)*'Reference Data'!$E$5)) -> 939.6 | K48: =IF(Year.Indicator ="FY",(SUM(FY.17.Gas.Therms)*'Reference Data'!$E$5),(SUM(CY.17.Gas.Therms)*'Reference Data'!$E$5)) -> 3309.1 | L48: =IF(Year.Indicator ="FY",(SUM(FY.18.Gas.Therms)*'Reference Data'!$E$5),(SUM(CY.18.Gas.Therms)*'Reference Data'!$E$5)) -> 553.3 | M48: =IF(Year.Indicator ="FY",(SUM(FY.19.Gas.Therms)*'Reference Data'!$E$5),(SUM(CY.19.Gas.Therms)*'Reference Data'!$E$5)) -> 571.8 | N48: =IF(Year.Indicator ="FY",(SUM(FY.20.Gas.Therms)*'Reference Data'!$E$5),(SUM(CY.20.Gas.Therms)*'Reference Data'!$E$5)) -> 396.7
A49: Steam | B49: =IF(Year.Indicator ="FY",(SUM(FY.08.Steam.mlbs)*'Reference Data'!$E$6),(SUM(CY.08.Steam.mlbs)*'Reference Data'!$E$6)) -> 42497.5252 | C49: =IF(Year.Indicator ="FY",(SUM(FY.09.Steam.mlbs)*'Reference Data'!$E$6),(SUM(CY.09.Steam.mlbs)*'Reference Data'!$E$6)) -> 41731.1365 | D49: =IF(Year.Indicator ="FY",(SUM(FY.10.Steam.mlbs)*'Reference Data'!$E$6),(SUM(CY.10.Steam.mlbs)*'Reference Data'!$E$6)) -> 39989.344 | E49: =IF(Year.Indicator ="FY",(SUM(FY.11.Steam.mlbs)*'Reference Data'!$E$6),(SUM(CY.11.Steam.mlbs)*'Reference Data'!$E$6)) -> 53505.6538 | F49: =IF(Year.Indicator ="FY",(SUM(FY.12.Steam.mlbs)*'Reference Data'!$E$6),(SUM(CY.12.Steam.mlbs)*'Reference Data'!$E$6)) -> 74319.7977 | G49: =IF(Year.Indicator ="FY",(SUM(FY.13.Steam.mlbs)*'Reference Data'!$E$6),(SUM(CY.13.Steam.mlbs)*'Reference Data'!$E$6)) -> 84252.9915 | H49: =IF(Year.Indicator ="FY",(SUM(FY.14.Steam.mlbs)*'Reference Data'!$E$6),(SUM(CY.14.Steam.mlbs)*'Reference Data'!$E$6)) -> 78263.4371 | I49: =IF(Year.Indicator ="FY",(SUM(FY.15.Steam.mlbs)*'Reference Data'!$E$6),(SUM(CY.15.Steam.mlbs)*'Reference Data'!$E$6)) -> 73646.3046 | J49: =IF(Year.Indicator ="FY",(SUM(FY.16.Steam.mlbs)*'Reference Data'!$E$6),(SUM(CY.16.Steam.mlbs)*'Reference Data'!$E$6)) -> 49706.8873 | K49: =IF(Year.Indicator ="FY",(SUM(FY.17.Steam.mlbs)*'Reference Data'!$E$6),(SUM(CY.17.Steam.mlbs)*'Reference Data'!$E$6)) -> 50121.5998 | L49: =IF(Year.Indicator ="FY",(SUM(FY.18.Steam.mlbs)*'Reference Data'!$E$6),(SUM(CY.18.Steam.mlbs)*'Reference Data'!$E$6)) -> 51254.0414 | M49: =IF(Year.Indicator ="FY",(SUM(FY.19.Steam.mlbs)*'Reference Data'!$E$6),(SUM(CY.19.Steam.mlbs)*'Reference Data'!$E$6)) -> 40726.9793 | N49: =IF(Year.Indicator ="FY",(SUM(FY.20.Steam.mlbs)*'Reference Data'!$E$6),(SUM(CY.20.Steam.mlbs)*'Reference Data'!$E$6)) -> 21997.4569
A50: Total Diesel + Oil mmBtus | B50: =IF(Year.Indicator="FY",SUM(FY.08.FuelOil.mmBtu),SUM(CY.08.FuelOil.mmBtu)) -> 170.3427 | C50: =IF(Year.Indicator="FY",SUM(FY.09.FuelOil.mmBtu),SUM(CY.09.FuelOil.mmBtu)) -> 170.3427 | D50: =IF(Year.Indicator="FY",SUM(FY.10.FuelOil.mmBtu),SUM(CY.10.FuelOil.mmBtu)) -> 170.3427 | E50: =IF(Year.Indicator="FY",SUM(FY.11.FuelOil.mmBtu),SUM(CY.11.FuelOil.mmBtu)) -> 170.3427 | F50: =IF(Year.Indicator="FY",SUM(FY.12.FuelOil.mmBtu),SUM(CY.12.FuelOil.mmBtu)) -> 73.95366 | G50: =IF(Year.Indicator="FY",SUM(FY.13.FuelOil.mmBtu),SUM(CY.13.FuelOil.mmBtu)) -> 37.11532 | H50: =IF(Year.Indicator="FY",SUM(FY.14.FuelOil.mmBtu),SUM(CY.14.FuelOil.mmBtu)) -> 15.2339 | I50: =IF(Year.Indicator="FY",SUM(FY.15.FuelOil.mmBtu),SUM(CY.15.FuelOil.mmBtu)) -> 15.2339 | J50: =IF(Year.Indicator="FY",SUM(FY.16.FuelOil.mmBtu),SUM(CY.16.FuelOil.mmBtu)) -> 15.2339 | K50: =IF(Year.Indicator="FY",SUM(FY.17.FuelOil.mmBtu),SUM(CY.17.FuelOil.mmBtu)) -> 15.2339 | L50: =IF(Year.Indicator="FY",SUM(FY.18.FuelOil.mmBtu),SUM(CY.18.FuelOil.mmBtu)) -> 15.2339 | M50: =IF(Year.Indicator="FY",SUM(FY.19.FuelOil.mmBtu),SUM(CY.19.FuelOil.mmBtu)) -> 27.698 | N50: =IF(Year.Indicator="FY",SUM(FY.20.FuelOil.mmBtu),SUM(CY.20.FuelOil.mmBtu)) -> 0
A51: Total Usage mmBtus | B51: =SUM(B47:B50) -> 84342.2751 | C51: 91208.55 | D51: 96087.69638 | E51: 139289.7266 | F51: 176751.0457 | G51: 182931.7885 | H51: 171598.2771 | I51: 159017.9579 | J51: 128877.3057 | K51: 130175.0884 | L51: 122989.6322 | M51: 106169.3817 | N51: 60963.51426
A53: Annual (Fiscal or Calendar)
A54: Expenses ($) | B54: 2008 | C54: 2009 | D54: 2010 | E54: 2011 | F54: 2012 | G54: 2013 | H54: 2014 | I54: 2015 | J54: 2016 | K54: 2017 | L54: 2018 | M54: 2019 | N54: 2020
A55: Electricity | B55: =IF(Year.Indicator = "FY",SUM(FY.08.Elec.Cost),SUM(CY.08.Elec.Cost)) -> 1558520.67 | C55: =IF(Year.Indicator = "FY",SUM(FY.09.Elec.Cost),SUM(CY.09.Elec.Cost)) -> 1797818.65 | D55: =IF(Year.Indicator = "FY",SUM(FY.10.Elec.Cost),SUM(CY.10.Elec.Cost)) -> 2106999.19 | E55: =IF(Year.Indicator = "FY",SUM(FY.11.Elec.Cost),SUM(CY.11.Elec.Cost)) -> 3367275.45 | F55: =IF(Year.Indicator = "FY",SUM(FY.12.Elec.Cost),SUM(CY.12.Elec.Cost)) -> 4346108.79 | G55: =IF(Year.Indicator = "FY",SUM(FY.13.Elec.Cost),SUM(CY.13.Elec.Cost)) -> 4161021.74 | H55: =IF(Year.Indicator = "FY",SUM(FY.14.Elec.Cost),SUM(CY.14.Elec.Cost)) -> 4125248.76 | I55: =IF(Year.Indicator = "FY",SUM(FY.15.Elec.Cost),SUM(CY.15.Elec.Cost)) -> 3627208.7 | J55: =IF(Year.Indicator = "FY",SUM(FY.16.Elec.Cost),SUM(CY.16.Elec.Cost)) -> 3203228.3 | K55: =IF(Year.Indicator = "FY",SUM(FY.17.Elec.Cost),SUM(CY.17.Elec.Cost)) -> 3483490.08 | L55: =IF(Year.Indicator = "FY",SUM(FY.18.Elec.Cost),SUM(CY.18.Elec.Cost)) -> 3079029.8 | M55: =IF(Year.Indicator = "FY",SUM(FY.19.Elec.Cost),SUM(CY.19.Elec.Cost)) -> 2579467.9 | N55: =IF(Year.Indicator = "FY",SUM(FY.20.Elec.Cost),SUM(CY.20.Elec.Cost)) -> 1501402.09
A56: Gas | B56: =IF(Year.Indicator = "FY",SUM(FY.08.Gas.Cost),SUM(CY.08.Gas.Cost)) -> 10282.11 | C56: =IF(Year.Indicator = "FY",SUM(FY.09.Gas.Cost),SUM(CY.09.Gas.Cost)) -> 8357.64 | D56: =IF(Year.Indicator = "FY",SUM(FY.10.Gas.Cost),SUM(CY.10.Gas.Cost)) -> 7159.29 | E56: =IF(Year.Indicator = "FY",SUM(FY.11.Gas.Cost),SUM(CY.11.Gas.Cost)) -> 5330.01 | F56: =IF(Year.Indicator = "FY",SUM(FY.12.Gas.Cost),SUM(CY.12.Gas.Cost)) -> 5119.24 | G56: =IF(Year.Indicator = "FY",SUM(FY.13.Gas.Cost),SUM(CY.13.Gas.Cost)) -> 5995.89 | H56: =IF(Year.Indicator = "FY",SUM(FY.14.Gas.Cost),SUM(CY.14.Gas.Cost)) -> 5884.39 | I56: =IF(Year.Indicator = "FY",SUM(FY.15.Gas.Cost),SUM(CY.15.Gas.Cost)) -> 5066.65 | J56: =IF(Year.Indicator = "FY",SUM(FY.16.Gas.Cost),SUM(CY.16.Gas.Cost)) -> 8413.55 | K56: =IF(Year.Indicator = "FY",SUM(FY.17.Gas.Cost),SUM(CY.17.Gas.Cost)) -> 32990.91 | L56: =IF(Year.Indicator = "FY",SUM(FY.18.Gas.Cost),SUM(CY.18.Gas.Cost)) -> 7152.97 | M56: =IF(Year.Indicator = "FY",SUM(FY.19.Gas.Cost),SUM(CY.19.Gas.Cost)) -> 6325.06 | N56: =IF(Year.Indicator = "FY",SUM(FY.20.Gas.Cost),SUM(CY.20.Gas.Cost)) -> 4089.3
A57: Steam | B57: =IF(Year.Indicator = "FY",SUM(FY.08.Steam.Cost),SUM(CY.08.Steam.Cost)) -> 1083918.91 | C57: =IF(Year.Indicator = "FY",SUM(FY.09.Steam.Cost),SUM(CY.09.Steam.Cost)) -> 1059322.71 | D57: =IF(Year.Indicator = "FY",SUM(FY.10.Steam.Cost),SUM(CY.10.Steam.Cost)) -> 997889.37 | E57: =IF(Year.Indicator = "FY",SUM(FY.11.Steam.Cost),SUM(CY.11.Steam.Cost)) -> 1462668.71 | F57: =IF(Year.Indicator = "FY",SUM(FY.12.Steam.Cost),SUM(CY.12.Steam.Cost)) -> 2087007.07 | G57: =IF(Year.Indicator = "FY",SUM(FY.13.Steam.Cost),SUM(CY.13.Steam.Cost)) -> 2403897.8 | H57: =IF(Year.Indicator = "FY",SUM(FY.14.Steam.Cost),SUM(CY.14.Steam.Cost)) -> 2101580.58 | I57: =IF(Year.Indicator = "FY",SUM(FY.15.Steam.Cost),SUM(CY.15.Steam.Cost)) -> 1997020.11 | J57: =IF(Year.Indicator = "FY",SUM(FY.16.Steam.Cost),SUM(CY.16.Steam.Cost)) -> 1475675.52 | K57: =IF(Year.Indicator = "FY",SUM(FY.17.Steam.Cost),SUM(CY.17.Steam.Cost)) -> 1582579.28 | L57: =IF(Year.Indicator = "FY",SUM(FY.18.Steam.Cost),SUM(CY.18.Steam.Cost)) -> 1705989.23 | M57: =IF(Year.Indicator = "FY",SUM(FY.19.Steam.Cost),SUM(CY.19.Steam.Cost)) -> 1323740.99 | N57: =IF(Year.Indicator = "FY",SUM(FY.20.Steam.Cost),SUM(CY.20.Steam.Cost)) -> 738132.14
A60: EUI (Fiscal or Calendar) | B60: =IF(Year.Indicator= "FY", "Jul", "Jan") -> Jan | C60: =IF(Year.Indicator= "FY", "Aug", "Feb") -> Feb | D60: =IF(Year.Indicator= "FY", "Sep", "Mar") -> Mar | E60: =IF(Year.Indicator= "FY", "Oct", "Apr") -> Apr | F60: =IF(Year.Indicator= "FY", "Nov", "May") -> May | G60: =IF(Year.Indicator= "FY", "Dec", "Jun") -> Jun | H60: =IF(Year.Indicator= "FY", "Jan", "Jul") -> Jul | I60: =IF(Year.Indicator= "FY", "Feb", "Aug") -> Aug | J60: =IF(Year.Indicator= "FY", "Mar", "Sep") -> Sep | K60: =IF(Year.Indicator= "FY", "Apr", "Oct") -> Oct | L60: =IF(Year.Indicator= "FY", "May", "Nov") -> Nov | M60: =IF(Year.Indicator= "FY", "Jun", "Dec") -> Dec
A61: Current Year | B61: =((B43*1000)/$P$34)*12 -> 105.0962825 | C61: 97.11381222 | D61: 88.68586593 | E61: 68.5734423 | F61: 59.3403651 | G61: 50.70737857 | H61: 44.05953236 | I61: 63.17333291 | J61: 56.34439321 | K61: 58.69937748 | L61: 79.43732817 | M61: 100.3949601
A64: Annual | B64: 2006 | C64: 2007 | D64: 2008 | E64: 2009 | F64: 2010 | G64: 2011 | H64: 2012 | I64: 2013 | J64: 2014 | K64: 2015 | L64: 2016 | M64: 2017 | N64: 2018 | O64: 2019 | P64: 2020
A65: EUI | B65: =IF(Year.Indicator="FY", (((SUM('CY05-CY07 Energy Data'!I64:T64)+SUM(FY.06.FuelOil.mmBtu))*'Reference Data'!$M$8)/'Energy Data'!B34),(((SUM('CY05-CY07 Energy Data'!O64:Z64)+SUM(CY.06.FuelOil.mmBtu))*'Reference Data'!$M$8)/'Energy Data'!B34)) -> #REF! | C65: =IF(Year.Indicator="FY", (((SUM('CY05-CY07 Energy Data'!U64:AF64)+SUM(FY.07.FuelOil.mmBtu))*'Reference Data'!$M$8)/'Energy Data'!C34),(((SUM('CY05-CY07 Energy Data'!AA64:AL64)+SUM(CY.06.FuelOil.mmBtu))*'Reference Data'!$M$8)/'Energy Data'!C34)) -> #REF! | D65: =IF(Year.Indicator="FY", ((SUM(FY.08.Total.mmBtu)*1000)/$D$34),((SUM(CY.08.Total.mmBtu)*1000)/$D$34)) -> 105.3151567 | E65: =IF(Year.Indicator="FY", ((SUM(FY.09.Total.mmBtu)*1000)/$E$34),((SUM(CY.09.Total.mmBtu)*1000)/$E$34)) -> 113.8888265 | F65: =IF(Year.Indicator="FY", ((SUM(FY.10.Total.mmBtu)*1000)/$F$34),((SUM(CY.10.Total.mmBtu)*1000)/$F$34)) -> 119.9812405 | G65: =IF(Year.Indicator="FY", ((SUM(FY.11.Total.mmBtu)*1000)/$G$34),((SUM(CY.11.Total.mmBtu)*1000)/$G$34)) -> 122.2995115 | H65: =IF(Year.Indicator="FY", ((SUM(FY.12.Total.mmBtu)*1000)/$H$34),((SUM(CY.12.Total.mmBtu)*1000)/$H$34)) -> 120.7834826 | I65: =IF(Year.Indicator="FY", ((SUM(FY.13.Total.mmBtu)*1000)/$I$34),((SUM(CY.13.Total.mmBtu)*1000)/$I$34)) -> 125.0071161 | J65: =IF(Year.Indicator="FY", ((SUM(FY.14.Total.mmBtu)*1000)/$J$34),((SUM(CY.14.Total.mmBtu)*1000)/$J$34)) -> 117.262319 | K65: =IF(Year.Indicator="FY", ((SUM(FY.15.Total.mmBtu)*1000)/$K$34),((SUM(CY.15.Total.mmBtu)*1000)/$K$34)) -> 108.6655112 | L65: =IF(Year.Indicator="FY", ((SUM(FY.16.Total.mmBtu)*1000)/$L$34),((SUM(CY.16.Total.mmBtu)*1000)/$L$34)) -> 88.0687848 | M65: =IF(Year.Indicator="FY", ((SUM(FY.17.Total.mmBtu)*1000)/$M$34),((SUM(CY.17.Total.mmBtu)*1000)/$M$34)) -> 88.95562945 | N65: =IF(Year.Indicator="FY", ((SUM(FY.18.Total.mmBtu)*1000)/$N$34),((SUM(CY.18.Total.mmBtu)*1000)/$N$34)) -> 84.16499384 | O65: =IF(Year.Indicator="FY", ((SUM(FY.19.Total.mmBtu)*1000)/$O$34),((SUM(CY.19.Total.mmBtu)*1000)/$O$34)) -> 72.65446037 | P65: =IF(Year.Indicator="FY", ((SUM(FY.20.Total.mmBtu)*1000)/$P$34),((SUM(CY.20.Total.mmBtu)*1000)/$P$34)) -> 41.7189133
A68: Annual (Fiscal or Calendar) | B68: 2008 | C68: 2009 | D68: 2010 | E68: 2011 | F68: 2012 | G68: 2013 | H68: 2014 | I68: 2015 | J68: 2016 | K68: 2017 | L68: 2018 | M68: 2019 | N68: 2020
A69: Demand (kW) | B69: =IF(Year.Indicator="FY",MAX(FY.08.Elec.kW),MAX(CY.08.Elec.kW)) -> 2752 | C69: =IF(Year.Indicator="FY",MAX(FY.09.Elec.kW),MAX(CY.09.Elec.kW)) -> 2791.2 | D69: =IF(Year.Indicator="FY",MAX(FY.10.Elec.kW),MAX(CY.10.Elec.kW)) -> 4379.84 | E69: =IF(Year.Indicator="FY",MAX(FY.11.Elec.kW),MAX(CY.11.Elec.kW)) -> 4668.64 | F69: =IF(Year.Indicator="FY",MAX(FY.12.Elec.kW),MAX(CY.12.Elec.kW)) -> 5587.26 | G69: =IF(Year.Indicator="FY",MAX(FY.13.Elec.kW),MAX(CY.13.Elec.kW)) -> 5134.32 | H69: =IF(Year.Indicator="FY",MAX(FY.14.Elec.kW),MAX(CY.14.Elec.kW)) -> 5314 | I69: =IF(Year.Indicator="FY",MAX(FY.15.Elec.kW),MAX(CY.15.Elec.kW)) -> 5184.3 | J69: =IF(Year.Indicator="FY",MAX(FY.16.Elec.kW),MAX(CY.16.Elec.kW)) -> 5090.82 | K69: =IF(Year.Indicator="FY",MAX(FY.17.Elec.kW),MAX(CY.17.Elec.kW)) -> 4566.42 | L69: =IF(Year.Indicator="FY",MAX(FY.18.Elec.kW),MAX(CY.18.Elec.kW)) -> 3972.45 | M69: =IF(Year.Indicator="FY",MAX(FY.19.Elec.kW),MAX(CY.19.Elec.kW)) -> 3665.36 | N69: =IF(Year.Indicator="FY",MAX(FY.20.Elec.kW),MAX(CY.20.Elec.kW)) -> 2783.5
A71: GHG Emissions
A72: Current (Fiscal or Calendar)
A73: Emissions tCO2e | B73: =IF(Year.Indicator= "FY", "Jul", "Jan") -> Jan | C73: =IF(Year.Indicator= "FY", "Aug", "Feb") -> Feb | D73: =IF(Year.Indicator= "FY", "Sep", "Mar") -> Mar | E73: =IF(Year.Indicator= "FY", "Oct", "Apr") -> Apr | F73: =IF(Year.Indicator= "FY", "Nov", "May") -> May | G73: =IF(Year.Indicator= "FY", "Dec", "Jun") -> Jun | H73: =IF(Year.Indicator= "FY", "Jan", "Jul") -> Jul | I73: =IF(Year.Indicator= "FY", "Feb", "Aug") -> Aug | J73: =IF(Year.Indicator= "FY", "Mar", "Sep") -> Sep | K73: =IF(Year.Indicator= "FY", "Apr", "Oct") -> Oct | L73: =IF(Year.Indicator= "FY", "May", "Nov") -> Nov | M73: =IF(Year.Indicator= "FY", "Jun", "Dec") -> Dec
A74: Electricity | B74: =B25*'Reference Data'!$W$13 -> 469.35912 | C74: =C25*'Reference Data'!$W$13 -> 462.88552 | D74: =D25*'Reference Data'!$W$13 -> 436.8524 | E74: =E25*'Reference Data'!$W$13 -> 425.82416 | F74: =F25*'Reference Data'!$W$13 -> 469.6828 | G74: =G25*'Reference Data'!$W$13 -> 447.55696 | H74: =H25*'Reference Data'!$W$13 -> 373.08744 | I74: =I25*'Reference Data'!$W$13 -> 573.8384 | J74: =J25*'Reference Data'!$W$13 -> 484.43336 | K74: =K25*'Reference Data'!$W$13 -> 449.66088 | L74: =L25*'Reference Data'!$W$13 -> 448.92104 | M74: =M25*'Reference Data'!$W$13 -> 448.55112
A75: Gas | B75: =B26*'Reference Data'!$E$5*'Reference Data'!$M$8*'Reference Data'!$I$5 -> 1.529932 | C75: =C26*'Reference Data'!$E$5*'Reference Data'!$M$8*'Reference Data'!$I$5 -> 2.771102 | D75: =D26*'Reference Data'!$E$5*'Reference Data'!$M$8*'Reference Data'!$I$5 -> 3.049732 | E75: =E26*'Reference Data'!$E$5*'Reference Data'!$M$8*'Reference Data'!$I$5 -> 2.720442 | F75: =F26*'Reference Data'!$E$5*'Reference Data'!$M$8*'Reference Data'!$I$5 -> 3.16625 | G75: =G26*'Reference Data'!$E$5*'Reference Data'!$M$8*'Reference Data'!$I$5 -> 1.859222 | H75: =H26*'Reference Data'!$E$5*'Reference Data'!$M$8*'Reference Data'!$I$5 -> 1.36782 | I75: =I26*'Reference Data'!$E$5*'Reference Data'!$M$8*'Reference Data'!$I$5 -> 1.41848 | J75: =J26*'Reference Data'!$E$5*'Reference Data'!$M$8*'Reference Data'!$I$5 -> 2.750838 | K75: =K26*'Reference Data'!$E$5*'Reference Data'!$M$8*'Reference Data'!$I$5 -> 2.674848 | L75: =L26*'Reference Data'!$E$5*'Reference Data'!$M$8*'Reference Data'!$I$5 -> 2.978808 | M75: =M26*'Reference Data'!$E$5*'Reference Data'!$M$8*'Reference Data'!$I$5 -> 2.679914
A76: Steam | B76: =B27*'Reference Data'!$M$10*'Reference Data'!$W$14 -> 323.5224742 | C76: =C27*'Reference Data'!$M$10*'Reference Data'!$W$14 -> 282.3207754 | D76: =D27*'Reference Data'!$M$10*'Reference Data'!$W$14 -> 249.8843418 | E76: =E27*'Reference Data'!$M$10*'Reference Data'!$W$14 -> 146.3353607 | F76: =F27*'Reference Data'!$M$10*'Reference Data'!$W$14 -> 72.40010061 | G76: =G27*'Reference Data'!$M$10*'Reference Data'!$W$14 -> 38.18090121 | H76: =H27*'Reference Data'!$M$10*'Reference Data'!$W$14 -> 41.74643284 | I76: =I27*'Reference Data'!$M$10*'Reference Data'!$W$14 -> 39.76558194 | J76: =J27*'Reference Data'!$M$10*'Reference Data'!$W$14 -> 48.62988974 | K76: =K27*'Reference Data'!$M$10*'Reference Data'!$W$14 -> 79.92733406 | L76: =L27*'Reference Data'!$M$10*'Reference Data'!$W$14 -> 193.1329633 | M76: =M27*'Reference Data'!$M$10*'Reference Data'!$W$14 -> 307.8737521
A77: Diesel Fuel | B77: =B28*'Reference Data'!$E$7*'Reference Data'!$M$8*'Reference Data'!$I$7 -> 0 | C77: =C28*'Reference Data'!$E$7*'Reference Data'!$M$8*'Reference Data'!$I$7 -> 0 | D77: =D28*'Reference Data'!$E$7*'Reference Data'!$M$8*'Reference Data'!$I$7 -> 0 | E77: =E28*'Reference Data'!$E$7*'Reference Data'!$M$8*'Reference Data'!$I$7 -> 0 | F77: =F28*'Reference Data'!$E$7*'Reference Data'!$M$8*'Reference Data'!$I$7 -> 0 | G77: =G28*'Reference Data'!$E$7*'Reference Data'!$M$8*'Reference Data'!$I$7 -> 0 | H77: =H28*'Reference Data'!$E$7*'Reference Data'!$M$8*'Reference Data'!$I$7 -> 0 | I77: =I28*'Reference Data'!$E$7*'Reference Data'!$M$8*'Reference Data'!$I$7 -> 0 | J77: =J28*'Reference Data'!$E$7*'Reference Data'!$M$8*'Reference Data'!$I$7 -> 0 | K77: =K28*'Reference Data'!$E$7*'Reference Data'!$M$8*'Reference Data'!$I$7 -> 0 | L77: =L28*'Reference Data'!$E$7*'Reference Data'!$M$8*'Reference Data'!$I$7 -> 0 | M77: =M28*'Reference Data'!$E$7*'Reference Data'!$M$8*'Reference Data'!$I$7 -> 2.0524218
A78: Fuel Oil - #2 | B78: =B29*'Reference Data'!$E$8*'Reference Data'!$M$8*'Reference Data'!$I$8 -> 0 | C78: =C29*'Reference Data'!$E$8*'Reference Data'!$M$8*'Reference Data'!$I$8 -> 0 | D78: =D29*'Reference Data'!$E$8*'Reference Data'!$M$8*'Reference Data'!$I$8 -> 0 | E78: =E29*'Reference Data'!$E$8*'Reference Data'!$M$8*'Reference Data'!$I$8 -> 0 | F78: =F29*'Reference Data'!$E$8*'Reference Data'!$M$8*'Reference Data'!$I$8 -> 0 | G78: =G29*'Reference Data'!$E$8*'Reference Data'!$M$8*'Reference Data'!$I$8 -> 0 | H78: =H29*'Reference Data'!$E$8*'Reference Data'!$M$8*'Reference Data'!$I$8 -> 0 | I78: =I29*'Reference Data'!$E$8*'Reference Data'!$M$8*'Reference Data'!$I$8 -> 0 | J78: =J29*'Reference Data'!$E$8*'Reference Data'!$M$8*'Reference Data'!$I$8 -> 0 | K78: =K29*'Reference Data'!$E$8*'Reference Data'!$M$8*'Reference Data'!$I$8 -> 0 | L78: =L29*'Reference Data'!$E$8*'Reference Data'!$M$8*'Reference Data'!$I$8 -> 0 | M78: =M29*'Reference Data'!$E$8*'Reference Data'!$M$8*'Reference Data'!$I$8 -> 0
A79: Fuel Oil - #4 | B79: =B30*'Reference Data'!$E$9*'Reference Data'!$M$8*'Reference Data'!$I$9 -> 0 | C79: =C30*'Reference Data'!$E$9*'Reference Data'!$M$8*'Reference Data'!$I$9 -> 0 | D79: =D30*'Reference Data'!$E$9*'Reference Data'!$M$8*'Reference Data'!$I$9 -> 0 | E79: =E30*'Reference Data'!$E$9*'Reference Data'!$M$8*'Reference Data'!$I$9 -> 0 | F79: =F30*'Reference Data'!$E$9*'Reference Data'!$M$8*'Reference Data'!$I$9 -> 0 | G79: =G30*'Reference Data'!$E$9*'Reference Data'!$M$8*'Reference Data'!$I$9 -> 0 | H79: =H30*'Reference Data'!$E$9*'Reference Data'!$M$8*'Reference Data'!$I$9 -> 0 | I79: =I30*'Reference Data'!$E$9*'Reference Data'!$M$8*'Reference Data'!$I$9 -> 0 | J79: =J30*'Reference Data'!$E$9*'Reference Data'!$M$8*'Reference Data'!$I$9 -> 0 | K79: =K30*'Reference Data'!$E$9*'Reference Data'!$M$8*'Reference Data'!$I$9 -> 0 | L79: =L30*'Reference Data'!$E$9*'Reference Data'!$M$8*'Reference Data'!$I$9 -> 0 | M79: =M30*'Reference Data'!$E$9*'Reference Data'!$M$8*'Reference Data'!$I$9 -> 0
A80: Fuel Oil - #6 | B80: =B31*'Reference Data'!$E$10*'Reference Data'!$M$8*'Reference Data'!$I$10 -> 0 | C80: =C31*'Reference Data'!$E$10*'Reference Data'!$M$8*'Reference Data'!$I$10 -> 0 | D80: =D31*'Reference Data'!$E$10*'Reference Data'!$M$8*'Reference Data'!$I$10 -> 0 | E80: =E31*'Reference Data'!$E$10*'Reference Data'!$M$8*'Reference Data'!$I$10 -> 0 | F80: =F31*'Reference Data'!$E$10*'Reference Data'!$M$8*'Reference Data'!$I$10 -> 0 | G80: =G31*'Reference Data'!$E$10*'Reference Data'!$M$8*'Reference Data'!$I$10 -> 0 | H80: =H31*'Reference Data'!$E$10*'Reference Data'!$M$8*'Reference Data'!$I$10 -> 0 | I80: =I31*'Reference Data'!$E$10*'Reference Data'!$M$8*'Reference Data'!$I$10 -> 0 | J80: =J31*'Reference Data'!$E$10*'Reference Data'!$M$8*'Reference Data'!$I$10 -> 0 | K80: =K31*'Reference Data'!$E$10*'Reference Data'!$M$8*'Reference Data'!$I$10 -> 0 | L80: =L31*'Reference Data'!$E$10*'Reference Data'!$M$8*'Reference Data'!$I$10 -> 0 | M80: =M31*'Reference Data'!$E$10*'Reference Data'!$M$8*'Reference Data'!$I$10 -> 0
A81: Total | B81: =SUM(B74:B76) -> 794.4115262 | C81: 747.9773974 | D81: 689.7864738 | E81: 574.8799627 | F81: 545.2491506 | G81: 487.5970832 | H81: 416.2016928 | I81: 615.0224619 | J81: 535.8140877 | K81: 532.2630621 | L81: 645.0328113 | M81: 759.1047861
A84: Annual Emissions (tCO2e) | B84: 2006 | C84: 2007 | D84: 2008 | E84: 2009 | F84: 2010 | G84: 2011 | H84: 2012 | I84: 2013 | J84: 2014 | K84: 2015 | L84: 2016 | M84: 2017 | N84: 2018 | O84: 2019 | P84: 2020 | Q84: 2021 | R84: 2022 | S84: 2023 | T84: 2024 | U84: 2025
A85: Electricity | B85: =IF(Year.Indicator="FY",(SUM('CY05-CY07 Energy Data'!I61:T61)*'Reference Data'!$I$13),(SUM('CY05-CY07 Energy Data'!O61:Z61)*'Reference Data'!$I$13)) -> #REF! | C85: =IF(Year.Indicator="FY",(SUM('CY05-CY07 Energy Data'!U61:AF61)*'Reference Data'!$J$13),(SUM('CY05-CY07 Energy Data'!AA61:AL61)*'Reference Data'!$J$13)) -> #REF! | D85: =IF(Year.Indicator="FY",(SUM(FY.08.Elec.kWh)*'Reference Data'!$K$13),((SUM(CY.08.Elec.kWh)*'Reference Data'!$K$13))) -> 4582.69952 | E85: =IF(Year.Indicator="FY",(SUM(FY.09.Elec.kWh)*'Reference Data'!$L$13),((SUM(CY.09.Elec.kWh)*'Reference Data'!$L$13))) -> 4776.70452 | F85: =IF(Year.Indicator="FY",(SUM(FY.10.Elec.kWh)*'Reference Data'!$M$13),((SUM(CY.10.Elec.kWh)*'Reference Data'!$M$13))) -> 5548.305912 | G85: =IF(Year.Indicator="FY",(SUM(FY.11.Elec.kWh)*'Reference Data'!$N$13),((SUM(CY.11.Elec.kWh)*'Reference Data'!$N$13))) -> 7735.135968 | H85: =IF(Year.Indicator="FY",(SUM(FY.12.Elec.kWh)*'Reference Data'!$O$13),((SUM(CY.12.Elec.kWh)*'Reference Data'!$O$13))) -> 9701.983872 | I85: =IF(Year.Indicator="FY",(SUM(FY.13.Elec.kWh)*'Reference Data'!$P$13),((SUM(CY.13.Elec.kWh)*'Reference Data'!$P$13))) -> 8579.723416 | J85: =IF(Year.Indicator="FY",(SUM(FY.14.Elec.kWh)*'Reference Data'!$Q$13),((SUM(CY.14.Elec.kWh)*'Reference Data'!$Q$13))) -> 8887.38224 | K85: =IF(Year.Indicator="FY",(SUM(FY.15.Elec.kWh)*'Reference Data'!$R$13),((SUM(CY.15.Elec.kWh)*'Reference Data'!$R$13))) -> 7935.03568 | L85: =IF(Year.Indicator="FY",(SUM(FY.16.Elec.kWh)*'Reference Data'!$S$13),((SUM(CY.16.Elec.kWh)*'Reference Data'!$S$13))) -> 7354.052464 | M85: =IF(Year.Indicator="FY",(SUM(FY.17.Elec.kWh)*'Reference Data'!$T$13),((SUM(CY.17.Elec.kWh)*'Reference Data'!$T$13))) -> 6301.547632 | N85: =IF(Year.Indicator="FY",(SUM(FY.18.Elec.kWh)*'Reference Data'!$U$13),((SUM(CY.18.Elec.kWh)*'Reference Data'!$U$13))) -> 6445.279016 | O85: =IF(Year.Indicator="FY",(SUM(FY.19.Elec.kWh)*'Reference Data'!$V$13),((SUM(CY.19.Elec.kWh)*'Reference Data'!$V$13))) -> 5490.6532 | P85: =IF(Year.Indicator="FY",(SUM(FY.20.Elec.kWh)*'Reference Data'!$W$13),((SUM(CY.20.Elec.kWh)*'Reference Data'!$W$13))) -> 3265.90808
A86: Gas | B86: =IF(Year.Indicator="FY", (SUM('CY05-CY07 Energy Data'!I62:T62)*'Reference Data'!$E$5*'Reference Data'!$M$8*'Reference Data'!$I$5),(SUM('CY05-CY07 Energy Data'!O62:Z62)*'Reference Data'!$E$5*'Reference Data'!$M$8*'Reference Data'!$I$5)) -> #REF! | C86: =IF(Year.Indicator="FY", (SUM('CY05-CY07 Energy Data'!U62:AF62)*'Reference Data'!$E$5*'Reference Data'!$M$8*'Reference Data'!$I$5),(SUM('CY05-CY07 Energy Data'!AA62:AL62)*'Reference Data'!$E$5*'Reference Data'!$M$8*'Reference Data'!$I$5)) -> #REF! | D86: =IF(Year.Indicator="FY",(SUM(FY.08.Gas.Therms)*'Reference Data'!$E$5*'Reference Data'!$M$8*'Reference Data'!$I$5),(SUM(CY.08.Gas.Therms)*'Reference Data'!$E$5*'Reference Data'!$M$8*'Reference Data'!$I$5)) -> 30.44666 | E86: =IF(Year.Indicator="FY",(SUM(FY.09.Gas.Therms)*'Reference Data'!$E$5*'Reference Data'!$M$8*'Reference Data'!$I$5),(SUM(CY.09.Gas.Therms)*'Reference Data'!$E$5*'Reference Data'!$M$8*'Reference Data'!$I$5)) -> 30.299746 | F86: =IF(Year.Indicator="FY",(SUM(FY.10.Gas.Therms)*'Reference Data'!$E$5*'Reference Data'!$M$8*'Reference Data'!$I$5),(SUM(CY.10.Gas.Therms)*'Reference Data'!$E$5*'Reference Data'!$M$8*'Reference Data'!$I$5)) -> 25.831534 | G86: =IF(Year.Indicator="FY",(SUM(FY.11.Gas.Therms)*'Reference Data'!$E$5*'Reference Data'!$M$8*'Reference Data'!$I$5),(SUM(CY.11.Gas.Therms)*'Reference Data'!$E$5*'Reference Data'!$M$8*'Reference Data'!$I$5)) -> 20.132284 | H86: =IF(Year.Indicator="FY",(SUM(FY.12.Gas.Therms)*'Reference Data'!$E$5*'Reference Data'!$M$8*'Reference Data'!$I$5),(SUM(CY.12.Gas.Therms)*'Reference Data'!$E$5*'Reference Data'!$M$8*'Reference Data'!$I$5)) -> 20.709808 | I86: =IF(Year.Indicator="FY",(SUM(FY.13.Gas.Therms)*'Reference Data'!$E$5*'Reference Data'!$M$8*'Reference Data'!$I$5),(SUM(CY.13.Gas.Therms)*'Reference Data'!$E$5*'Reference Data'!$M$8*'Reference Data'!$I$5)) -> 20.816194 | J86: =IF(Year.Indicator="FY",(SUM(FY.14.Gas.Therms)*'Reference Data'!$E$5*'Reference Data'!$M$8*'Reference Data'!$I$5),(SUM(CY.14.Gas.Therms)*'Reference Data'!$E$5*'Reference Data'!$M$8*'Reference Data'!$I$5)) -> 21.135352 | K86: =IF(Year.Indicator="FY",(SUM(FY.15.Gas.Therms)*'Reference Data'!$E$5*'Reference Data'!$M$8*'Reference Data'!$I$5),(SUM(CY.15.Gas.Therms)*'Reference Data'!$E$5*'Reference Data'!$M$8*'Reference Data'!$I$5)) -> 23.25294 | L86: =IF(Year.Indicator="FY",(SUM(FY.16.Gas.Therms)*'Reference Data'!$E$5*'Reference Data'!$M$8*'Reference Data'!$I$5),(SUM(CY.16.Gas.Therms)*'Reference Data'!$E$5*'Reference Data'!$M$8*'Reference Data'!$I$5)) -> 47.600136 | M86: =IF(Year.Indicator="FY",(SUM(FY.17.Gas.Therms)*'Reference Data'!$E$5*'Reference Data'!$M$8*'Reference Data'!$I$5),(SUM(CY.17.Gas.Therms)*'Reference Data'!$E$5*'Reference Data'!$M$8*'Reference Data'!$I$5)) -> 167.639006 | N86: =IF(Year.Indicator="FY",(SUM(FY.18.Gas.Therms)*'Reference Data'!$E$5*'Reference Data'!$M$8*'Reference Data'!$I$5),(SUM(CY.18.Gas.Therms)*'Reference Data'!$E$5*'Reference Data'!$M$8*'Reference Data'!$I$5)) -> 28.030178 | O86: =IF(Year.Indicator="FY",(SUM(FY.19.Gas.Therms)*'Reference Data'!$E$5*'Reference Data'!$M$8*'Reference Data'!$I$5),(SUM(CY.19.Gas.Therms)*'Reference Data'!$E$5*'Reference Data'!$M$8*'Reference Data'!$I$5)) -> 28.967388 | P86: =IF(Year.Indicator="FY",(SUM(FY.20.Gas.Therms)*'Reference Data'!$E$5*'Reference Data'!$M$8*'Reference Data'!$I$5),(SUM(CY.20.Gas.Therms)*'Reference Data'!$E$5*'Reference Data'!$M$8*'Reference Data'!$I$5)) -> 20.096822
A87: Steam | B87: =IF(Year.Indicator="FY", (SUM('CY05-CY07 Energy Data'!I63:T63)*'Reference Data'!$M$10*'Reference Data'!$I$14),(SUM('CY05-CY07 Energy Data'!I63:T63)*'Reference Data'!$M$10*'Reference Data'!$I$14)) -> #REF! | C87: =IF(Year.Indicator="FY", (SUM('CY05-CY07 Energy Data'!U63:AF63)*'Reference Data'!$M$10*'Reference Data'!$J$14),(SUM('CY05-CY07 Energy Data'!AA63:AL63)*'Reference Data'!$M$10*'Reference Data'!$J$14)) -> #REF! | D87: =IF(Year.Indicator="FY",(SUM(FY.08.Steam.mlbs)*'Reference Data'!$M$10*'Reference Data'!K14),(SUM(CY.08.Steam.mlbs)*'Reference Data'!$M$10*'Reference Data'!K14)) -> 2286.097683 | E87: =IF(Year.Indicator="FY",(SUM(FY.09.Steam.mlbs)*'Reference Data'!$M$10*'Reference Data'!L14),(SUM(CY.09.Steam.mlbs)*'Reference Data'!$M$10*'Reference Data'!L14)) -> 2270.618371 | F87: =IF(Year.Indicator="FY",(SUM(FY.10.Steam.mlbs)*'Reference Data'!$M$10*'Reference Data'!M14),(SUM(CY.10.Steam.mlbs)*'Reference Data'!$M$10*'Reference Data'!M14)) -> 2103.367545 | G87: =IF(Year.Indicator="FY",(SUM(FY.11.Steam.mlbs)*'Reference Data'!$M$10*'Reference Data'!N14),(SUM(CY.11.Steam.mlbs)*'Reference Data'!$M$10*'Reference Data'!N14)) -> 2712.760281 | H87: =IF(Year.Indicator="FY",(SUM(FY.12.Steam.mlbs)*'Reference Data'!$M$10*'Reference Data'!O14),(SUM(CY.12.Steam.mlbs)*'Reference Data'!$M$10*'Reference Data'!O14)) -> 3626.085694 | I87: =IF(Year.Indicator="FY",(SUM(FY.13.Steam.mlbs)*'Reference Data'!$M$10*'Reference Data'!P14),(SUM(CY.13.Steam.mlbs)*'Reference Data'!$M$10*'Reference Data'!P14)) -> 4088.814566 | J87: =IF(Year.Indicator="FY",(SUM(FY.14.Steam.mlbs)*'Reference Data'!$M$10*'Reference Data'!Q14),(SUM(CY.14.Steam.mlbs)*'Reference Data'!$M$10*'Reference Data'!Q14)) -> 3765.009556 | K87: =IF(Year.Indicator="FY",(SUM(FY.15.Steam.mlbs)*'Reference Data'!$M$10*'Reference Data'!R14),(SUM(CY.15.Steam.mlbs)*'Reference Data'!$M$10*'Reference Data'!R14)) -> 3456.377305 | L87: =IF(Year.Indicator="FY",(SUM(FY.16.Steam.mlbs)*'Reference Data'!$M$10*'Reference Data'!S14),(SUM(CY.16.Steam.mlbs)*'Reference Data'!$M$10*'Reference Data'!S14)) -> 2276.66367 | M87: =IF(Year.Indicator="FY",(SUM(FY.17.Steam.mlbs)*'Reference Data'!$M$10*'Reference Data'!T14),(SUM(CY.17.Steam.mlbs)*'Reference Data'!$M$10*'Reference Data'!T14)) -> 2260.739033 | N87: =IF(Year.Indicator="FY",(SUM(FY.18.Steam.mlbs)*'Reference Data'!$M$10*'Reference Data'!U14),(SUM(CY.18.Steam.mlbs)*'Reference Data'!$M$10*'Reference Data'!U14)) -> 2461.333136 | O87: =IF(Year.Indicator="FY",(SUM(FY.19.Steam.mlbs)*'Reference Data'!$M$10*'Reference Data'!V14),(SUM(CY.19.Steam.mlbs)*'Reference Data'!$M$10*'Reference Data'!V14)) -> 1823.719908 | P87: =IF(Year.Indicator="FY",(SUM(FY.20.Steam.mlbs)*'Reference Data'!$M$10*'Reference Data'!W14),(SUM(CY.20.Steam.mlbs)*'Reference Data'!$M$10*'Reference Data'!W14)) -> 985.0276343
A88: Diesel Fuel | B88: =IF(Year.Indicator="FY", (SUM(FY.06.Diesel.Gal)*'Reference Data'!$E$7*'Reference Data'!$M$8*'Reference Data'!$I$7),(SUM(CY.06.Diesel.Gal)*'Reference Data'!$E$7*'Reference Data'!$M$8*'Reference Data'!$I$7)) -> 12.62239407 | C88: =IF(Year.Indicator="FY", (SUM(FY.07.Diesel.Gal)*'Reference Data'!$E$7*'Reference Data'!$M$8*'Reference Data'!$I$7),(SUM(CY.07.Diesel.Gal)*'Reference Data'!$E$7*'Reference Data'!$M$8*'Reference Data'!$I$7)) -> 12.62239407 | D88: =IF(Year.Indicator="FY",(SUM(FY.08.Diesel.Gal)*'Reference Data'!$E$7*'Reference Data'!$M$8*'Reference Data'!$I$7),(SUM(CY.08.Diesel.Gal)*'Reference Data'!$E$7*'Reference Data'!$M$8*'Reference Data'!$I$7)) -> 12.62239407 | E88: =IF(Year.Indicator="FY",(SUM(FY.09.Diesel.Gal)*'Reference Data'!$E$7*'Reference Data'!$M$8*'Reference Data'!$I$7),(SUM(CY.09.Diesel.Gal)*'Reference Data'!$E$7*'Reference Data'!$M$8*'Reference Data'!$I$7)) -> 12.62239407 | F88: =IF(Year.Indicator="FY",(SUM(FY.10.Diesel.Gal)*'Reference Data'!$E$7*'Reference Data'!$M$8*'Reference Data'!$I$7),(SUM(CY.10.Diesel.Gal)*'Reference Data'!$E$7*'Reference Data'!$M$8*'Reference Data'!$I$7)) -> 12.62239407 | G88: =IF(Year.Indicator="FY",(SUM(FY.11.Diesel.Gal)*'Reference Data'!$E$7*'Reference Data'!$M$8*'Reference Data'!$I$7),(SUM(CY.11.Diesel.Gal)*'Reference Data'!$E$7*'Reference Data'!$M$8*'Reference Data'!$I$7)) -> 12.62239407 | H88: =IF(Year.Indicator="FY",(SUM(FY.12.Diesel.Gal)*'Reference Data'!$E$7*'Reference Data'!$M$8*'Reference Data'!$I$7),(SUM(CY.12.Diesel.Gal)*'Reference Data'!$E$7*'Reference Data'!$M$8*'Reference Data'!$I$7)) -> 5.479966206 | I88: =IF(Year.Indicator="FY",(SUM(FY.13.Diesel.Gal)*'Reference Data'!$E$7*'Reference Data'!$M$8*'Reference Data'!$I$7),(SUM(CY.13.Diesel.Gal)*'Reference Data'!$E$7*'Reference Data'!$M$8*'Reference Data'!$I$7)) -> 2.750245212 | J88: =IF(Year.Indicator="FY",(SUM(FY.14.Diesel.Gal)*'Reference Data'!$E$7*'Reference Data'!$M$8*'Reference Data'!$I$7),(SUM(CY.14.Diesel.Gal)*'Reference Data'!$E$7*'Reference Data'!$M$8*'Reference Data'!$I$7)) -> 1.12883199 | K88: =IF(Year.Indicator="FY",(SUM(FY.15.Diesel.Gal)*'Reference Data'!$E$7*'Reference Data'!$M$8*'Reference Data'!$I$7),(SUM(CY.15.Diesel.Gal)*'Reference Data'!$E$7*'Reference Data'!$M$8*'Reference Data'!$I$7)) -> 1.12883199 | L88: =IF(Year.Indicator="FY",(SUM(FY.16.Diesel.Gal)*'Reference Data'!$E$7*'Reference Data'!$M$8*'Reference Data'!$I$7),(SUM(CY.16.Diesel.Gal)*'Reference Data'!$E$7*'Reference Data'!$M$8*'Reference Data'!$I$7)) -> 1.12883199 | M88: =IF(Year.Indicator="FY",(SUM(FY.17.Diesel.Gal)*'Reference Data'!$E$7*'Reference Data'!$M$8*'Reference Data'!$I$7),(SUM(CY.17.Diesel.Gal)*'Reference Data'!$E$7*'Reference Data'!$M$8*'Reference Data'!$I$7)) -> 1.12883199 | N88: =IF(Year.Indicator="FY",(SUM(FY.18.Diesel.Gal)*'Reference Data'!$E$7*'Reference Data'!$M$8*'Reference Data'!$I$7),(SUM(CY.18.Diesel.Gal)*'Reference Data'!$E$7*'Reference Data'!$M$8*'Reference Data'!$I$7)) -> 1.12883199 | O88: =IF(Year.Indicator="FY",(SUM(FY.19.Diesel.Gal)*'Reference Data'!$E$7*'Reference Data'!$M$8*'Reference Data'!$I$7),(SUM(CY.19.Diesel.Gal)*'Reference Data'!$E$7*'Reference Data'!$M$8*'Reference Data'!$I$7)) -> 2.0524218 | P88: =IF(Year.Indicator="FY",(SUM(FY.20.Diesel.Gal)*'Reference Data'!$E$7*'Reference Data'!$M$8*'Reference Data'!$I$7),(SUM(CY.20.Diesel.Gal)*'Reference Data'!$E$7*'Reference Data'!$M$8*'Reference Data'!$I$7)) -> 0
A89: Fuel Oil - #2 | B89: =IF(Year.Indicator="FY", (SUM(FY.06.Fuel2.Gal)*'Reference Data'!$E$8*'Reference Data'!$M$8*'Reference Data'!$I$8),(SUM(CY.06.Fuel2.Gal)*'Reference Data'!$E$8*'Reference Data'!$M$8*'Reference Data'!$I$8)) -> 0 | C89: =IF(Year.Indicator="FY", (SUM(FY.07.Fuel2.Gal)*'Reference Data'!$E$8*'Reference Data'!$M$8*'Reference Data'!$I$8),(SUM(CY.07.Fuel2.Gal)*'Reference Data'!$E$8*'Reference Data'!$M$8*'Reference Data'!$I$8)) -> 0 | D89: =IF(Year.Indicator="FY",(SUM(FY.08.Fuel2.Gal)*'Reference Data'!$E$8*'Reference Data'!$M$8*'Reference Data'!$I$8),(SUM(CY.08.Fuel2.Gal)*'Reference Data'!$E$8*'Reference Data'!$M$8*'Reference Data'!$I$8)) -> 0 | E89: =IF(Year.Indicator="FY",(SUM(FY.09.Fuel2.Gal)*'Reference Data'!$E$8*'Reference Data'!$M$8*'Reference Data'!$I$8),(SUM(CY.09.Fuel2.Gal)*'Reference Data'!$E$8*'Reference Data'!$M$8*'Reference Data'!$I$8)) -> 0 | F89: =IF(Year.Indicator="FY",(SUM(FY.10.Fuel2.Gal)*'Reference Data'!$E$8*'Reference Data'!$M$8*'Reference Data'!$I$8),(SUM(CY.10.Fuel2.Gal)*'Reference Data'!$E$8*'Reference Data'!$M$8*'Reference Data'!$I$8)) -> 0 | G89: =IF(Year.Indicator="FY",(SUM(FY.11.Fuel2.Gal)*'Reference Data'!$E$8*'Reference Data'!$M$8*'Reference Data'!$I$8),(SUM(CY.11.Fuel2.Gal)*'Reference Data'!$E$8*'Reference Data'!$M$8*'Reference Data'!$I$8)) -> 0 | H89: =IF(Year.Indicator="FY",(SUM(FY.12.Fuel2.Gal)*'Reference Data'!$E$8*'Reference Data'!$M$8*'Reference Data'!$I$8),(SUM(CY.12.Fuel2.Gal)*'Reference Data'!$E$8*'Reference Data'!$M$8*'Reference Data'!$I$8)) -> 0 | I89: =IF(Year.Indicator="FY",(SUM(FY.13.Fuel2.Gal)*'Reference Data'!$E$8*'Reference Data'!$M$8*'Reference Data'!$I$8),(SUM(CY.13.Fuel2.Gal)*'Reference Data'!$E$8*'Reference Data'!$M$8*'Reference Data'!$I$8)) -> 0 | J89: =IF(Year.Indicator="FY",(SUM(FY.14.Fuel2.Gal)*'Reference Data'!$E$8*'Reference Data'!$M$8*'Reference Data'!$I$8),(SUM(CY.14.Fuel2.Gal)*'Reference Data'!$E$8*'Reference Data'!$M$8*'Reference Data'!$I$8)) -> 0 | K89: =IF(Year.Indicator="FY",(SUM(FY.15.Fuel2.Gal)*'Reference Data'!$E$8*'Reference Data'!$M$8*'Reference Data'!$I$8),(SUM(CY.15.Fuel2.Gal)*'Reference Data'!$E$8*'Reference Data'!$M$8*'Reference Data'!$I$8)) -> 0 | L89: =IF(Year.Indicator="FY",(SUM(FY.16.Fuel2.Gal)*'Reference Data'!$E$8*'Reference Data'!$M$8*'Reference Data'!$I$8),(SUM(CY.16.Fuel2.Gal)*'Reference Data'!$E$8*'Reference Data'!$M$8*'Reference Data'!$I$8)) -> 0 | M89: =IF(Year.Indicator="FY",(SUM(FY.17.Fuel2.Gal)*'Reference Data'!$E$8*'Reference Data'!$M$8*'Reference Data'!$I$8),(SUM(CY.17.Fuel2.Gal)*'Reference Data'!$E$8*'Reference Data'!$M$8*'Reference Data'!$I$8)) -> 0 | N89: =IF(Year.Indicator="FY",(SUM(FY.18.Fuel2.Gal)*'Reference Data'!$E$8*'Reference Data'!$M$8*'Reference Data'!$I$8),(SUM(CY.18.Fuel2.Gal)*'Reference Data'!$E$8*'Reference Data'!$M$8*'Reference Data'!$I$8)) -> 0 | O89: =IF(Year.Indicator="FY",(SUM(FY.19.Fuel2.Gal)*'Reference Data'!$E$8*'Reference Data'!$M$8*'Reference Data'!$I$8),(SUM(CY.19.Fuel2.Gal)*'Reference Data'!$E$8*'Reference Data'!$M$8*'Reference Data'!$I$8)) -> 0 | P89: =IF(Year.Indicator="FY",(SUM(FY.20.Fuel2.Gal)*'Reference Data'!$E$8*'Reference Data'!$M$8*'Reference Data'!$I$8),(SUM(CY.20.Fuel2.Gal)*'Reference Data'!$E$8*'Reference Data'!$M$8*'Reference Data'!$I$8)) -> 0
A90: Fuel Oil - #4 | B90: =IF(Year.Indicator="FY", (SUM(FY.06.Fuel4.Gal)*'Reference Data'!$E$9*'Reference Data'!$M$8*'Reference Data'!$I$9),(SUM(FY.06.Fuel4.Gal)*'Reference Data'!$E$9*'Reference Data'!$M$8*'Reference Data'!$I$9)) -> 0 | C90: =IF(Year.Indicator="FY", (SUM(FY.07.Fuel4.Gal)*'Reference Data'!$E$9*'Reference Data'!$M$8*'Reference Data'!$I$9),(SUM(FY.07.Fuel4.Gal)*'Reference Data'!$E$9*'Reference Data'!$M$8*'Reference Data'!$I$9)) -> 0 | D90: =IF(Year.Indicator="FY",(SUM(FY.08.Fuel4.Gal)*'Reference Data'!$E$9*'Reference Data'!$M$8*'Reference Data'!$I$9),(SUM(CY.08.Fuel4.Gal)*'Reference Data'!$E$9*'Reference Data'!$M$8*'Reference Data'!$I$9)) -> 0 | E90: =IF(Year.Indicator="FY",(SUM(FY.09.Fuel4.Gal)*'Reference Data'!$E$9*'Reference Data'!$M$8*'Reference Data'!$I$9),(SUM(CY.09.Fuel4.Gal)*'Reference Data'!$E$9*'Reference Data'!$M$8*'Reference Data'!$I$9)) -> 0 | F90: =IF(Year.Indicator="FY",(SUM(FY.10.Fuel4.Gal)*'Reference Data'!$E$9*'Reference Data'!$M$8*'Reference Data'!$I$9),(SUM(CY.10.Fuel4.Gal)*'Reference Data'!$E$9*'Reference Data'!$M$8*'Reference Data'!$I$9)) -> 0 | G90: =IF(Year.Indicator="FY",(SUM(FY.11.Fuel4.Gal)*'Reference Data'!$E$9*'Reference Data'!$M$8*'Reference Data'!$I$9),(SUM(CY.11.Fuel4.Gal)*'Reference Data'!$E$9*'Reference Data'!$M$8*'Reference Data'!$I$9)) -> 0 | H90: =IF(Year.Indicator="FY",(SUM(FY.12.Fuel4.Gal)*'Reference Data'!$E$9*'Reference Data'!$M$8*'Reference Data'!$I$9),(SUM(CY.12.Fuel4.Gal)*'Reference Data'!$E$9*'Reference Data'!$M$8*'Reference Data'!$I$9)) -> 0 | I90: =IF(Year.Indicator="FY",(SUM(FY.13.Fuel4.Gal)*'Reference Data'!$E$9*'Reference Data'!$M$8*'Reference Data'!$I$9),(SUM(CY.13.Fuel4.Gal)*'Reference Data'!$E$9*'Reference Data'!$M$8*'Reference Data'!$I$9)) -> 0 | J90: =IF(Year.Indicator="FY",(SUM(FY.14.Fuel4.Gal)*'Reference Data'!$E$9*'Reference Data'!$M$8*'Reference Data'!$I$9),(SUM(CY.14.Fuel4.Gal)*'Reference Data'!$E$9*'Reference Data'!$M$8*'Reference Data'!$I$9)) -> 0 | K90: =IF(Year.Indicator="FY",(SUM(FY.15.Fuel4.Gal)*'Reference Data'!$E$9*'Reference Data'!$M$8*'Reference Data'!$I$9),(SUM(CY.15.Fuel4.Gal)*'Reference Data'!$E$9*'Reference Data'!$M$8*'Reference Data'!$I$9)) -> 0 | L90: =IF(Year.Indicator="FY",(SUM(FY.16.Fuel4.Gal)*'Reference Data'!$E$9*'Reference Data'!$M$8*'Reference Data'!$I$9),(SUM(CY.16.Fuel4.Gal)*'Reference Data'!$E$9*'Reference Data'!$M$8*'Reference Data'!$I$9)) -> 0 | M90: =IF(Year.Indicator="FY",(SUM(FY.17.Fuel4.Gal)*'Reference Data'!$E$9*'Reference Data'!$M$8*'Reference Data'!$I$9),(SUM(CY.17.Fuel4.Gal)*'Reference Data'!$E$9*'Reference Data'!$M$8*'Reference Data'!$I$9)) -> 0 | N90: =IF(Year.Indicator="FY",(SUM(FY.18.Fuel4.Gal)*'Reference Data'!$E$9*'Reference Data'!$M$8*'Reference Data'!$I$9),(SUM(CY.18.Fuel4.Gal)*'Reference Data'!$E$9*'Reference Data'!$M$8*'Reference Data'!$I$9)) -> 0 | O90: =IF(Year.Indicator="FY",(SUM(FY.19.Fuel4.Gal)*'Reference Data'!$E$9*'Reference Data'!$M$8*'Reference Data'!$I$9),(SUM(CY.19.Fuel4.Gal)*'Reference Data'!$E$9*'Reference Data'!$M$8*'Reference Data'!$I$9)) -> 0 | P90: =IF(Year.Indicator="FY",(SUM(FY.20.Fuel4.Gal)*'Reference Data'!$E$9*'Reference Data'!$M$8*'Reference Data'!$I$9),(SUM(CY.20.Fuel4.Gal)*'Reference Data'!$E$9*'Reference Data'!$M$8*'Reference Data'!$I$9)) -> 0
A91: Fuel Oil - #6 | B91: =IF(Year.Indicator="FY", (SUM(FY.06.Fuel6.Gal)*'Reference Data'!$E$10*'Reference Data'!$M$8*'Reference Data'!$I$10),(SUM(FY.06.Fuel6.Gal)*'Reference Data'!$E$10*'Reference Data'!$M$8*'Reference Data'!$I$10)) -> 0 | C91: =IF(Year.Indicator="FY", (SUM(FY.07.Fuel6.Gal)*'Reference Data'!$E$10*'Reference Data'!$M$8*'Reference Data'!$I$10),(SUM(FY.07.Fuel6.Gal)*'Reference Data'!$E$10*'Reference Data'!$M$8*'Reference Data'!$I$10)) -> 0 | D91: =IF(Year.Indicator="FY",(SUM(FY.08.Fuel6.Gal)*'Reference Data'!$E$10*'Reference Data'!$M$8*'Reference Data'!$I$10),(SUM(CY.08.Fuel6.Gal)*'Reference Data'!$E$10*'Reference Data'!$M$8*'Reference Data'!$I$10)) -> 0 | E91: =IF(Year.Indicator="FY",(SUM(FY.09.Fuel6.Gal)*'Reference Data'!$E$10*'Reference Data'!$M$8*'Reference Data'!$I$10),(SUM(CY.09.Fuel6.Gal)*'Reference Data'!$E$10*'Reference Data'!$M$8*'Reference Data'!$I$10)) -> 0 | F91: =IF(Year.Indicator="FY",(SUM(FY.10.Fuel6.Gal)*'Reference Data'!$E$10*'Reference Data'!$M$8*'Reference Data'!$I$10),(SUM(CY.10.Fuel6.Gal)*'Reference Data'!$E$10*'Reference Data'!$M$8*'Reference Data'!$I$10)) -> 0 | G91: =IF(Year.Indicator="FY",(SUM(FY.11.Fuel6.Gal)*'Reference Data'!$E$10*'Reference Data'!$M$8*'Reference Data'!$I$10),(SUM(CY.11.Fuel6.Gal)*'Reference Data'!$E$10*'Reference Data'!$M$8*'Reference Data'!$I$10)) -> 0 | H91: =IF(Year.Indicator="FY",(SUM(FY.12.Fuel6.Gal)*'Reference Data'!$E$10*'Reference Data'!$M$8*'Reference Data'!$I$10),(SUM(CY.12.Fuel6.Gal)*'Reference Data'!$E$10*'Reference Data'!$M$8*'Reference Data'!$I$10)) -> 0 | I91: =IF(Year.Indicator="FY",(SUM(FY.13.Fuel6.Gal)*'Reference Data'!$E$10*'Reference Data'!$M$8*'Reference Data'!$I$10),(SUM(CY.13.Fuel6.Gal)*'Reference Data'!$E$10*'Reference Data'!$M$8*'Reference Data'!$I$10)) -> 0 | J91: =IF(Year.Indicator="FY",(SUM(FY.14.Fuel6.Gal)*'Reference Data'!$E$10*'Reference Data'!$M$8*'Reference Data'!$I$10),(SUM(CY.14.Fuel6.Gal)*'Reference Data'!$E$10*'Reference Data'!$M$8*'Reference Data'!$I$10)) -> 0 | K91: =IF(Year.Indicator="FY",(SUM(FY.15.Fuel6.Gal)*'Reference Data'!$E$10*'Reference Data'!$M$8*'Reference Data'!$I$10),(SUM(CY.15.Fuel6.Gal)*'Reference Data'!$E$10*'Reference Data'!$M$8*'Reference Data'!$I$10)) -> 0 | L91: =IF(Year.Indicator="FY",(SUM(FY.16.Fuel6.Gal)*'Reference Data'!$E$10*'Reference Data'!$M$8*'Reference Data'!$I$10),(SUM(CY.16.Fuel6.Gal)*'Reference Data'!$E$10*'Reference Data'!$M$8*'Reference Data'!$I$10)) -> 0 | M91: =IF(Year.Indicator="FY",(SUM(FY.17.Fuel6.Gal)*'Reference Data'!$E$10*'Reference Data'!$M$8*'Reference Data'!$I$10),(SUM(CY.17.Fuel6.Gal)*'Reference Data'!$E$10*'Reference Data'!$M$8*'Reference Data'!$I$10)) -> 0 | N91: =IF(Year.Indicator="FY",(SUM(FY.18.Fuel6.Gal)*'Reference Data'!$E$10*'Reference Data'!$M$8*'Reference Data'!$I$10),(SUM(CY.18.Fuel6.Gal)*'Reference Data'!$E$10*'Reference Data'!$M$8*'Reference Data'!$I$10)) -> 0 | O91: =IF(Year.Indicator="FY",(SUM(FY.19.Fuel6.Gal)*'Reference Data'!$E$10*'Reference Data'!$M$8*'Reference Data'!$I$10),(SUM(CY.19.Fuel6.Gal)*'Reference Data'!$E$10*'Reference Data'!$M$8*'Reference Data'!$I$10)) -> 0 | P91: =IF(Year.Indicator="FY",(SUM(FY.20.Fuel6.Gal)*'Reference Data'!$E$10*'Reference Data'!$M$8*'Reference Data'!$I$10),(SUM(CY.20.Fuel6.Gal)*'Reference Data'!$E$10*'Reference Data'!$M$8*'Reference Data'!$I$10)) -> 0
A92: Total | B92: =SUM(B85:B91) -> #REF! | C92: #REF! | D92: 6911.866257 | E92: 7090.245031 | F92: 7690.127385 | G92: 10480.65093 | H92: 13354.25934 | I92: 12692.10442 | J92: 12674.65598 | K92: 11415.79476 | L92: 9679.445102 | M92: 8731.054503 | N92: 8935.771162 | O92: 7345.392918 | P92: 4271.032536

Sheet Scope 1
A1: John Jay College Scope 1 Emissions
B4: 2007-07-01 | C4: 2007-08-01 | D4: 2007-09-01 | E4: 2007-10-01 | F4: 2007-11-01 | G4: 2007-12-01 | H4: 2008-01-01 | I4: 2008-02-01 | J4: 2008-03-01 | K4: 2008-04-01 | L4: 2008-05-01 | M4: 2008-06-01 | N4: 2008-07-01 | O4: 2008-08-01 | P4: 2008-09-01 | Q4: 2008-10-01 | R4: 2008-11-01 | S4: 2008-12-01 | T4: 2009-01-01 | U4: 2009-02-01 | V4: 2009-03-01 | W4: 2009-04-01 | X4: 2009-05-01 | Y4: 2009-06-01 | Z4: 2009-07-01 | AA4: 2009-08-01 | AB4: 2009-09-01 | AC4: 2009-10-01 | AD4: 2009-11-01 | AE4: 2009-12-01 | AF4: 2010-01-01 | AG4: 2010-02-01 | AH4: 2010-03-01 | AI4: 2010-04-01 | AJ4: 2010-05-01 | AK4: 2010-06-01 | AL4: 2010-07-01 | AM4: 2010-08-01 | AN4: 2010-09-01 | AO4: 2010-10-01 | AP4: 2010-11-01 | AQ4: 2010-12-01 | AR4: 2011-01-01 | AS4: 2011-02-01 | AT4: 2011-03-01 | AU4: 2011-04-01 | AV4: 2011-05-01 | AW4: 2011-06-01 | AX4: 2011-07-01 | AY4: 2011-08-01 | AZ4: 2011-09-01 | BA4: 2011-10-01 | BB4: 2011-11-01 | BC4: 2011-12-01 | BD4: 2012-01-01 | BE4: 2012-02-01 | BF4: 2012-03-01 | BG4: 2012-04-01 | BH4: 2012-05-01 | BI4: 2012-06-01 | BJ4: 2012-07-01 | BK4: 2012-08-01 | BL4: 2012-09-01 | BM4: 2012-10-01 | BN4: 2012-11-01 | BO4: 2012-12-01 | BP4: 2013-01-01 | BQ4: 2013-02-01 | BR4: 2013-03-01 | BS4: 2013-04-01 | BT4: 2013-05-01 | BU4: 2013-06-01 | BV4: 2013-07-01 | BW4: 2013-08-01 | BX4: 2013-09-01 | BY4: 2013-10-01 | BZ4: 2013-11-01 | CA4: 2013-12-01 | CB4: 2014-01-01 | CC4: 2014-02-01 | CD4: 2014-03-01 | CE4: 2014-04-01 | CF4: 2014-05-01 | CG4: 2014-06-01 | CH4: 2014-07-01 | CI4: 2014-08-01 | CJ4: 2014-09-01 | CK4: 2014-10-01 | CL4: 2014-11-01 | CM4: 2014-12-01 | CN4: 2015-01-01 | CO4: 2015-02-01 | CP4: 2015-03-01 | CQ4: 2015-04-01 | CR4: 2015-05-01 | CS4: 2015-06-01 | CT4: 2015-07-01 | CU4: 2015-08-01 | CV4: 2015-09-01 | CW4: 2015-10-01 | CX4: 2015-11-01 | CY4: 2015-12-01 | CZ4: 2016-01-01 | DA4: 2016-02-01 | DB4: 2016-03-01 | DC4: 2016-04-01 | DD4: 2016-05-01 | DE4: 2016-06-01 | DF4: 2016-07-01 | DG4: 2016-08-01 | DH4: 2016-09-01 | DI4: 2016-10-01 | DJ4: 2016-11-01 | DK4: 2016-12-01 | DL4: 2017-01-01 | DM4: 2017-02-01 | DN4: 2017-03-01 | DO4: 2017-04-01 | DP4: 2017-05-01 | DQ4: 2017-06-01 | DR4: 2017-07-01 | DS4: 2017-08-01 | DT4: 2017-09-01 | DU4: 2017-10-01 | DV4: 2017-11-01 | DW4: 2017-12-01 | DX4: 2018-01-01 | DY4: 2018-02-01 | DZ4: 2018-03-01 | EA4: 2018-04-01 | EB4: 2018-05-01 | EC4: 2018-06-01 | ED4: 2018-07-01 | EE4: 2018-08-01 | EF4: 2018-09-01 | EG4: 2018-10-01 | EH4: 2018-11-01 | EI4: 2018-12-01 | EJ4: 2019-01-01 | EK4: 2019-02-01 | EL4: 2019-03-01 | EM4: 2019-04-01 | EN4: 2019-05-01 | EO4: 2019-06-01 | EP4: 2019-07-01 | EQ4: 2019-08-01 | ER4: 2019-09-01 | ES4: 2019-10-01 | ET4: 2019-11-01 | EU4: 2019-12-01 | EV4: 2020-01-01 | EW4: 2020-02-01 | EX4: 2020-03-01 | EY4: 2020-04-01 | EZ4: 2020-05-01 | FA4: 2020-06-01 | FB4: 2020-07-01 | FC4: 2020-08-01 | FD4: 2020-09-01 | FE4: 44105 | FF4: 44136 | FG4: 44166 | FH4: 44197 | FI4: 44228 | FJ4: 44256
A5: Gas (Therms) | B5: 301 | C5: 312 | D5: 530 | E5: 588 | F5: 660 | G5: 556 | H5: 306 | I5: 644 | J5: 600 | K5: 563 | L5: 604 | M5: 345 | N5: 320 | O5: 354 | P5: 480 | Q5: 526 | R5: 669 | S5: 599 | T5: 410 | U5: 622 | V5: 658 | W5: 503 | X5: 590 | Y5: 368 | Z5: 349 | AA5: 293 | AB5: 454 | AC5: 597 | AD5: 613 | AE5: 524 | AF5: 393 | AG5: 449 | AH5: 517 | AI5: 476 | AJ5: 492 | AK5: 302 | AL5: 272 | AM5: 250 | AN5: 419 | AO5: 538 | AP5: 466 | AQ5: 525 | AR5: 348 | AS5: 248 | AT5: 468 | AU5: 365 | AV5: 432 | AW5: 263 | AX5: 250 | AY5: 205 | AZ5: 375 | BA5: 336 | BB5: 397 | BC5: 287 | BD5: 173 | BE5: 274 | BF5: 418 | BG5: 323 | BH5: 291 | BI5: 337 | BJ5: 318 | BK5: 230 | BL5: 417 | BM5: 413 | BN5: 499 | BO5: 395 | BP5: 189 | BQ5: 445 | BR5: 457 | BS5: 382 | BT5: 428 | BU5: 260 | BV5: 302 | BW5: 199 | BX5: 308 | BY5: 374 | BZ5: 412 | CA5: 353 | CB5: 197 | CC5: 383 | CD5: 424 | CE5: 351 | CF5: 433 | CG5: 268 | CH5: 210 | CI5: 233 | CJ5: 308 | CK5: 485 | CL5: 460 | CM5: 420 | CN5: 221 | CO5: 387 | CP5: 471 | CQ5: 497 | CR5: 453 | CS5: 305 | CT5: 237 | CU5: 258 | CV5: 367 | CW5: 513 | CX5: 460 | CY5: 421 | CZ5: 255 | DA5: 428 | DB5: 445 | DC5: 476 | DD5: 515 | DE5: 390 | DF5: 234 | DG5: 300 | DH5: 463 | DI5: 496 | DJ5: 531 | DK5: 4863 | DL5: 288 | DM5: 8687 | DN5: 564 | DO5: 478 | DP5: 610 | DQ5: 425 | DR5: 324 | DS5: 330 | DT5: 517 | DU5: 9501 | DV5: 10675 | DW5: 692 | DX5: 385 | DY5: 519 | DZ5: 470 | EA5: 477 | EB5: 639 | EC5: 405 | ED5: 314 | EE5: 136 | EF5: 495 | EG5: 597 | EH5: 599 | EI5: 497 | EJ5: 302 | EK5: 547 | EL5: 602 | EM5: 537 | EN5: 625 | EO5: 367 | EP5: 270 | EQ5: 280 | ER5: 543 | ES5: 528 | ET5: 588 | EU5: 529 | EV5: 251 | EW5: 494 | EX5: 602 | EY5: 573 | EZ5: 585 | FA5: 312 | FB5: 345 | FC5: 261 | FD5: 544
A8: Fuel Oil | B8: 2005-01-01 | C8: 2005-02-01 | D8: 2005-03-01 | E8: 2005-04-01 | F8: 2005-05-01 | G8: 2005-06-01 | H8: 2005-07-01 | I8: 2005-08-01 | J8: 2005-09-01 | K8: 2005-10-01 | L8: 2005-11-01 | M8: 2005-12-01 | N8: 2006-01-01 | O8: 2006-02-01 | P8: 2006-03-01 | Q8: 2006-04-01 | R8: 2006-05-01 | S8: 2006-06-01 | T8: 2006-07-01 | U8: 2006-08-01 | V8: 2006-09-01 | W8: 2006-10-01 | X8: 2006-11-01 | Y8: 2006-12-01 | Z8: 2007-01-01 | AA8: 2007-02-01 | AB8: 2007-03-01 | AC8: 2007-04-01 | AD8: 2007-05-01 | AE8: 2007-06-01 | AF8: 2007-07-01 | AG8: 2007-08-01 | AH8: 2007-09-01 | AI8: 2007-10-01 | AJ8: 2007-11-01 | AK8: 2007-12-01 | AL8: 2008-01-01 | AM8: 2008-02-01 | AN8: 2008-03-01 | AO8: 2008-04-01 | AP8: 2008-05-01 | AQ8: 2008-06-01 | AR8: 2008-07-01 | AS8: 2008-08-01 | AT8: 2008-09-01 | AU8: 2008-10-01 | AV8: 2008-11-01 | AW8: 2008-12-01 | AX8: 2009-01-01 | AY8: 2009-02-01 | AZ8: 2009-03-01 | BA8: 2009-04-01 | BB8: 2009-05-01 | BC8: 2009-06-01 | BD8: 2009-07-01 | BE8: 2009-08-01 | BF8: 2009-09-01 | BG8: 2009-10-01 | BH8: 2009-11-01 | BI8: 2009-12-01 | BJ8: 2010-01-01 | BK8: 2010-02-01 | BL8: 2010-03-01 | BM8: 2010-04-01 | BN8: 2010-05-01 | BO8: 2010-06-01 | BP8: 2010-07-01 | BQ8: 2010-08-01 | BR8: 2010-09-01 | BS8: 2010-10-01 | BT8: 2010-11-01 | BU8: 2010-12-01 | BV8: 2011-01-01 | BW8: 2011-02-01 | BX8: 2011-03-01 | BY8: 2011-04-01 | BZ8: 2011-05-01 | CA8: 2011-06-01 | CB8: 2011-07-01 | CC8: 2011-08-01 | CD8: 2011-09-01 | CE8: 2011-10-01 | CF8: 2011-11-01 | CG8: 2011-12-01 | CH8: 2012-01-01 | CI8: 2012-02-01 | CJ8: 2012-03-01 | CK8: 2012-04-01 | CL8: 2012-05-01 | CM8: 2012-06-01 | CN8: 2012-07-01 | CO8: 2012-08-01 | CP8: 2012-09-01 | CQ8: 2012-10-01 | CR8: 2012-11-01 | CS8: 2012-12-01 | CT8: 2013-01-01 | CU8: 2013-02-01 | CV8: 2013-03-01 | CW8: 2013-04-01 | CX8: 2013-05-01 | CY8: 2013-06-01 | CZ8: 2013-07-01 | DA8: 2013-08-01 | DB8: 2013-09-01 | DC8: 2013-10-01 | DD8: 2013-11-01 | DE8: 2013-12-01 | DF8: 2014-01-01 | DG8: 2014-02-01 | DH8: 2014-03-01 | DI8: 2014-04-01 | DJ8: 2014-05-01 | DK8: 2014-06-01 | DL8: 2014-07-01 | DM8: 2014-08-01 | DN8: 2014-09-01 | DO8: 2014-10-01 | DP8: 2014-11-01 | DQ8: 2014-12-01 | DR8: 2015-01-01 | DS8: 2015-02-01 | DT8: 2015-03-01 | DU8: 2015-04-01 | DV8: 2015-05-01 | DW8: 2015-06-01 | DX8: 2015-07-01 | DY8: 2015-08-01 | DZ8: 2015-09-01 | EA8: 2015-10-01 | EB8: 2015-11-01 | EC8: 2015-12-01 | ED8: 2016-01-01 | EE8: 2016-02-01 | EF8: 2016-03-01 | EG8: 2016-04-01 | EH8: 2016-05-01 | EI8: 2016-06-01 | EJ8: 2016-07-01 | EK8: 2016-08-01 | EL8: 2016-09-01 | EM8: 2016-10-01 | EN8: 2016-11-01 | EO8: 2016-12-01 | EP8: 2017-01-01 | EQ8: 2017-02-01 | ER8: 2017-03-01 | ES8: 2017-04-01 | ET8: 2017-05-01 | EU8: 2017-06-01 | EV8: 2017-07-01 | EW8: 2017-08-01 | EX8: 2017-09-01 | EY8: 2017-10-01 | EZ8: 2017-11-01 | FA8: 2017-12-01 | FB8: 2018-01-01 | FC8: 2018-02-01 | FD8: 2018-03-01 | FE8: 2018-04-01 | FF8: 2018-05-01 | FG8: 2018-06-01 | FH8: 2018-07-01 | FI8: 2018-08-01 | FJ8: 2018-09-01 | FK8: 2018-10-01 | FL8: 2018-11-01 | FM8: 2018-12-01 | FN8: 2019-01-01 | FO8: 2019-02-01 | FP8: 2019-03-01 | FQ8: 2019-04-01 | FR8: 2019-05-01 | FS8: 2019-06-01 | FT8: 2019-07-01 | FU8: 2019-08-01 | FV8: 2019-09-01 | FW8: 2019-10-01 | FX8: 2019-11-01 | FY8: 2019-12-01 | FZ8: 2020-01-01 | GA8: 2020-02-01 | GB8: 2020-03-01 | GC8: 2020-04-01 | GD8: 2020-05-01 | GE8: 2020-06-01 | GF8: 2020-07-01 | GG8: 2020-08-01 | GH8: ####### | GI8: ####### | GJ8: ####### | GK8: ####### | GL8: 2021-01-01 | GM8: ####### | GN8: ####### | GO8: ####### | GP8: ####### | GQ8: #######
A9: Diesel Fuel (Gal) | B9: 102.5 | C9: 102.5 | D9: 102.5 | E9: 102.5 | F9: 102.5 | G9: 102.5 | H9: 102.5 | I9: 102.5 | J9: 102.5 | K9: 102.5 | L9: 102.5 | M9: 102.5 | N9: 102.5 | O9: 102.5 | P9: 102.5 | Q9: 102.5 | R9: 102.5 | S9: 102.5 | T9: 102.5 | U9: 102.5 | V9: 102.5 | W9: 102.5 | X9: 102.5 | Y9: 102.5 | Z9: 102.5 | AA9: 102.5 | AB9: 102.5 | AC9: 102.5 | AD9: 102.5 | AE9: 102.5 | AF9: 102.5 | AG9: 102.5 | AH9: 102.5 | AI9: 102.5 | AJ9: 102.5 | AK9: 102.5 | AL9: 102.5 | AM9: 102.5 | AN9: 102.5 | AO9: 102.5 | AP9: 102.5 | AQ9: 102.5 | AR9: 102.5 | AS9: 102.5 | AT9: 102.5 | AU9: 102.5 | AV9: 102.5 | AW9: 102.5 | AX9: 102.5 | AY9: 102.5 | AZ9: 102.5 | BA9: 102.5 | BB9: 102.5 | BC9: 102.5 | BD9: 102.5 | BE9: 102.5 | BF9: 102.5 | BG9: 102.5 | BH9: 102.5 | BI9: 102.5 | BJ9: 102.5 | BK9: 102.5 | BL9: 102.5 | BM9: 102.5 | BN9: 102.5 | BO9: 102.5 | BP9: 102.5 | BQ9: 102.5 | BR9: 102.5 | BS9: 102.5 | BT9: 102.5 | BU9: 102.5 | BV9: 102.5 | BW9: 102.5 | BX9: 102.5 | BY9: 102.5 | BZ9: 102.5 | CA9: 102.5 | CB9: 102.5 | CC9: 102.5 | CD9: 102.5 | CE9: 102.5 | CF9: 102.5 | CG9: 102.5 | CH9: 534 | CT9: 22.3333 | CU9: 22.3333 | CV9: 22.3333 | CW9: 22.3333 | CX9: 22.3333 | CY9: 22.3333 | CZ9: 22.3333 | DA9: 22.3333 | DB9: 22.3333 | DC9: 22.3333 | DD9: 22.3333 | DE9: 22.3333 | DF9: 9.16667 | DG9: 9.16667 | DH9: 9.16667 | DI9: 9.16667 | DJ9: 9.16667 | DK9: 9.16667 | DL9: 9.16667 | DM9: 9.16667 | DN9: 9.16667 | DO9: 9.16667 | DP9: 9.16667 | DQ9: 9.16667 | DR9: 9.16667 | DS9: 9.16667 | DT9: 9.16667 | DU9: 9.16667 | DV9: 9.16667 | DW9: 9.16667 | DX9: 9.16667 | DY9: 9.16667 | DZ9: 9.16667 | EA9: 9.16667 | EB9: 9.16667 | EC9: 9.16667 | ED9: 9.16667 | EE9: 9.16667 | EF9: 9.16667 | EG9: 9.16667 | EH9: 9.16667 | EI9: 9.16667 | EJ9: 9.16667 | EK9: 9.16667 | EL9: 9.16667 | EM9: 9.16667 | EN9: 9.16667 | EO9: 9.16667 | EP9: 9.16667 | EQ9: 9.16667 | ER9: 9.16667 | ES9: 9.16667 | ET9: 9.16667 | EU9: 9.16667 | EV9: 9.16667 | EW9: 9.16667 | EX9: 9.16667 | EY9: 9.16667 | EZ9: 9.16667 | FA9: 9.16667 | FB9: 9.16667 | FC9: 9.16667 | FD9: 9.16667 | FE9: 9.16667 | FF9: 9.16667 | FG9: 9.16667 | FH9: 9.16667 | FI9: 9.16667 | FJ9: 9.16667 | FK9: 9.16667 | FL9: 9.16667 | FM9: 9.16667 | FY9: 200
A10: Fuel Oil - #2 (Gal)
A11: Fuel Oil - #4 (Gal)
A12: Fuel Oil - #6 (Gal)
A13: Total Diesel + Oil mmBtus | B13: 14 | C13: 14 | D13: 14 | E13: 14 | F13: 14 | G13: 14 | H13: 14 | I13: 14 | J13: 14 | K13: 14 | L13: 14 | M13: 14 | N13: 14 | O13: 14 | P13: 14 | Q13: 14 | R13: 14 | S13: 14 | T13: 14 | U13: 14 | V13: 14 | W13: 14 | X13: 14 | Y13: 14 | Z13: 14 | AA13: 14 | AB13: 14 | AC13: 14 | AD13: 14 | AE13: 14 | AF13: 14 | AG13: 14 | AH13: 14 | AI13: 14 | AJ13: 14 | AK13: 14 | AL13: 14 | AM13: 14 | AN13: 14 | AO13: 14 | AP13: 14 | AQ13: 14 | AR13: 14 | AS13: 14 | AT13: 14 | AU13: 14 | AV13: 14 | AW13: 14 | AX13: 14 | AY13: 14 | AZ13: 14 | BA13: 14 | BB13: 14 | BC13: 14 | BD13: 14 | BE13: 14 | BF13: 14 | BG13: 14 | BH13: 14 | BI13: 14 | BJ13: 14 | BK13: 14 | BL13: 14 | BM13: 14 | BN13: 14 | BO13: 14 | BP13: 14 | BQ13: 14 | BR13: 14 | BS13: 14 | BT13: 14 | BU13: 14 | BV13: 14 | BW13: 14 | BX13: 14 | BY13: 14 | BZ13: 14 | CA13: 14 | CB13: 14 | CC13: 14 | CD13: 14 | CE13: 14 | CF13: 14 | CG13: 14 | CH13: 74 | CI13: 0 | CJ13: 0 | CK13: 0 | CL13: 0 | CM13: 0 | CN13: 0 | CO13: 0 | CP13: 0 | CQ13: 0 | CR13: 0 | CS13: 0 | CT13: 3 | CU13: 3 | CV13: 3 | CW13: 3 | CX13: 3 | CY13: 3 | CZ13: 3 | DA13: 3 | DB13: 3 | DC13: 3 | DD13: 3 | DE13: 3 | DF13: 1 | DG13: 1 | DH13: 1 | DI13: 1 | DJ13: 1 | DK13: 1 | DL13: 1 | DM13: 1 | DN13: 1 | DO13: 1 | DP13: 1 | DQ13: 1 | DR13: 1 | DS13: 1 | DT13: 1 | DU13: 1 | DV13: 1 | DW13: 1 | DX13: 1 | DY13: 1 | DZ13: 1 | EA13: 1 | EB13: 1 | EC13: 1 | ED13: 1 | EE13: 1 | EF13: 1 | EG13: 1 | EH13: 1 | EI13: 1 | EJ13: 1 | EK13: 1 | EL13: 1 | EM13: 1 | EN13: 1 | EO13: 1 | EP13: 1 | EQ13: 1 | ER13: 1 | ES13: 1 | ET13: 1 | EU13: 1 | EV13: 1 | EW13: 1 | EX13: 1 | EY13: 1 | EZ13: 1 | FA13: 1 | FB13: 1 | FC13: 1 | FD13: 1 | FE13: 1 | FF13: 1 | FG13: 1 | FH13: 1 | FI13: 1 | FJ13: 1 | FK13: 1 | FL13: 1 | FM13: 1 | FN13: 0 | FO13: 0 | FP13: 0 | FQ13: 0 | FR13: 0 | FS13: 0 | FT13: 0 | FU13: 0 | FV13: 0 | FW13: 0 | FX13: 0 | FY13: 28 | FZ13: 0 | GA13: 0 | GB13: 0 | GC13: 0 | GD13: 0 | GE13: 0 | GF13: 0 | GG13: 0 | GH13: 0
A17: Fleet*
A18: Gasoline | B18: Gallons | C18: tCo23
A19: 4/1/2018-3/30/2019 | B19: 2790 | C19: 25.11
A20: 4/1/2015-3/30/2015 | B20: 3197 | C20: 28.73
A22: *Time Frames coincide with the NY Executive Order 4 Report date range

Sheet Scope 2
A2: John Jay College Scope 2
M3: FY 2008 | Y3: FY 2009 | AK3: FY 2010 | AW3: FY 2011 | BI3: FY 2012 | BU3: FY 2013 | CG3: FY 2014 | CS3: FY 2015 | DE3: FY 2016 | DQ3: FY 2017 | EC3: FY 2018 | EO3: FY 2019 | FA3: FY 2020 | FD3: FY 2021
B4: 2007-07-01 | C4: 2007-08-01 | D4: 2007-09-01 | E4: 2007-10-01 | F4: 2007-11-01 | G4: 2007-12-01 | H4: 2008-01-01 | I4: 2008-02-01 | J4: 2008-03-01 | K4: 2008-04-01 | L4: 2008-05-01 | M4: 2008-06-01 | N4: 2008-07-01 | O4: 2008-08-01 | P4: 2008-09-01 | Q4: 2008-10-01 | R4: 2008-11-01 | S4: 2008-12-01 | T4: 2009-01-01 | U4: 2009-02-01 | V4: 2009-03-01 | W4: 2009-04-01 | X4: 2009-05-01 | Y4: 2009-06-01 | Z4: 2009-07-01 | AA4: 2009-08-01 | AB4: 2009-09-01 | AC4: 2009-10-01 | AD4: 2009-11-01 | AE4: 2009-12-01 | AF4: 2010-01-01 | AG4: 2010-02-01 | AH4: 2010-03-01 | AI4: 2010-04-01 | AJ4: 2010-05-01 | AK4: 2010-06-01 | AL4: 2010-07-01 | AM4: 2010-08-01 | AN4: 2010-09-01 | AO4: 2010-10-01 | AP4: 2010-11-01 | AQ4: 2010-12-01 | AR4: 2011-01-01 | AS4: 2011-02-01 | AT4: 2011-03-01 | AU4: 2011-04-01 | AV4: 2011-05-01 | AW4: 2011-06-01 | AX4: 2011-07-01 | AY4: 2011-08-01 | AZ4: 2011-09-01 | BA4: 2011-10-01 | BB4: 2011-11-01 | BC4: 2011-12-01 | BD4: 2012-01-01 | BE4: 2012-02-01 | BF4: 2012-03-01 | BG4: 2012-04-01 | BH4: 2012-05-01 | BI4: 2012-06-01 | BJ4: 2012-07-01 | BK4: 2012-08-01 | BL4: 2012-09-01 | BM4: 2012-10-01 | BN4: 2012-11-01 | BO4: 2012-12-01 | BP4: 2013-01-01 | BQ4: 2013-02-01 | BR4: 2013-03-01 | BS4: 2013-04-01 | BT4: 2013-05-01 | BU4: 2013-06-01 | BV4: 2013-07-01 | BW4: 2013-08-01 | BX4: 2013-09-01 | BY4: 2013-10-01 | BZ4: 2013-11-01 | CA4: 2013-12-01 | CB4: 2014-01-01 | CC4: 2014-02-01 | CD4: 2014-03-01 | CE4: 2014-04-01 | CF4: 2014-05-01 | CG4: 2014-06-01 | CH4: 2014-07-01 | CI4: 2014-08-01 | CJ4: 2014-09-01 | CK4: 2014-10-01 | CL4: 2014-11-01 | CM4: 2014-12-01 | CN4: 2015-01-01 | CO4: 2015-02-01 | CP4: 2015-03-01 | CQ4: 2015-04-01 | CR4: 2015-05-01 | CS4: 2015-06-01 | CT4: 2015-07-01 | CU4: 2015-08-01 | CV4: 2015-09-01 | CW4: 2015-10-01 | CX4: 2015-11-01 | CY4: 2015-12-01 | CZ4: 2016-01-01 | DA4: 2016-02-01 | DB4: 2016-03-01 | DC4: 2016-04-01 | DD4: 2016-05-01 | DE4: 2016-06-01 | DF4: 2016-07-01 | DG4: 2016-08-01 | DH4: 2016-09-01 | DI4: 2016-10-01 | DJ4: 2016-11-01 | DK4: 2016-12-01 | DL4: 2017-01-01 | DM4: 2017-02-01 | DN4: 2017-03-01 | DO4: 2017-04-01 | DP4: 2017-05-01 | DQ4: 2017-06-01 | DR4: 2017-07-01 | DS4: 2017-08-01 | DT4: 2017-09-01 | DU4: 2017-10-01 | DV4: 2017-11-01 | DW4: 2017-12-01 | DX4: 2018-01-01 | DY4: 2018-02-01 | DZ4: 2018-03-01 | EA4: 2018-04-01 | EB4: 2018-05-01 | EC4: 2018-06-01 | ED4: 2018-07-01 | EE4: 2018-08-01 | EF4: 2018-09-01 | EG4: 2018-10-01 | EH4: 2018-11-01 | EI4: 2018-12-01 | EJ4: 2019-01-01 | EK4: 2019-02-01 | EL4: 2019-03-01 | EM4: 2019-04-01 | EN4: 2019-05-01 | EO4: 2019-06-01 | EP4: 2019-07-01 | EQ4: 2019-08-01 | ER4: 2019-09-01 | ES4: 2019-10-01 | ET4: 2019-11-01 | EU4: 2019-12-01 | EV4: 2020-01-01 | EW4: 2020-02-01 | EX4: 2020-03-01 | EY4: 2020-04-01 | EZ4: 2020-05-01 | FA4: 2020-06-01 | FB4: 2020-07-01 | FC4: 2020-08-01 | FD4: 2020-09-01 | FE4: 44105 | FF4: 44136 | FG4: 44166 | FH4: 44197 | FI4: 44228 | FJ4: 44256
A5: Electricity Demand (KW) | B5: 2784.8 | C5: 2903.2 | D5: 2862.4 | E5: 2867.2 | F5: 2395.2 | G5: 2172.8 | H5: 1915.2 | I5: 2132 | J5: 2180 | K5: 2212 | L5: 2547.2 | M5: 2650.4 | N5: 2655.2 | O5: 2740 | P5: 2752 | Q5: 2595.2 | R5: 2345.6 | S5: 2142.4 | T5: 1975.2 | U5: 2218.4 | V5: 2231.2 | W5: 2772.8 | X5: 2791.2 | Y5: 2591.2 | Z5: 2528.8 | AA5: 2709.6 | AB5: 2744.8 | AC5: 2492 | AD5: 2331.2 | AE5: 2136 | AF5: 1940.8 | AG5: 2044.96 | AH5: 2188.16 | AI5: 2542.08 | AJ5: 2628.8 | AK5: 2646.56 | AL5: 2695.36 | AM5: 2604.96 | AN5: 2713.92 | AO5: 2649.12 | AP5: 2643.52 | AQ5: 4379.84 | AR5: 4364.48 | AS5: 4462.4 | AT5: 4125.76 | AU5: 4087.04 | AV5: 3159.36 | AW5: 3742.56 | AX5: 4394.88 | AY5: 4188.32 | AZ5: 4668.64 | BA5: 4362 | BB5: 3774.14 | BC5: 3727.34 | BD5: 3596.8 | BE5: 3978.78 | BF5: 4334.56 | BG5: 5092.5 | BH5: 5090 | BI5: 5587.26 | BJ5: 5439.62 | BK5: 5408.22 | BL5: 5496.9 | BM5: 4953.34 | BN5: 4317.84 | BO5: 4318.56 | BP5: 3731.5 | BQ5: 4308.62 | BR5: 4124.61 | BS5: 4489.58 | BT5: 5060.24 | BU5: 5134.32 | BV5: 5117.7 | BW5: 4598.58 | BX5: 4690.69 | BY5: 4701.7 | BZ5: 4306.82 | CA5: 4269.92 | CB5: 3783.09 | CC5: 3884.22 | CD5: 3980.83 | CE5: 4089.1 | CF5: 4611.46 | CG5: 4963.65 | CH5: 5072.13 | CI5: 4658.4 | CJ5: 5314 | CK5: 4624.21 | CL5: 4326.8 | CM5: 4090.64 | CN5: 3539.86 | CO5: 3716.56 | CP5: 3850.64 | CQ5: 3918.64 | CR5: 4652.18 | CS5: 4924.4 | CT5: 4743.41 | CU5: 4689.52 | CV5: 5184.3 | CW5: 4684.46 | CX5: 3790.82 | CY5: 3633.89 | CZ5: 3075.34 | DA5: 3537.73 | DB5: 3957.6 | DC5: 3842.96 | DD5: 4112.85 | DE5: 4330.93 | DF5: 4854.24 | DG5: 5090.82 | DH5: 4867.14 | DI5: 4395.74 | DJ5: 4027.1 | DK5: 3678.64 | DL5: 3744.08 | DM5: 3901.76 | DN5: 3892.64 | DO5: 3779.28 | DP5: 4412.02 | DQ5: 4474.32 | DR5: 4369.28 | DS5: 4566.42 | DT5: 4396.86 | DU5: 4483.28 | DV5: 3907.04 | DW5: 3785.89 | DX5: 3670.66 | DY5: 3870.06 | DZ5: 3567.54 | EA5: 3713.36 | EB5: 3833.09 | EC5: 3972.45 | ED5: 3941.22 | EE5: 3841.84 | EF5: 3908.86 | EG5: 3689.82 | EH5: 3559.28 | EI5: 3009.52 | EJ5: 2961.84 | EK5: 3111.44 | EL5: 3029.36 | EM5: 3004.56 | EN5: 3049.52 | EO5: 3171.14 | EP5: 3665.36 | EQ5: 3625.98 | ER5: 3642.46 | ES5: 3641.17 | ET5: 3248.24 | EU5: 2973.34 | EV5: 2781.3 | EW5: 2768.08 | EX5: 2783.5 | EY5: 1867.02 | EZ5: 1828.06 | FA5: 2134 | FB5: 2268.8 | FC5: 2257.28 | FD5: 2260.78
A6: Electricity Usage (KWH) | B6: 1070560 | C6: 1089520 | D6: 1120800 | E6: 1081600 | F6: 1039360 | G6: 932800 | H6: 879760 | I6: 968880 | J6: 925840 | K6: 948160 | L6: 997200 | M6: 1002320 | N6: 1091200 | O6: 1112880 | P6: 1105280 | Q6: 964640 | R6: 1010800 | S6: 1027440 | T6: 1116720 | U6: 1108160 | V6: 1146480 | W6: 1029440 | X6: 1170720 | Y6: 1182000 | Z6: 1394400 | AA6: 1403440 | AB6: 1228720 | AC6: 1207760 | AD6: 1046800 | AE6: 1236960 | AF6: 1072480 | AG6: 1198960 | AH6: 1148560 | AI6: 1116800 | AJ6: 1144080 | AK6: 1338240 | AL6: 1483520 | AM6: 1176400 | AN6: 1255360 | AO6: 1307840 | AP6: 1153440 | AQ6: 2841680 | AR6: 2657600 | AS6: 2896000 | AT6: 2220560 | AU6: 1560000 | AV6: 1365600 | AW6: 1784080 | AX6: 1997200 | AY6: 2203040 | AZ6: 2357360 | BA6: 1947360 | BB6: 2133520 | BC6: 1845840 | BD6: 1908560 | BE6: 2192720 | BF6: 2104720 | BG6: 2232240 | BH6: 2509440 | BI6: 2987200 | BJ6: 2950320 | BK6: 2839360 | BL6: 2947680 | BM6: 2462800 | BN6: 2469440 | BO6: 2266160 | BP6: 2279040 | BQ6: 2216800 | BR6: 2197680 | BS6: 2166560 | BT6: 2605440 | BU6: 2486560 | BV6: 2702880 | BW6: 2618240 | BX6: 2490160 | BY6: 2422640 | BZ6: 2297200 | CA6: 2298160 | CB6: 2221920 | CC6: 2193680 | CD6: 2135440 | CE6: 2247600 | CF6: 2297840 | CG6: 2300560 | CH6: 2569840 | CI6: 2213440 | CJ6: 2375040 | CK6: 2301120 | CL6: 2050240 | CM6: 2313440 | CN6: 1880560 | CO6: 2021600 | CP6: 2112560 | CQ6: 1930080 | CR6: 2108160 | CS6: 2197920 | CT6: 2360560 | CU6: 2145920 | CV6: 2246320 | CW6: 2121680 | CX6: 1834160 | CY6: 1915200 | CZ6: 1665680 | DA6: 1908000 | DB6: 1728160 | DC6: 1824480 | DD6: 1820880 | DE6: 2128880 | DF6: 2038160 | DG6: 2031120 | DH6: 2206640 | DI6: 1848240 | DJ6: 1960720 | DK6: 1756000 | DL6: 1678960 | DM6: 1876160 | DN6: 1756320 | DO6: 1681040 | DP6: 1747600 | DQ6: 2047120 | DR6: 1993040 | DS6: 1897600 | DT6: 2054640 | DU6: 1990400 | DV6: 1983200 | DW6: 1775360 | DX6: 1831040 | DY6: 1924160 | DZ6: 1720480 | EA6: 1598560 | EB6: 1675680 | EC6: 1836800 | ED6: 1761680 | EE6: 1713280 | EF6: 1883520 | EG6: 1636720 | EH6: 1690400 | EI6: 1579440 | EJ6: 1624080 | EK6: 1601680 | EL6: 1511600 | EM6: 1473440 | EN6: 1625200 | EO6: 1548640 | EP6: 1290960 | EQ6: 1985600 | ER6: 1676240 | ES6: 1555920 | ET6: 1553360 | EU6: 1552080 | EV6: 1470000 | EW6: 1439600 | EX6: 1236320 | EY6: 1057200 | EZ6: 966880 | FA6: 1165280 | FB6: 1338320 | FC6: 1302640 | FD6: 1324480
A7: Steam (mlbs) | B7: 3462 | C7: 2764 | D7: 2980 | E7: 2821 | F7: 2587 | G7: 3535 | H7: 3957 | I7: 4208 | J7: 3667 | K7: 1932 | L7: 1642 | M7: 3219 | N7: 4227 | O7: 3393 | P7: 3156 | Q7: 1879 | R7: 2969 | S7: 4179 | T7: 5409 | U7: 3906 | V7: 3382 | W7: 2249 | X7: 2208 | Y7: 2365 | Z7: 3240 | AA7: 4301 | AB7: 2440 | AC7: 1496 | AD7: 2122 | AE7: 4617 | AF7: 4676 | AG7: 2657 | AH7: 2123 | AI7: 1759 | AJ7: 2361 | AK7: 4628 | AL7: 3420 | AM7: 2226 | AN7: 2298 | AO7: 1664 | AP7: 3036 | AQ7: 5312 | AR7: 5900 | AS7: 3953 | AT7: 3351 | AU7: 2212 | AV7: 2605 | AW7: 4811 | AX7: 5712 | AY7: 5472 | AZ7: 3615 | BA7: 2091 | BB7: 3622 | BC7: 5038 | BD7: 7814 | BE7: 5606 | BF7: 4104 | BG7: 3576 | BH7: 4063 | BI7: 5038 | BJ7: 7384 | BK7: 6437 | BL7: 4669 | BM7: 3689 | BN7: 6999 | BO7: 7824 | BP7: 10279 | BQ7: 10441 | BR7: 8766 | BS7: 5141 | BT7: 4165 | BU7: 4586 | BV7: 6276 | BW7: 3449 | BX7: 3608 | BY7: 3448 | BZ7: 5845 | CA7: 10181 | CB7: 12052 | CC7: 10072 | CD7: 9316 | CE7: 3649 | CF7: 2987 | CG7: 3906 | CH7: 5039 | CI7: 3451 | CJ7: 3788 | CK7: 2790 | CL7: 5399 | CM7: 8320 | CN7: 10763 | CO7: 11336 | CP7: 9021 | CQ7: 3832 | CR7: 2747 | CS7: 4358 | CT7: 4628 | CU7: 4513 | CV7: 3891 | CW7: 2703 | CX7: 3961 | CY7: 4841 | CZ7: 7089 | DA7: 7811 | DB7: 4777 | DC7: 3535 | DD7: 2407 | DE7: 1281 | DF7: 1211 | DG7: 1260 | DH7: 1028 | DI7: 2213 | DJ7: 4702 | DK7: 7633 | DL7: 7996 | DM7: 5209 | DN7: 6039 | DO7: 3457 | DP7: 2890 | DQ7: 1701 | DR7: 1296 | DS7: 1144 | DT7: 1308 | DU7: 1638 | DV7: 5179 | DW7: 7465 | DX7: 11070 | DY7: 6739 | DZ7: 7055 | EA7: 4027 | EB7: 1449 | EC7: 1204 | ED7: 1218 | EE7: 1006 | EF7: 1020 | EG7: 1835 | EH7: 4249 | EI7: 5474 | EJ7: 6533 | EK7: 5701 | EL7: 5046 | EM7: 2955 | EN7: 1462 | EO7: 771 | EP7: 843 | EQ7: 803 | ER7: 982 | ES7: 1614 | ET7: 3900 | EU7: 6217 | EV7: 5969 | EW7: 4832 | EX7: 3232 | EY7: 1342 | EZ7: 1355 | FA7: 899 | FB7: 709 | FC7: 697 | FD7: 856
A10: Year | B10: 2006 | C10: 2007 | D10: 2008 | E10: 2009 | F10: 2010 | G10: 2011 | H10: 2012 | I10: 2013 | J10: 2014 | K10: 2015 | L10: 2016 | M10: 2017 | N10: 2018 | O10: 2019 | P10: 2020
A11: Sq_Ft | B11: 964140 | C11: 775678 | D11: 800856 | E11: 800856 | F11: 800856 | G11: 1138923 | H11: 1463371 | I11: 1463371 | J11: 1463371 | K11: 1463371 | L11: 1463371 | M11: 1463371 | N11: 1461292 | O11: 1461292 | P11: 1461292

Sheet Sq Footage
A1: John Jay College Square Footage including Leased Space
A3: Year | B3: 2006 | C3: 2007 | D3: 2008 | E3: 2009 | F3: 2010 | G3: 2011 | H3: 2012 | I3: 2013 | J3: 2014 | K3: 2015 | L3: 2016 | M3: 2017 | N3: 2018 | O3: 2019 | P3: 2020
A4: Sq_Ft | B4: 964140 | C4: 775678 | D4: 800856 | E4: 800856 | F4: 800856 | G4: 1138923 | H4: 1463371 | I4: 1463371 | J4: 1463371 | K4: 1463371 | L4: 1463371 | M4: 1463371 | N4: 1461292 | O4: 1461292 | P4: 1461292

Sheet Reference Data
A1: Site to Source EUI Conversion Factor (NYS EO88) - pg38 | B1: Conversion factor to translate Site EUI into a Source EUI equivalent for the purpose of comparing apples to apples in Portfolio Manager | O1: MANDATES
A2: SITE_TO_SOURCE_EUI | D2: ENERGY_CONVERSIONS | E2: conversion factors from EC3 | H2: GHG_CONVERSIONS | I2: conversion factors (tCO2e) from MOS | L2: Emissions Limit Factor | M2: 0.00758 | O2: mandate | P2: target
A3: factor | B3: resource | D3: resource | E3: factor | H3: resource | I3: factor | O3: Site EUI | P3: 0.22
A4: 3.34 | B4: elec | D4: 1 kWh | E4: 0.003413 | F4: mmBtu | H4: Elec | I4: See table below | O4: LL97 40% by 2025 (CCs only) | P4: 0.4
A5: 1.047 | B5: gas | D5: 1 Therm | E5: 0.1 | F5: mmBtu | H5: Gas | I5: 5.066e-05 | J5: tCO2e per kBtu | L5: 1 tCO2e | M5: 1000 | N5: kgCO2e | O5: LL97 80% by 2050 | P5: 0.8
A6: 1.21 | B6: FY | D6: 1 Mlb (Steam) | E6: 1.1059 | F6: mmBtu | H6: Steam | I6: See table below
D7: 1 Gallon (Diesel) | E7: 0.13849 | F7: mmBtu | H7: Diesel | I7: 7.41e-05 | J7: tCO2e per kBtu
D8: 1 Gallon (Fuel Oil # 2) | E8: 0.1375 | F8: mmBtu | H8: Fuel Oil # 2 | I8: 7.368e-05 | J8: tCO2e per kBtu | L8: 1 mmBtu | M8: 1000 | N8: kBtu | O8: MEDIAN_EUI | P8: The national average EUI for institutions in Higher Ed
A9: Generated_College | B9: YEAR_INDICATOR | D9: 1 Gallon (Fuel Oil # 4) | E9: 0.1451 | F9: mmBtu | H9: Fuel Oil # 4 | I9: 7.477e-05 | J9: tCO2e per kBtu | O9: sector | P9: eui
A10: JJC | B10: CY | D10: 1 Gallon (Fuel Oil # 6) | E10: 0.15 | F10: mmBtu | H10: Fuel Oil # 6 | I10: 7.481e-05 | J10: tCO2e per kBtu | L10: 1 mlb | M10: 453.592 | N10: kg | O10: US National Median EUI | P10: 84.3
B12: DATA_YEAR_INDICATOR | H12: FY | I12: 2006 | J12: 2007 | K12: 2008 | L12: 2009 | M12: 2010 | N12: 2011 | O12: 2012 | P12: 2013 | Q12: 2014 | R12: 2015 | S12: 2016 | T12: 2017 | U12: 2018 | V12: 2019 | W12: 2020
B13: 2020 | H13: Elec (tCO2e per kWh) | I13: 0.0004097 | J13: 0.0004243 | K13: 0.0003808 | L13: 0.0003347 | M13: 0.0003417 | N13: 0.0003098 | O13: 0.0003248 | P13: 0.0002981 | Q13: 0.0003265 | R13: 0.000319 | S13: 0.0003209 | T13: 0.0002803 | U13: 0.0003091 | V13: 0.000289 | W13: 0.000289
H14: STM (tCO2e per kg) | I14: 0.0001331616577 | J14: 0.0001335271684 | K14: 0.0001311540226 | L14: 0.0001326582936 | M14: 0.0001282393655 | N14: 0.0001236124501 | O14: 0.0001189553602 | P14: 0.0001183211976 | Q14: 0.0001172890956 | R14: 0.0001144249303 | S14: 0.0001116690396 | T14: 0.0001099704444 | U14: 0.000117082707 | V14: 0.000109175807 | W14: 0.000109175807
C15: =IF(COUNTIF(SRs,"BAR"),'Energy Data'!B84:U84,'Energy Data'!B84:U84) -> 2007 | E15: SQUARE_FOOTAGE | F15: leased + owned space; All CUNY includes Central office lease + owned
A16: CONSTITUENCY | B16: Constituencies are groups of colleges (CUNY is the superset). CC and SR are mutually exclusive. | E16: attributes: year, sqft, college (FK)
A17: name | B17: abbreviation | E17: 2005 | F17: 2006 | G17: 2007 | H17: 2008 | I17: 2009 | J17: 2010 | K17: 2011 | L17: 2012 | M17: 2013 | N17: 2014 | O17: 2015 | P17: 2016 | Q17: 2017 | R17: 2018 | S17: 2019 | T17: 2020
A18: City University of New York - Community Colleges | B18: CC | E18: =SUM(E42:E49) -> 6680588 | F18: 6786282 | G18: 6807588 | H18: 6901638 | I18: 6909669 | J18: 7037290 | K18: 7111556 | L18: 7578942 | M18: 7545107 | N18: 7548300 | O18: 7591644 | P18: 7571445 | Q18: 7571445 | R18: 7686359 | S18: 7679072 | T18: 7691032
A19: City University of New York - Senior Colleges | B19: SR | E19: =SUM(E24:E39) -> 18694508 | F19: 18799143 | G19: 18681766 | H19: 18760318 | I19: 18880286 | J19: 19007324 | K19: 19484826 | L19: 19904590 | M19: 19923220 | N19: 20341956 | O19: 20322347 | P19: 20375200 | Q19: 20375200 | R19: 20777790 | S19: 20784175 | T19: 20867975
A20: City University of New York | B20: CUNY | E20: =SUM(E18:E19) -> 25375096 | F20: 25585425 | G20: 25489354 | H20: 25661956 | I20: 25789955 | J20: 26044614 | K20: 26596382 | L20: 27483532 | M20: 27468327 | N20: 27890256 | O20: 27913991 | P20: 27946645 | Q20: 27946645 | R20: 28464149 | S20: 28463247 | T20: 28559007
A22: COLLEGE
A23: constituency | B23: name | C23: abbreviation | D23: notes
A24: SR | B24: CUNY Graduate Center (subtract ASRC) | C24: GC | E24: 585620 | F24: 592662 | G24: 611751 | H24: 614962 | I24: 614962 | J24: 614962 | K24: 616781 | L24: 616781 | M24: 616781 | N24: 616781 | O24: 614953 | P24: 614953 | Q24: 614953 | R24: 614953 | S24: 614953 | T24: =888266-207729 -> 680537
A25: SR | B25: CUNY Administration | C25: ADMIN
A26: SR | B26: School of Professional Studies | C26: SPS | E26: 0 | F26: 0 | G26: 0 | H26: 0 | I26: 0 | J26: 0 | K26: 0 | L26: 0 | M26: 71667 | N26: 71667 | O26: 71667 | P26: 93730 | Q26: 93730 | R26: 71667 | S26: 71667 | T26: 71667
A27: SR | B27: Macaulay Honors College | C27: MHC | E27: 0 | F27: 24714 | G27: 24096 | H27: 24096 | I27: 24096 | J27: 24096 | K27: 24096 | L27: 24096 | M27: 24096 | N27: 24096 | O27: 24096 | P27: 24096 | Q27: 24096 | R27: 24096 | S27: 24096 | T27: 24096
A28: SR | B28: NYC College of Technology | C28: NYCCT | E28: 1103126 | F28: 1152118 | G28: 1153019 | H28: 1154704 | I28: 1154704 | J28: 1161402 | K28: 1152248 | L28: 1144784 | M28: 1084437 | N28: 1084424 | O28: 1084379 | P28: 1084379 | Q28: 1084379 | R28: 1450310 | S28: 1425163 | T28: 1420967
A29: SR | B29: City College of New York | C29: CCNY | E29: 2969051 | F29: 2951273 | G29: 3000311 | H29: 3033150 | I29: 2993150 | J29: 2989918 | K29: 2993602 | L29: 2993602 | M29: 2992897 | N29: 3394357 | O29: 3382664 | P29: 3382664 | Q29: 3382664 | R29: 3382664 | S29: 3382664 | T29: =3174935+207729 -> 3382664
A30: SR | B30: Hunter College (subtract HCCS) | C30: HC | E30: 2607443 | F30: 2602115 | G30: 2596144 | H30: 2610390 | I30: 2411689 | J30: 2410001 | K30: 2461395 | L30: 2460695 | M30: 2540529 | N30: 2561289 | O30: 2554466 | P30: 2585807 | Q30: 2585807 | R30: 2589985 | S30: 2625424 | T30: =2824063-198701 -> 2625362
A31: SR | B31: Brooklyn College | C31: BC | E31: 2274853 | F31: 2271419 | G31: 2265769 | H31: 2265689 | I31: 2410960 | J31: 2404205 | K31: 2402423 | L31: 2402423 | M31: 2368535 | N31: 2366357 | O31: 2431042 | P31: 2431042 | Q31: 2431042 | R31: 2478890 | S31: 2478758 | T31: 2478758
A32: SR | B32: Queens College | C32: QC | E32: 2422319 | F32: 2444919 | G32: 2427149 | H32: 2430256 | I32: 2643824 | J32: 2643824 | K32: 2636879 | L32: 2638574 | M32: 2600550 | N32: 2600550 | O32: 2548536 | P32: 2548536 | Q32: 2548536 | R32: 2538952 | S32: 2535177 | T32: 2549512
A33: SR | B33: John Jay College of Criminal Justice | C33: JJC | E33: 976976 | F33: 964140 | G33: 775678 | H33: 800856 | I33: 800856 | J33: 800856 | K33: 1138923 | L33: 1463371 | M33: 1463371 | N33: 1463371 | O33: 1463371 | P33: 1463371 | Q33: 1463371 | R33: 1461292 | S33: 1461292 | T33: 1461292
A34: SR | B34: College of Staten Island | C34: CSI | E34: 1354982 | F34: 1351012 | G34: 1351484 | H34: 1351484 | I34: 1351484 | J34: 1351484 | K34: 1351484 | L34: 1367875 | M34: 1367875 | N34: 1367875 | O34: 1367886 | P34: 1367886 | Q34: 1367886 | R34: 1386026 | S34: 1386026 | T34: 1387278
A35: SR | B35: York College | C35: YC | E35: 924326 | F35: 935572 | G35: 932368 | H35: 931607 | I35: 931607 | J35: 931607 | K35: 931607 | L35: 931607 | M35: 931585 | N35: 931585 | O35: 931585 | P35: 931585 | Q35: 931585 | R35: 931585 | S35: 931585 | T35: 931585
A36: SR | B36: Lehman College | C36: LC | E36: 1510760 | F36: 1485821 | G36: 1518034 | H36: 1521027 | I36: 1521027 | J36: 1521027 | K36: 1521027 | L36: 1606421 | M36: 1606536 | N36: 1603507 | O36: 1598193 | P36: 1598193 | Q36: 1598193 | R36: 1598193 | S36: 1598193 | T36: 1599093
A37: SR | B37: Baruch College | C37: BAR | E37: 1527924 | F37: 1586239 | G37: 1582942 | H37: 1582942 | I37: 1572733 | J37: 1572632 | K37: 1572632 | L37: 1572632 | M37: 1572632 | N37: 1572632 | O37: 1572633 | P37: 1572633 | Q37: 1572633 | R37: 1572633 | S37: 1572633 | T37: 1578620
A38: SR | B38: Medgar Evers College | C38: MEC | E38: 437128 | F38: 437139 | G38: 443021 | H38: 439155 | I38: 449194 | J38: 581310 | K38: 576046 | L38: 576046 | M38: 576046 | N38: 577782 | O38: 571193 | P38: 570642 | Q38: 570642 | R38: 570861 | S38: 570861 | T38: 570861
A39: SR | B39: CUNY Computer Center (395 Hudson Only) | C39: CCC | K39: 105683 | L39: 105683 | M39: 105683 | N39: 105683 | O39: 105683 | P39: 105683 | Q39: 105683 | R39: 105683 | S39: 105683 | T39: 105683
A42: CC | B42: Bronx Community College | C42: BCC | E42: 1208978 | F42: 1203341 | G42: 1203402 | H42: 1204700 | I42: 1218027 | J42: 1217515 | K42: 1216515 | L42: 1319398 | M42: 1285703 | N42: 1283893 | O42: 1282935 | P42: 1287727 | Q42: 1287727 | R42: 1331902 | S42: 1336607 | T42: 1336607
A43: CC | B43: Queensborough Community College | C43: QCC | E43: 915229 | F43: 915030 | G43: 919196 | H43: 920150 | I43: 927903 | J43: 927903 | K43: 927903 | L43: 927903 | M43: 927903 | N43: 927333 | O43: 927333 | P43: 927333 | Q43: 927333 | R43: 938855 | S43: 938855 | T43: 953489
A44: CC | B44: Kingsborough Community College | C44: KBCC | E44: 1304535 | F44: 1306003 | G44: 1307561 | H44: 1308247 | I44: 1308247 | J44: 1308247 | K44: 1308247 | L44: 1308247 | M44: 1308247 | N44: 1308247 | O44: 1306882 | P44: 1306882 | Q44: 1306882 | R44: 1305774 | S44: 1305774 | T44: 1305774
A45: CC | B45: Borough of Manhattan Community College | C45: BMCC | E45: 887536 | F45: 890740 | G45: 905466 | H45: 902466 | I45: 939899 | J45: 945845 | K45: 945845 | L45: 1294432 | M45: 1294295 | N45: 1286301 | O45: 1328030 | P45: 1301014 | Q45: 1301014 | R45: 1361336 | S45: 1361336 | T45: 1382660
A46: CC | B46: Hostos Community College | C46: HCC | E46: 694531 | F46: 720799 | G46: 721592 | H46: 701028 | I46: 701028 | J46: 698256 | K46: 698256 | L46: 714008 | M46: 714005 | N46: 727686 | O46: 730563 | P46: 730563 | Q46: 730563 | R46: 730566 | S46: 718574 | T46: 718574
A47: CC | B47: La Guardia Community College | C47: LAGCC | E47: 1669779 | F47: 1750369 | G47: 1750371 | H47: 1666346 | I47: 1615864 | J47: 1740823 | K47: 1741900 | L47: 1742064 | M47: 1742064 | N47: 1741950 | O47: 1743011 | P47: 1745036 | Q47: 1745036 | R47: 1745036 | S47: 1745036 | T47: 1721038
A48: CC | B48: Hunter College Campus Schools | C48: HCCS | H48: 198701 | I48: 198701 | J48: 198701 | K48: 198701 | L48: 198701 | M48: 198701 | N48: 198701 | O48: 198701 | P48: 198701 | Q48: 198701 | R48: 198701 | S48: 198701 | T48: 198701
A49: CC | B49: Guttman Community College | C49: GCC | E49: 0 | F49: 0 | G49: 0 | H49: 0 | I49: 0 | J49: 0 | K49: 74189 | L49: 74189 | M49: 74189 | N49: 74189 | O49: 74189 | P49: 74189 | Q49: 74189 | R49: 74189 | S49: 74189 | T49: 74189
C50: DEGREE_DAYS | D50: TDD are calculated as the sum of CDD and TDD.
C51: fiscal year | D51: billing period | E51: HDD | F51: CDD | G51: TDD | I51: BuildSmart2025 Goals
C52: 2021 | D52: 202007 | E52: 0 | F52: 504 | G52: =E52+F52 -> 504
C53: 2021 | D53: 202008 | E53: 0 | F53: 412 | G53: 412 | I53: CUNY | J53: =SUM(J55:J70) -> 868605310.6
C54: 2021 | D54: 202009 | E54: 32 | F54: 175 | G54: 207 | I54: Facility Name | J54: Energy Savings Goal (kBtu)
C55: 2021 | D55: 202010 | E55: 203 | F55: 8 | G55: 211 | I55: Baruch College Campus | J55: 59388637.43
C56: 2021 | D56: 202011 | G56: 0 | I56: Brooklyn College Campus | J56: 69761158.25
C57: 2021 | D57: 202012 | G57: 0 | I57: CUNY Admin (Central Office) | J57: 4836723.474
C58: 2021 | D58: 202101 | G58: 0 | I58: City College Of New York Campus | J58: 164075106.2
C59: 2021 | D59: 202102 | G59: 0 | I59: City Tech College Campus | J59: 34437339.84
C60: 2021 | D60: 202103 | G60: 0 | I60: College Of Staten Island Campus | J60: 69803839.13
C61: 2021 | D61: 202104 | G61: 0 | I61: Computer Center | J61: 1251138.838
C62: 2021 | D62: 202105 | G62: 0 | I62: Graduate Center | J62: 20389951.26
C63: 2021 | D63: 202106 | G63: 0 | I63: Honors College | J63: 921563.1225
C64: 2020 | D64: 201907 | E64: 0 | F64: 481 | G64: 481 | I64: Hunter College Campus | J64: 115719806.9
C65: 2020 | D65: 201908 | E65: 0 | F65: 356 | G65: 356 | I65: John Jay College Of Criminal Justice Campus | J65: 60424497.56
C66: 2020 | D66: 201909 | E66: 5 | F66: 192 | G66: 197 | I66: Lehman College Campus | J66: 88448744.41
C67: 2020 | D67: 201910 | E67: 162 | F67: 31 | G67: 193 | I67: Medgar Evers College Campus | J67: 29091961.76
C68: 2020 | D68: 201911 | E68: 619 | F68: 0 | G68: 619 | I68: Queens College Campus | J68: 110243702.8
C69: 2020 | D69: 201912 | E69: 813 | F69: 0 | G69: 813 | I69: School of Professional Studies | J69: 564097.5714
C70: 2020 | D70: 202001 | E70: 780 | F70: 0 | G70: 780 | I70: York College Campus | J70: 39247042
C71: 2020 | D71: 202002 | E71: 706 | F71: 0 | G71: 706
C72: 2020 | D72: 202003 | E72: 515 | F72: 0 | G72: 515
C73: 2020 | D73: 202004 | E73: 430 | F73: 0 | G73: 430
C74: 2020 | D74: 202005 | E74: 165 | F74: 56 | G74: 221
C75: 2020 | D75: 202006 | E75: 4 | F75: 300 | G75: 304
C76: 2019 | D76: 201807 | E76: 0 | F76: 399 | G76: 399
C77: 2019 | D77: 201808 | E77: 0 | F77: 413 | G77: 413
C78: 2019 | D78: 201809 | E78: 23 | F78: 203 | G78: 226
C79: 2019 | D79: 201810 | E79: 276 | F79: 59 | G79: 335
C80: 2019 | D80: 201811 | E80: 612 | F80: 3 | G80: 615
C81: 2019 | D81: 201812 | E81: 764 | F81: 0 | G81: 764
C82: 2019 | D82: 201901 | E82: 999 | F82: 0 | G82: 999
C83: 2019 | D83: 201902 | E83: 799 | F83: 0 | G83: 799
C84: 2019 | D84: 201903 | E84: 714 | F84: 0 | G84: 714
C85: 2019 | D85: 201904 | E85: 289 | F85: 11 | G85: 300
C86: 2019 | D86: 201905 | E86: 113 | F86: 59 | G86: 172
C87: 2019 | D87: 201906 | E87: 4 | F87: 247 | G87: 251
C88: 2018 | D88: 201707 | E88: 0 | F88: 372 | G88: 372
C89: 2018 | D89: 201708 | E89: 0 | F89: 291 | G89: 291
C90: 2018 | D90: 201709 | E90: 17 | F90: 190 | G90: 207
C91: 2018 | D91: 201710 | E91: 99 | F91: 80 | G91: 179
C92: 2018 | D92: 201711 | E92: 546 | F92: 0 | G92: 546
C93: 2018 | D93: 201712 | E93: 920 | F93: 0 | G93: 920
C94: 2018 | D94: 201801 | E94: 1026 | F94: 0 | G94: 1026
C95: 2018 | D95: 201802 | E95: 638 | F95: 2 | G95: 640
C96: 2018 | D96: 201803 | E96: 765 | F96: 0 | G96: 765
C97: 2018 | D97: 201804 | E97: 466 | F97: 6 | G97: 472
C98: 2018 | D98: 201805 | E98: 60 | F98: 128 | G98: 188
C99: 2018 | D99: 201806 | E99: 11 | F99: 220 | G99: 231
C100: 2017 | D100: 201607 | E100: 0 | F100: 432 | G100: 432
C101: 2017 | D101: 201608 | E101: 0 | F101: 446 | G101: 446
C102: 2017 | D102: 201609 | E102: 17 | F102: 228 | G102: 245
C103: 2017 | D103: 201610 | E103: 217 | F103: 29 | G103: 246
C104: 2017 | D104: 201611 | E104: 453 | F104: 0 | G104: 453
C105: 2017 | D105: 201612 | E105: 818 | F105: 0 | G105: 818
C106: 2017 | D106: 201701 | E106: 829 | F106: 0 | G106: 829
C107: 2017 | D107: 201702 | E107: 648 | F107: 0 | G107: 648
C108: 2017 | D108: 201703 | E108: 793 | F108: 0 | G108: 793
C109: 2017 | D109: 201704 | E109: 260 | F109: 34 | G109: 294
C110: 2017 | D110: 201705 | E110: 165 | F110: 55 | G110: 220
C111: 2017 | D111: 201706 | E111: 24 | F111: 242 | G111: 266
C112: 2016 | D112: 201507 | E112: 0 | F112: 437 | G112: 437
C113: 2016 | D113: 201508 | E113: 0 | F113: 441 | G113: 441
C114: 2016 | D114: 201509 | E114: 1 | F114: 293 | G114: 294
C115: 2016 | D115: 201510 | E115: 223 | F115: 15 | G115: 238
C116: 2016 | D116: 201511 | E116: 367 | F116: 5 | G116: 372
C117: 2016 | D117: 201512 | E117: 434 | F117: 3 | G117: 437
C118: 2016 | D118: 201601 | E118: 940 | F118: 0 | G118: 940
C119: 2016 | D119: 201602 | E119: 785 | F119: 0 | G119: 785
C120: 2016 | D120: 201603 | E120: 498 | F120: 6 | G120: 504
C121: 2016 | D121: 201604 | E121: 355 | F121: 13 | G121: 368
C122: 2016 | D122: 201605 | E122: 159 | F122: 100 | G122: 259
C123: 2016 | D123: 201606 | E123: 7 | F123: 232 | G123: 239
C124: 2015 | D124: 201407 | E124: 0 | F124: 351 | G124: 351
C125: 2015 | D125: 201408 | E125: 0 | F125: 301 | G125: 301
C126: 2015 | D126: 201409 | E126: 22 | F126: 170 | G126: 192
C127: 2015 | D127: 201410 | E127: 179 | F127: 20 | G127: 199
C128: 2015 | D128: 201411 | E128: 584 | F128: 0 | G128: 584
C129: 2015 | D129: 201412 | E129: 751 | F129: 0 | G129: 751
C130: 2015 | D130: 201501 | E130: 1080 | F130: 0 | G130: 1080
C131: 2015 | D131: 201502 | E131: 1143 | F131: 0 | G131: 1143
C132: 2015 | D132: 201503 | E132: 826 | F132: 0 | G132: 826
C133: 2015 | D133: 201504 | E133: 319 | F133: 5 | G133: 324
C134: 2015 | D134: 201505 | E134: 37 | F134: 154 | G134: 191
C135: 2015 | D135: 201506 | E135: 33 | F135: 228 | G135: 261
C136: 2014 | D136: 201307 | E136: 0 | F136: 464 | G136: 464
C137: 2014 | D137: 201308 | E137: 0 | F137: 305 | G137: 305
C138: 2014 | D138: 201309 | E138: 36 | F138: 132 | G138: 168
C139: 2014 | D139: 201310 | E139: 187 | F139: 46 | G139: 233
C140: 2014 | D140: 201311 | E140: 585 | F140: 0 | G140: 585
C141: 2014 | D141: 201312 | E141: 815 | F141: 1 | G141: 816
C142: 2014 | D142: 201401 | E142: 1121 | F142: 0 | G142: 1121
C143: 2014 | D143: 201402 | E143: 924 | F143: 0 | G143: 924
C144: 2014 | D144: 201403 | E144: 841 | F144: 0 | G144: 841
C145: 2014 | D145: 201404 | E145: 377 | F145: 4 | G145: 381
C146: 2014 | D146: 201405 | E146: 73 | F146: 50 | G146: 123
C147: 2014 | D147: 201406 | E147: 0 | F147: 220 | G147: 220
C148: 2013 | D148: 201207 | E148: 0 | F148: 484 | G148: 484
C149: 2013 | D149: 201208 | E149: 0 | F149: 430 | G149: 430
C150: 2013 | D150: 201209 | E150: 9 | F150: 184 | G150: 193
C151: 2013 | D151: 201210 | E151: 173 | F151: 31 | G151: 204
C152: 2013 | D152: 201211 | E152: 591 | F152: 0 | G152: 591
C153: 2013 | D153: 201212 | E153: 681 | F153: 0 | G153: 681
C154: 2013 | D154: 201301 | E154: 899 | F154: 0 | G154: 899
C155: 2013 | D155: 201302 | E155: 851 | F155: 0 | G155: 851
C156: 2013 | D156: 201303 | E156: 755 | F156: 0 | G156: 755
C157: 2013 | D157: 201304 | E157: 366 | F157: 0 | G157: 366
C158: 2013 | D158: 201305 | E158: 128 | F158: 87 | G158: 215
C159: 2013 | D159: 201306 | E159: 4 | F159: 278 | G159: 282
C160: 2012 | D160: 201107 | E160: 0 | F160: 486 | G160: 486
C161: 2012 | D161: 201108 | E161: 0 | F161: 346 | G161: 346
C162: 2012 | D162: 201109 | E162: 19 | F162: 195 | G162: 214
C163: 2012 | D163: 201110 | E163: 223 | F163: 24 | G163: 247
C164: 2012 | D164: 201111 | E164: 383 | F164: 0 | G164: 383
C165: 2012 | D165: 201112 | E165: 662 | F165: 0 | G165: 662
C166: 2012 | D166: 201201 | E166: 846 | F166: 0 | G166: 846
C167: 2012 | D167: 201202 | E167: 680 | F167: 0 | G167: 680
C168: 2012 | D168: 201203 | E168: 438 | F168: 0 | G168: 438
C169: 2012 | D169: 201204 | E169: 294 | F169: 18 | G169: 312
C170: 2012 | D170: 201205 | E170: 69 | F170: 102 | G170: 171
C171: 2012 | D171: 201206 | E171: 11 | F171: 254 | G171: 265
C172: 2011 | D172: 201007 | E172: 0 | F172: 557 | G172: 557
C173: 2011 | D173: 201008 | E173: 0 | F173: 428 | G173: 428
C174: 2011 | D174: 201009 | E174: 0 | F174: 232 | G174: 232
C175: 2011 | D175: 201010 | E175: 163 | F175: 21 | G175: 184
C176: 2011 | D176: 201011 | E176: 461 | F176: 0 | G176: 461
C177: 2011 | D177: 201012 | E177: 923 | F177: 0 | G177: 923
C178: 2011 | D178: 201101 | E178: 1021 | F178: 0 | G178: 1021
C179: 2011 | D179: 201102 | E179: 794 | F179: 0 | G179: 794
C180: 2011 | D180: 201103 | E180: 714 | F180: 0 | G180: 714
C181: 2011 | D181: 201104 | E181: 354 | F181: 1 | G181: 355
C182: 2011 | D182: 201105 | E182: 114 | F182: 72 | G182: 186
C183: 2011 | D183: 201106 | E183: 4 | F183: 239 | G183: 243
C184: 2010 | D184: 200907 | E184: 0 | F184: 237.5 | G184: 237.5
C185: 2010 | D185: 200908 | E185: 0 | F185: 331.5 | G185: 331.5
C186: 2010 | D186: 200909 | E186: 40 | F186: 79.5 | G186: 119.5
C187: 2010 | D187: 200910 | E187: 313.5 | F187: 2 | G187: 315.5
C188: 2010 | D188: 200911 | E188: 416 | F188: 0 | G188: 416
C189: 2010 | D189: 200912 | E189: 902 | F189: 0 | G189: 902
C190: 2010 | D190: 201001 | E190: 988 | F190: 0 | G190: 988
C191: 2010 | D191: 201002 | E191: 871 | F191: 0 | G191: 871
C192: 2010 | D192: 201003 | E192: 520 | F192: 0 | G192: 520
C193: 2010 | D193: 201004 | E193: 219 | F193: 13 | G193: 232
C194: 2010 | D194: 201005 | E194: 82 | F194: 124 | G194: 206
C195: 2010 | D195: 201006 | E195: 0 | F195: 337 | G195: 337
C196: 2009 | D196: 200807 | E196: 0 | F196: 415.5 | G196: 415.5
C197: 2009 | D197: 200808 | E197: 0 | F197: 273 | G197: 273
C198: 2009 | D198: 200809 | E198: 27 | F198: 142 | G198: 169
C199: 2009 | D199: 200810 | E199: 308 | F199: 2.5 | G199: 310.5
C200: 2009 | D200: 200811 | E200: 574.5 | F200: 0 | G200: 574.5
C201: 2009 | D201: 200812 | E201: 833.5 | F201: 0 | G201: 833.5
C202: 2009 | D202: 200901 | E202: 1149.5 | F202: 0 | G202: 1149.5
C203: 2009 | D203: 200902 | E203: 792 | F203: 0 | G203: 792
C204: 2009 | D204: 200903 | E204: 700 | F204: 0 | G204: 700
... 39 more rows

Sheet summary
A4: OP-1 and 2
A5: Scope 1
A7: Stationary Combusion MTCO2e | B7: 2015 | C7: 2019
A8: Diesel | B8: 1.13 | C8: 2.05
A9: Gas | B9: 23.25 | C9: 28.97
A10: TOTAL | B10: 24.38 | C10: 31.02
A13: Mobile Combustion MTCO2e | B13: 2015 | C13: 2019
A14: MTCO2e | B14: 28.73 | C14: 25.11
A20: Scope 2
A21: MTCO2e | B21: 2015 | C21: 2019
A22: Purchased Electricity | B22: 7935.04 | C22: 5490.65
A23: Purchased Steam | B23: 3456.38 | C23: 1823.72
A27: OP-5
A30: Energy Consumption | B30: 2015 | C30: 2019
A32: Electricity KWH | B32: 24879310 | C32: 18998800
A35: Stationary Fuels | B35: 2015 | C35: 2019
A36: Diesel MMBTU | B36: 15.2339 | C36: 15.2339
A37: Gas MMBTU | B37: ='Energy Data'!I48 -> 459 | C37: ='Energy Data'!M48 -> 571.8
A38: total | B38: =B37+B36 -> 474.2339 | C38: 587.0339
A42: Imported Steam | B42: 2015 | C42: 2019
A43: MMBTU | B43: ='Energy Data'!I49 -> 73646.3046 | C43: ='Energy Data'!M49 -> 40726.9793
A49: Gross Sq Footage | B49: 2015 | C49: 2019
B50: ='Sq Footage'!K4 -> 1463371 | C50: ='Sq Footage'!O4 -> 1461292

Sheet Dashboard (hidden)

Sheet Dashboard Data (hidden)
B2: =Year.Indicator -> CY
C3: =IF(Year.Indicator="FY","FY14","CY14") -> CY14 | D3: =IF(Year.Indicator="FY","FY15","CY15") -> CY15 | E3: =IF(Year.Indicator="FY","FY16","CY16") -> CY16 | F3: =IF(Year.Indicator="FY","FY17","CY17") -> CY17 | G3: =IF(Year.Indicator="FY","FY18","CY18") -> CY18 | H3: =IF(Year.Indicator="FY","FY19","CY19") -> CY19 | I3: =IF(Year.Indicator="FY","FY20","CY20") -> CY20
B4: CDD | C4: =IF(Year.Indicator="FY",SUM(FY.14.CDD),SUM(CY.14.CDD)) -> #NAME? | D4: =IF(Year.Indicator="FY",SUM(FY.15.CDD),SUM(CY.15.CDD)) -> #NAME? | E4: =IF(Year.Indicator="FY",SUM(FY.16.CDD),SUM(CY.16.CDD)) -> #NAME? | F4: =IF(Year.Indicator="FY",SUM(FY.17.CDD),SUM(CY.17.CDD)) -> #NAME? | G4: =IF(Year.Indicator="FY",SUM(FY.18.CDD),SUM(CY.18.CDD)) -> #NAME? | H4: =IF(Year.Indicator="FY",SUM(FY.19.CDD),SUM(CY.19.CDD)) -> #NAME? | I4: =IF(Year.Indicator="FY",SUM(FY.20.CDD),SUM(CY.20.CDD)) -> #NAME?
B5: year over year change | D5: =D4/C4-1 -> #NAME? | E5: #NAME? | F5: #NAME? | G5: #NAME? | H5: #NAME? | I5: #NAME?
B6: HDD | C6: =IF(Year.Indicator="FY",SUM(FY.14.HDD),SUM(CY.14.HDD)) -> #NAME? | D6: =IF(Year.Indicator="FY",SUM(FY.15.HDD),SUM(CY.15.HDD)) -> #NAME? | E6: =IF(Year.Indicator="FY",SUM(FY.16.HDD),SUM(CY.16.HDD)) -> #NAME? | F6: =IF(Year.Indicator="FY",SUM(FY.17.HDD),SUM(CY.17.HDD)) -> #NAME? | G6: =IF(Year.Indicator="FY",SUM(FY.18.HDD),SUM(CY.18.HDD)) -> #NAME? | H6: =IF(Year.Indicator="FY",SUM(FY.19.HDD),SUM(CY.19.HDD)) -> #NAME? | I6: =IF(Year.Indicator="FY",SUM(FY.20.HDD),SUM(CY.20.HDD)) -> #NAME? | J6: 6-yr Avg
B7: year over year change | D7: =D6/C6-1 -> #NAME? | E7: #NAME? | F7: #NAME? | G7: #NAME? | H7: #NAME? | I7: #NAME?
B8: TDD | C8: =IF(Year.Indicator="FY",SUM(FY.14.TDD),SUM(CY.14.TDD)) -> #NAME? | D8: =IF(Year.Indicator="FY",SUM(FY.15.TDD),SUM(CY.15.TDD)) -> #NAME? | E8: =IF(Year.Indicator="FY",SUM(FY.16.TDD),SUM(CY.16.TDD)) -> #NAME? | F8: =IF(Year.Indicator="FY",SUM(FY.17.TDD),SUM(CY.17.TDD)) -> #NAME? | G8: =IF(Year.Indicator="FY",SUM(FY.18.TDD),SUM(CY.18.TDD)) -> #NAME? | H8: =IF(Year.Indicator="FY",SUM(FY.19.TDD),SUM(CY.19.TDD)) -> #NAME? | I8: =IF(Year.Indicator="FY",SUM(FY.20.TDD),SUM(CY.20.TDD)) -> #NAME? | J8: =SUM(D8:I8)/6 -> #NAME?
B9: year over year change | D9: =D8/C8-1 -> #NAME? | E9: #NAME? | F9: #NAME? | G9: #NAME? | H9: #NAME? | I9: #NAME?
C11: =IF(Year.Indicator="FY","FY14","CY14") -> CY14 | D11: =IF(Year.Indicator="FY","FY15","CY15") -> CY15 | E11: =IF(Year.Indicator="FY","FY16","CY16") -> CY16 | F11: =IF(Year.Indicator="FY","FY17","CY17") -> CY17 | G11: =IF(Year.Indicator="FY","FY18","CY18") -> CY18 | H11: =IF(Year.Indicator="FY","FY19","CY19") -> CY19 | I11: =IF(Year.Indicator="FY","FY20","CY20") -> CY20
B12: Elec Use (kWh) | C12: =IF(Year.Indicator="FY",SUM(FY.14.Elec.kWh),SUM(CY.14.Elec.kWh)) -> 27220160 | D12: =IF(Year.Indicator="FY",SUM(FY.15.Elec.kWh),SUM(CY.15.Elec.kWh)) -> 24874720 | E12: =IF(Year.Indicator="FY",SUM(FY.16.Elec.kWh),SUM(CY.16.Elec.kWh)) -> 22916960 | F12: =IF(Year.Indicator="FY",SUM(FY.17.Elec.kWh),SUM(CY.17.Elec.kWh)) -> 22481440 | G12: =IF(Year.Indicator="FY",SUM(FY.18.Elec.kWh),SUM(CY.18.Elec.kWh)) -> 20851760 | H12: =IF(Year.Indicator="FY",SUM(FY.19.Elec.kWh),SUM(CY.19.Elec.kWh)) -> 18998800 | I12: =IF(Year.Indicator="FY",SUM(FY.20.Elec.kWh),SUM(CY.20.Elec.kWh)) -> 11300720
D13: =D12/C12-1 -> -0.08616554789 | E13: -0.07870480552 | F13: -0.01900426584 | G13: -0.07249001843 | H13: -0.08886348203 | I13: -0.4051876961
B14: kWh/CDD | C14: =C12/$C$4 -> #NAME? | D14: =D12/$D$4 -> #NAME? | E14: =E12/$E$4 -> #NAME? | F14: =F12/$F$4 -> #NAME? | G14: =G12/$G$4 -> #NAME? | H14: =H12/$H$4 -> #NAME? | I14: =I12/$I$4 -> #NAME?
B15: Gas Use (therms) | C15: =IF(Year.Indicator="FY", SUM(FY.14.Gas.Therms),SUM(CY.14.Gas.Therms)) -> 4172 | D15: =IF(Year.Indicator="FY", SUM(FY.15.Gas.Therms),SUM(CY.15.Gas.Therms)) -> 4590 | E15: =IF(Year.Indicator="FY", SUM(FY.16.Gas.Therms),SUM(CY.16.Gas.Therms)) -> 9396 | F15: =IF(Year.Indicator="FY", SUM(FY.17.Gas.Therms),SUM(CY.17.Gas.Therms)) -> 33091 | G15: =IF(Year.Indicator="FY", SUM(FY.18.Gas.Therms),SUM(CY.18.Gas.Therms)) -> 5533 | H15: =IF(Year.Indicator="FY", SUM(FY.19.Gas.Therms),SUM(CY.19.Gas.Therms)) -> 5718 | I15: =IF(Year.Indicator="FY", SUM(FY.20.Gas.Therms),SUM(CY.20.Gas.Therms)) -> 3967
D16: =D15/C15-1 -> 0.1001917546 | E16: 1.047058824 | F16: 2.521817795 | G16: -0.8327944154 | H16: 0.03343574914 | I16: -0.3062259531
B17: therms/HDD | C17: =C15/$C$6 -> #NAME? | D17: =D15/$D$6 -> #NAME? | E17: =E15/$E$6 -> #NAME? | F17: =F15/$F$6 -> #NAME? | G17: =G15/$G$6 -> #NAME? | H17: =H15/$H$6 -> #NAME? | I17: =I15/$I$6 -> #NAME?
B18: Steam Use (mlbs) | C18: =IF(Year.Indicator="FY",SUM(FY.14.Steam.mlbs),SUM(CY.14.Steam.mlbs)) -> 70769 | D18: =IF(Year.Indicator="FY",SUM(FY.15.Steam.mlbs),SUM(CY.15.Steam.mlbs)) -> 66594 | E18: =IF(Year.Indicator="FY",SUM(FY.16.Steam.mlbs),SUM(CY.16.Steam.mlbs)) -> 44947 | F18: =IF(Year.Indicator="FY",SUM(FY.17.Steam.mlbs),SUM(CY.17.Steam.mlbs)) -> 45322 | G18: =IF(Year.Indicator="FY",SUM(FY.18.Steam.mlbs),SUM(CY.18.Steam.mlbs)) -> 46346 | H18: =IF(Year.Indicator="FY",SUM(FY.19.Steam.mlbs),SUM(CY.19.Steam.mlbs)) -> 36827 | I18: =IF(Year.Indicator="FY",SUM(FY.20.Steam.mlbs),SUM(CY.20.Steam.mlbs)) -> 19891
D19: =D18/C18-1 -> -0.05899475759 | E19: -0.3250593147 | F19: 0.008343159721 | G19: 0.02259388377 | H19: -0.2053898934 | I19: -0.4598799794
B20: STM/DD | C20: =C18/$C$6 -> #NAME? | D20: =D18/$D$6 -> #NAME? | E20: =E18/$E$6 -> #NAME? | F20: =F18/$F$6 -> #NAME? | G20: =G18/$G$6 -> #NAME? | H20: =H18/$H$6 -> #NAME? | I20: =I18/$I$6 -> #NAME?
B21: Actual vs. Weather-Normalized Energy Use | C21: =IF(Year.Indicator="FY","FY14","CY14") -> CY14 | D21: =IF(Year.Indicator="FY","FY15","CY15") -> CY15 | E21: =IF(Year.Indicator="FY","FY16","CY16") -> CY16 | F21: =IF(Year.Indicator="FY","FY17","CY17") -> CY17 | G21: =IF(Year.Indicator="FY","FY18","CY18") -> CY18 | H21: =IF(Year.Indicator="FY","FY19","CY19") -> CY19 | I21: =IF(Year.Indicator="FY","FY20","CY20") -> CY20
B22: mmBtu/DD | C22: =C23/$C$8 -> #NAME? | D22: =D23/$D$8 -> #NAME? | E22: =E23/$E$8 -> #NAME? | F22: =F23/$F$8 -> #NAME? | G22: =G23/$G$8 -> #NAME? | H22: =H23/$H$8 -> #NAME? | I22: =I23/$I$8 -> #NAME?
B23: Actual Energy use (mmBtu) | C23: =IF(Year.Indicator="FY",SUM(FY.14.Total.mmBtu),SUM(CY.14.Total.mmBtu)) -> 171598.2771 | D23: =IF(Year.Indicator="FY",SUM(FY.15.Total.mmBtu),SUM(CY.15.Total.mmBtu)) -> 159017.9579 | E23: =IF(Year.Indicator="FY",SUM(FY.16.Total.mmBtu),SUM(CY.16.Total.mmBtu)) -> 128877.3057 | F23: =IF(Year.Indicator="FY",SUM(FY.17.Total.mmBtu),SUM(CY.17.Total.mmBtu)) -> 130175.0884 | G23: =IF(Year.Indicator="FY",SUM(FY.18.Total.mmBtu),SUM(CY.18.Total.mmBtu)) -> 122989.6322 | H23: =IF(Year.Indicator="FY",SUM(FY.19.Total.mmBtu),0) -> 0 | I23: =IF(Year.Indicator="FY",SUM(FY.20.Total.mmBtu),0) -> 0
B24: Weather Normal Energy use (mmBtu) (mmBtu/DD * AvgDegreeDays per year) | C24: =C22*$J$8 -> #NAME? | D24: #NAME? | E24: #NAME? | F24: #NAME? | G24: #NAME? | H24: #NAME? | I24: #NAME? | K24: =(I24-H24)/H24 -> #NAME?
B25: Weather Normalized EUI | C25: =C24*1000/'Energy Data'!J34 -> #NAME? | D25: =D24*1000/'Energy Data'!K34 -> #NAME? | E25: =E24*1000/'Energy Data'!L34 -> #NAME? | F25: =F24*1000/'Energy Data'!M34 -> #NAME? | G25: =G24*1000/'Energy Data'!N34 -> #NAME? | H25: =H24*1000/'Energy Data'!O34 -> #NAME? | I25: =I24*1000/'Energy Data'!P34 -> #NAME?
B29: GHG Chart Title | F29: =CONCATENATE((IF(COUNTIF(SRs,Generated_College),"GHG", "NYC Local Law 97"))," Tracker - Annual GHG Emissions") -> GHG Tracker - Annual GHG Emissions
B30: LL97 Chart Data
B31: Emissions Limit | C31: ='Reference Data'!T37*'Reference Data'!$M$2 -> 11965.9396
B32: Current Emissions | C32: ='Energy Data'!P92 -> 4271.032536
B34: Year x-axis labels | C34: 2006 | D34: 2007 | E34: 2008 | F34: 2009 | G34: 2010 | H34: 2011 | I34: 2012 | J34: 2013 | K34: 2014 | L34: 2015 | M34: 2016 | N34: 2017 | O34: 2018 | P34: 2019 | Q34: 2020 | R34: 2021 | S34: 2022 | T34: 2023 | U34: 2024 | V34: 2025
B35: Series for actual GHG emissions | C35: ='Energy Data'!B92 -> #REF! | D35: ='Energy Data'!C92 -> #REF! | E35: ='Energy Data'!D92 -> 6911.866257 | F35: ='Energy Data'!E92 -> 7090.245031 | G35: ='Energy Data'!F92 -> 7690.127385 | H35: ='Energy Data'!G92 -> 10480.65093 | I35: ='Energy Data'!H92 -> 13354.25934 | J35: ='Energy Data'!I92 -> 12692.10442 | K35: ='Energy Data'!J92 -> 12674.65598 | L35: ='Energy Data'!K92 -> 11415.79476 | M35: ='Energy Data'!L92 -> 9679.445102 | N35: ='Energy Data'!M92 -> 8731.054503 | O35: ='Energy Data'!N92 -> 8935.771162 | P35: ='Energy Data'!O92 -> 7345.392918 | Q35: ='Energy Data'!P92 -> 4271.032536
B36: Series for Target Data point (2025) | C36: =NA() -> #N/A | D36: #N/A | E36: #N/A | F36: #N/A | G36: #N/A | H36: #N/A | I36: #N/A | J36: #N/A | K36: #N/A | L36: #N/A | M36: #N/A | N36: #N/A | O36: #N/A | P36: #N/A | Q36: #N/A | R36: #N/A | S36: #N/A | T36: #N/A | U36: #N/A | V36: =IF(COUNTIF(CCs,Generated_College),$E$40,NA()) -> #N/A
B37: DO NOT DELETE CELL BELOW (EVEN IF EMPTY)!!
B38: =IF(COUNTIF(CCs,Generated_College),"LL97 mandate: reduce GHG emissions 40% by 2025","") -> 
B39: Baseline Data SRs/CCs FY06 GCC FY12 SPS FY13 | C39: Baseline (FY06) | D39: Current (FY20) | E39: Target (only CCs displayed) | F39: % of Goal Reached | G39: GHG % Reduction
B40: tCO2e | C40: ='Energy Data'!B92 -> #REF! | D40: ='Energy Data'!P92 -> 4271.032536 | E40: =C40-(C40*'Reference Data'!$P$4) -> #REF! | F40: =IF(C40="NA","NA",((C40-D40)/C40)/'Reference Data'!$P$4) -> #REF! | G40: =(D40-C40)/C40 -> #REF!
G41: =CONCATENATE("Emissions Change to-date ",TEXT(G40,"##%")) -> #REF!
G43: EUI % Reduction
G44: =('Energy Data'!P65-'Energy Data'!B65)/'Energy Data'!B65 -> #REF!
G45: =CONCATENATE("EUI Change to-date ",TEXT(G44,"##%")) -> #REF!

Sheet Q1.Dashboard (hidden)
P28: % Change '21 vs '20
P29: Weather Intensity | Q29: Weather Normal Energy Use
O30: Jul | P30: =Q1.Data!K4 -> 0.04781704782 | Q30: =Q1.Data!K12 -> -0.04190856886
O32: Aug | P32: =Q1.Data!K5 -> 0.1573033708 | Q32: =Q1.Data!K16 -> -0.4111178427
O34: Sep | P34: =Q1.Data!K6 -> 0.05076142132 | Q34: =Q1.Data!K20 -> -0.23414502

Sheet Q1.Data (hidden)
A1: FY Usage (mmBtu) | D1: =((B6+C6+D6)/(B12+C12+D12))-1 -> -0.1892074041 | F1: Weather Normalization | N1: Stacked Hack Energy
A2: Current Year | B2: 2020-07-01 | C2: 2020-08-01 | D2: 2020-09-01
A3: Electricity | B3: ='Energy Data'!FB9*'Reference Data'!$E$4 -> 4567.68616 | C3: ='Energy Data'!FC9*'Reference Data'!$E$4 -> 4445.91032 | D3: ='Energy Data'!FD9*'Reference Data'!$E$4 -> 4520.45024 | F3: TDD | G3: FY19 | H3: FY20 | I3: FY21 | J3: 3 Year AVG | K3: % Change '21 vs'20 | O3: Elec | P3: Gas | Q3: Steam | R3: Total
A4: Gas | B4: ='Energy Data'!FB10*'Reference Data'!$E$5 -> 34.5 | C4: ='Energy Data'!FC10*'Reference Data'!$E$5 -> 26.1 | D4: ='Energy Data'!FD10*'Reference Data'!$E$5 -> 54.4 | F4: Jul | G4: ='Reference Data'!$G$76 -> 399 | H4: ='Reference Data'!$G$64 -> 481 | I4: ='Reference Data'!$G$52 -> 504 | J4: =AVERAGE(G4:I4) -> 461.3333333 | K4: =(I4/H4)-1 -> 0.04781704782
A5: Steam | B5: ='Energy Data'!FB12*'Reference Data'!$E$6 -> 784.0831 | C5: ='Energy Data'!FC12*'Reference Data'!$E$6 -> 770.8123 | D5: ='Energy Data'!FD12*'Reference Data'!$E$6 -> 946.6504 | F5: Aug | G5: ='Reference Data'!$G$77 -> 413 | H5: ='Reference Data'!$G$65 -> 356 | I5: ='Reference Data'!$G$53 -> 412 | J5: 393.6666667 | K5: 0.1573033708 | M5: Jul
A6: Total | B6: =SUM(B3:B5) -> 5386.26926 | C6: 5242.82262 | D6: 5521.50064 | F6: Sep | G6: ='Reference Data'!$G$78 -> 226 | H6: ='Reference Data'!$G$66 -> 197 | I6: ='Reference Data'!$G$54 -> 207 | J6: 210 | K6: 0.05076142132 | N6: 2020 | O6: =B9 -> 4406.04648 | P6: =B10 -> 27 | Q6: =B11 -> 932.2737 | R6: =O6+P6+Q6 -> 5365.32018
N7: 2021 | O7: =B3 -> 4567.68616 | P7: =B4 -> 34.5 | Q7: =B5 -> 784.0831 | R7: 5386.26926
A8: Prior Year | B8: 2019-07-01 | C8: 2019-08-01 | D8: 2019-09-01 | F8: mmBtu/TDD | G8: Elec | H8: Gas | I8: Steam | J8: Total | K8: % change '21 vs '20
A9: Electricity | B9: ='Energy Data'!EP9*'Reference Data'!$E$4 -> 4406.04648 | C9: ='Energy Data'!EQ9*'Reference Data'!$E$4 -> 6776.8528 | D9: ='Energy Data'!ER9*'Reference Data'!$E$4 -> 5721.00712 | M9: Aug
A10: Gas | B10: ='Energy Data'!EP10*'Reference Data'!$E$5 -> 27 | C10: ='Energy Data'!EQ10*'Reference Data'!$E$5 -> 28 | D10: ='Energy Data'!ER10*'Reference Data'!$E$5 -> 54.3 | F10: Jul | N10: 2020 | O10: =C9 -> 6776.8528 | P10: =C10 -> 28 | Q10: =C11 -> 888.0377 | R10: =O10+P10+Q10 -> 7692.8905
A11: Steam | B11: ='Energy Data'!EP12*'Reference Data'!$E$6 -> 932.2737 | C11: ='Energy Data'!EQ12*'Reference Data'!$E$6 -> 888.0377 | D11: ='Energy Data'!ER12*'Reference Data'!$E$6 -> 1085.9938 | F11: FY20 | G11: =B9/$H$4 -> 9.160179792 | H11: =B10/$H$4 -> 0.05613305613 | I11: =B11/$H$4 -> 1.93819896 | J11: =SUM(G11:I11) -> 11.15451181 | N11: 2021 | O11: =C3 -> 4445.91032 | P11: =C4 -> 26.1 | Q11: =C5 -> 770.8123 | R11: 5242.82262
A12: Total | B12: =SUM(B9:B11) -> 5365.32018 | C12: 7692.8905 | D12: 6861.30092 | F12: FY21 | G12: =B3/$I$4 -> 9.062869365 | H12: =B4/$I$4 -> 0.06845238095 | I12: =B5/$I$4 -> 1.555720437 | J12: 10.68704218 | K12: =(J12/J11)-1 -> -0.04190856886
M13: Sep
A14: GHG Emissions (tCO2e) | F14: Aug | N14: 2020 | O14: =D9 -> 5721.00712 | P14: =D10 -> 54.3 | Q14: =D11 -> 1085.9938 | R14: =O14+P14+Q14 -> 6861.30092
A15: Current FY | B15: 2020-07-01 | C15: 2020-08-01 | D15: 2020-09-01 | F15: FY20 | G15: =C9/$H$5 -> 19.03610337 | H15: =C10/$H$5 -> 0.07865168539 | I15: =C11/$H$5 -> 2.494487921 | J15: =SUM(G15:I15) -> 21.60924298 | N15: 2021 | O15: =D3 -> 4520.45024 | P15: =D4 -> 54.4 | Q15: =D5 -> 946.6504 | R15: 5521.50064
A16: Electricity | B16: ='Energy Data'!FB9*'Reference Data'!$W$13 -> 386.77448 | C16: ='Energy Data'!FC9*'Reference Data'!$W$13 -> 376.46296 | D16: ='Energy Data'!FD9*'Reference Data'!$W$13 -> 382.77472 | F16: FY21 | G16: =C3/$I$5 -> 10.79104447 | H16: =C4/$I$5 -> 0.06334951456 | I16: =C5/$I$5 -> 1.870903641 | J16: 12.72529762 | K16: =(J16/J15)-1 -> -0.4111178427
A17: Gas | B17: ='Energy Data'!FB10*'Reference Data'!$E$5*'Reference Data'!$M$8*'Reference Data'!$I$5 -> 1.74777 | C17: ='Energy Data'!FC10*'Reference Data'!$E$5*'Reference Data'!$M$8*'Reference Data'!$I$5 -> 1.322226 | D17: ='Energy Data'!FD10*'Reference Data'!$E$5*'Reference Data'!$M$8*'Reference Data'!$I$5 -> 2.755904
A18: Steam | B18: ='Energy Data'!FB12*'Reference Data'!$M$10*'Reference Data'!$W$14 -> 35.11058231 | C18: ='Energy Data'!FC12*'Reference Data'!$M$10*'Reference Data'!$W$14 -> 34.51632704 | D18: ='Energy Data'!FD12*'Reference Data'!$M$10*'Reference Data'!$W$14 -> 42.39020939 | F18: Sep | M18: Stacked Hack GHG
F19: FY20 | G19: =D9/$H$6 -> 29.04064528 | H19: =D10/$H$6 -> 0.2756345178 | I19: =D11/$H$6 -> 5.512658883 | J19: =SUM(G19:I19) -> 34.82893868 | O19: Elec | P19: Gas | Q19: Steam | R19: Total
A20: Prior FY | B20: 2019-07-01 | C20: 2019-08-01 | D20: 2019-09-01 | F20: FY21 | G20: =D3/$I$6 -> 21.83792386 | H20: =D4/$I$6 -> 0.2628019324 | I20: =D5/$I$6 -> 4.573190338 | J20: 26.67391614 | K20: =(J20/J19)-1 -> -0.23414502
A21: Electricity | B21: ='Energy Data'!EP9*'Reference Data'!$V$13 -> 373.08744 | C21: ='Energy Data'!EQ9*'Reference Data'!$V$13 -> 573.8384 | D21: ='Energy Data'!ER9*'Reference Data'!$V$13 -> 484.43336 | M21: Jul
A22: Gas | B22: ='Energy Data'!EP10*'Reference Data'!$E$5*'Reference Data'!$M$8*'Reference Data'!$I$5 -> 1.36782 | C22: ='Energy Data'!EQ10*'Reference Data'!$E$5*'Reference Data'!$M$8*'Reference Data'!$I$5 -> 1.41848 | D22: ='Energy Data'!ER10*'Reference Data'!$E$5*'Reference Data'!$M$8*'Reference Data'!$I$5 -> 2.750838 | N22: 2020 | O22: =B21 -> 373.08744 | P22: =B22 -> 1.36782 | Q22: =B23 -> 41.74643284 | R22: =O22+P22+Q22 -> 416.2016928
A23: Steam | B23: ='Energy Data'!EP12*'Reference Data'!$M$10*'Reference Data'!$V$14 -> 41.74643284 | C23: ='Energy Data'!EQ12*'Reference Data'!$M$10*'Reference Data'!$V$14 -> 39.76558194 | D23: ='Energy Data'!ER12*'Reference Data'!$M$10*'Reference Data'!$V$14 -> 48.62988974 | N23: 2021 | O23: =B16 -> 386.77448 | P23: =B17 -> 1.74777 | Q23: =B18 -> 35.11058231 | R23: 423.6328323
H24: Jul | I24: Aug | J24: Sep
F25: weather-normal mmBtu = mmBtu/DD * 3-yr Avg DD | G25: 2020 | H25: =B12/H4*J4 -> 5145.948114 | M25: Aug
G26: 2021 | H26: =B6/I4*J4 -> 4930.288794 | N26: 2020 | O26: =C21 -> 573.8384 | P26: =C22 -> 1.41848 | Q26: =C23 -> 39.76558194 | R26: =O26+P26+Q26 -> 615.0224619
G27: % change | H27: =H26/H25-1 -> -0.04190856886 | N27: 2021 | O27: =C16 -> 376.46296 | P27: =C17 -> 1.322226 | Q27: =C18 -> 34.51632704 | R27: 412.301513
M29: Sep
N30: 2020 | O30: =D21 -> 484.43336 | P30: =D22 -> 2.750838 | Q30: =D23 -> 48.62988974 | R30: =O30+P30+Q30 -> 535.8140877
N31: 2021 | O31: =D16 -> 382.77472 | P31: =D17 -> 2.755904 | Q31: =D18 -> 42.39020939 | R31: 427.9208334

Sheet Q3.Dashboard (hidden)
P28: % Change '20 vs '19
P29: Weather Intensity | Q29: Weather Normal Energy Use
O30: Jan | P30: =Q3.Data!K4 -> -0.2192192192 | Q30: =Q3.Data!K12 -> 0.1652117862
O32: Feb | P32: =Q3.Data!K5 -> -0.1163954944 | Q32: =Q3.Data!K16 -> -0.01368647471
O34: Mar | P34: =Q3.Data!K6 -> -0.2787114846 | Q34: =Q3.Data!K20 -> 0.008261791032

Sheet Q3.Data (hidden)
A1: Usage (mmBtu) | D1: =((B6+C6+D6)/(B12+C12+D12))-1 -> -0.1586465586 | F1: Weather Normalization | N1: Stacked Hack Energy
A2: Current Year | B2: 2020-01-01 | C2: 2020-02-01 | D2: 2020-03-01
A3: Electricity | B3: ='Energy Data'!EV9*'Reference Data'!$E$4 -> 5017.11 | C3: ='Energy Data'!EW9*'Reference Data'!$E$4 -> 4913.3548 | D3: ='Energy Data'!EX9*'Reference Data'!$E$4 -> 4219.56016 | F3: TDD | G3: 2018 | H3: 2019 | I3: 2020 | J3: 3 Year AVG | K3: % Change '20 vs'19 | O3: Elec | P3: Gas | Q3: Steam | R3: Total
A4: Gas | B4: ='Energy Data'!EV10*'Reference Data'!$E$5 -> 25.1 | C4: ='Energy Data'!EW10*'Reference Data'!$E$5 -> 49.4 | D4: ='Energy Data'!EX10*'Reference Data'!$E$5 -> 60.2 | F4: Jan | G4: ='Reference Data'!$G$94 -> 1026 | H4: ='Reference Data'!$G$82 -> 999 | I4: ='Reference Data'!$G$70 -> 780 | J4: =AVERAGE(G4:I4) -> 935 | K4: =(I4/H4)-1 -> -0.2192192192
A5: Steam | B5: ='Energy Data'!EV12*'Reference Data'!$E$6 -> 6601.1171 | C5: ='Energy Data'!EW12*'Reference Data'!$E$6 -> 5343.7088 | D5: ='Energy Data'!EX12*'Reference Data'!$E$6 -> 3574.2688 | F5: Feb | G5: ='Reference Data'!$G$95 -> 640 | H5: ='Reference Data'!$G$83 -> 799 | I5: ='Reference Data'!$G$71 -> 706 | J5: 715 | K5: -0.1163954944 | M5: Jan
A6: Total | B6: =SUM(B3:B5) -> 11643.3271 | C6: 10306.4636 | D6: 7854.02896 | F6: Mar | G6: ='Reference Data'!$G$96 -> 765 | H6: ='Reference Data'!$G$84 -> 714 | I6: ='Reference Data'!$G$72 -> 515 | J6: 664.6666667 | K6: -0.2787114846 | N6: 2019 | O6: =B9 -> 5542.98504 | P6: =B10 -> 30.2 | Q6: =B11 -> 7224.8447 | R6: =O6+P6+Q6 -> 12798.02974
N7: 2020 | O7: =B3 -> 5017.11 | P7: =B4 -> 25.1 | Q7: =B5 -> 6601.1171 | R7: 11643.3271
A8: Prior Year | B8: 2019-01-01 | C8: 2019-02-01 | D8: 2019-03-01 | F8: mmBtu/TDD | G8: Elec | H8: Gas | I8: Steam | J8: Total | K8: % change '20 vs '19
A9: Electricity | B9: ='Energy Data'!EJ9*'Reference Data'!$E$4 -> 5542.98504 | C9: ='Energy Data'!EK9*'Reference Data'!$E$4 -> 5466.53384 | D9: ='Energy Data'!EL9*'Reference Data'!$E$4 -> 5159.0908 | M9: Feb
A10: Gas | B10: ='Energy Data'!EJ10*'Reference Data'!$E$5 -> 30.2 | C10: ='Energy Data'!EK10*'Reference Data'!$E$5 -> 54.7 | D10: ='Energy Data'!EL10*'Reference Data'!$E$5 -> 60.2 | F10: Jan | N10: 2019 | O10: =C9 -> 5466.53384 | P10: =C10 -> 54.7 | Q10: =C11 -> 6304.7359 | R10: =O10+P10+Q10 -> 11825.96974
A11: Steam | B11: ='Energy Data'!EJ12*'Reference Data'!$E$6 -> 7224.8447 | C11: ='Energy Data'!EK12*'Reference Data'!$E$6 -> 6304.7359 | D11: ='Energy Data'!EL12*'Reference Data'!$E$6 -> 5580.3714 | F11: 2019 | G11: =B9/$H$4 -> 5.548533574 | H11: =B10/$H$4 -> 0.03023023023 | I11: =B11/$H$4 -> 7.232076777 | J11: =SUM(G11:I11) -> 12.81084058 | N11: 2020 | O11: =C3 -> 4913.3548 | P11: =C4 -> 49.4 | Q11: =C5 -> 5343.7088 | R11: 10306.4636
A12: Total | B12: =SUM(B9:B11) -> 12798.02974 | C12: 11825.96974 | D12: 10799.6622 | F12: 2020 | G12: =B3/$I$4 -> 6.432192308 | H12: =B4/$I$4 -> 0.03217948718 | I12: =B5/$I$4 -> 8.462970641 | J12: 14.92734244 | K12: =(J12/J11)-1 -> 0.1652117862
M13: Mar
A14: GHG Emissions (MtCO2e) | F14: Feb | N14: 2019 | O14: =D9 -> 5159.0908 | P14: =D10 -> 60.2 | Q14: =D11 -> 5580.3714 | R14: =O14+P14+Q14 -> 10799.6622
A15: Current Year | B15: 2020-01-01 | C15: 2020-02-01 | D15: 2020-03-01 | F15: 2019 | G15: =C9/$H$5 -> 6.841719449 | H15: =C10/$H$5 -> 0.06846057572 | I15: =C11/$H$5 -> 7.890783354 | J15: =SUM(G15:I15) -> 14.80096338 | N15: 2020 | O15: =D3 -> 4219.56016 | P15: =D4 -> 60.2 | Q15: =D5 -> 3574.2688 | R15: 7854.02896
A16: Electricity | B16: ='Energy Data'!EV9*'Reference Data'!$I$4 -> #VALUE! | C16: ='Energy Data'!EW9*'Reference Data'!$I$4 -> #VALUE! | D16: ='Energy Data'!EX9*'Reference Data'!$I$4 -> #VALUE! | F16: 2020 | G16: =C3/$I$5 -> 6.959426062 | H16: =C4/$I$5 -> 0.06997167139 | I16: =C5/$I$5 -> 7.568992635 | J16: 14.59839037 | K16: =(J16/J15)-1 -> -0.01368647471
A17: Gas | B17: ='Energy Data'!EV10*'Reference Data'!$E$5*'Reference Data'!$M$8*'Reference Data'!$I$5 -> 1.271566 | C17: ='Energy Data'!EW10*'Reference Data'!$E$5*'Reference Data'!$M$8*'Reference Data'!$I$5 -> 2.502604 | D17: ='Energy Data'!EX10*'Reference Data'!$E$5*'Reference Data'!$M$8*'Reference Data'!$I$5 -> 3.049732
A18: Steam | B18: ='Energy Data'!EV12*'Reference Data'!$E$6*'Reference Data'!$M$8*'Reference Data'!$I$6 -> #VALUE! | C18: ='Energy Data'!EW12*'Reference Data'!$E$6*'Reference Data'!$M$8*'Reference Data'!$I$6 -> #VALUE! | D18: ='Energy Data'!EX12*'Reference Data'!$E$6*'Reference Data'!$M$8*'Reference Data'!$I$6 -> #VALUE! | F18: Mar | M18: Stacked Hack GHG
F19: 2019 | G19: =D9/$H$6 -> 7.225617367 | H19: =D10/$H$6 -> 0.08431372549 | I19: =D11/$H$6 -> 7.815646218 | J19: =SUM(G19:I19) -> 15.12557731 | O19: Elec | P19: Gas | Q19: Steam | R19: Total
A20: Prior Year | B20: 2019-01-01 | C20: 2019-02-01 | D20: 2019-03-01 | F20: 2020 | G20: =D3/$I$6 -> 8.193320699 | H20: =D4/$I$6 -> 0.1168932039 | I20: =D5/$I$6 -> 6.940327767 | J20: 15.25054167 | K20: =(J20/J19)-1 -> 0.008261791032
A21: Electricity | B21: ='Energy Data'!EJ9*'Reference Data'!$I$4 -> #VALUE! | C21: ='Energy Data'!EK9*'Reference Data'!$I$4 -> #VALUE! | D21: ='Energy Data'!EL9*'Reference Data'!$I$4 -> #VALUE! | M21: Jan
A22: Gas | B22: ='Energy Data'!EJ10*'Reference Data'!$E$5*'Reference Data'!$M$8*'Reference Data'!$I$5 -> 1.529932 | C22: ='Energy Data'!EK10*'Reference Data'!$E$5*'Reference Data'!$M$8*'Reference Data'!$I$5 -> 2.771102 | D22: ='Energy Data'!EL10*'Reference Data'!$E$5*'Reference Data'!$M$8*'Reference Data'!$I$5 -> 3.049732 | N22: 2019 | O22: =B21 -> #VALUE! | P22: =B22 -> 1.529932 | Q22: =B23 -> #VALUE! | R22: =O22+P22+Q22 -> #VALUE!
A23: Steam | B23: ='Energy Data'!EJ12*'Reference Data'!$E$6*'Reference Data'!$M$8*'Reference Data'!$I$6 -> #VALUE! | C23: ='Energy Data'!EK12*'Reference Data'!$E$6*'Reference Data'!$M$8*'Reference Data'!$I$6 -> #VALUE! | D23: ='Energy Data'!EL12*'Reference Data'!$E$6*'Reference Data'!$M$8*'Reference Data'!$I$6 -> #VALUE! | N23: 2020 | O23: =B16 -> #VALUE! | P23: =B17 -> 1.271566 | Q23: =B18 -> #VALUE! | R23: #VALUE!
H24: Jan | I24: Feb | J24: Mar
F25: weather-normal mmBtu = mmBtu/DD * 3-yr Avg DD | G25: 2019 | H25: =B12/H4*J4 -> 11978.13594 | M25: Feb
G26: 2020 | H26: =B6/I4*J4 -> 13957.06518 | N26: 2019 | O26: =C21 -> #VALUE! | P26: =C22 -> 2.771102 | Q26: =C23 -> #VALUE! | R26: =O26+P26+Q26 -> #VALUE!
G27: % change | H27: =H26/H25-1 -> 0.1652117862 | N27: 2020 | O27: =C16 -> #VALUE! | P27: =C17 -> 2.502604 | Q27: =C18 -> #VALUE! | R27: #VALUE!
M29: Mar
N30: 2019 | O30: =D21 -> #VALUE! | P30: =D22 -> 3.049732 | Q30: =D23 -> #VALUE! | R30: =O30+P30+Q30 -> #VALUE!
N31: 2020 | O31: =D16 -> #VALUE! | P31: =D17 -> 3.049732 | Q31: =D18 -> #VALUE! | R31: #VALUE!

Sheet Q4.Dashboard (hidden)
P28: % Change '20 vs '19
P29: Weather Intensity | Q29: Weather Normal Energy Use
O30: Apr | P30: =Q4.Data!K4 -> 0.4333333333 | Q30: =Q4.Data!K12 -> -0.5697527778
O32: May | P32: =Q4.Data!K5 -> 0.2848837209 | Q32: =Q4.Data!K16 -> -0.4768883859
O34: Jun | P34: =Q4.Data!K6 -> 0.2111553785 | Q34: =Q4.Data!K20 -> -0.3311007227

Sheet Q4.Data (hidden)
A1: Usage (mmBtu) | D1: =((B6+C6+D6)/(B12+C12+D12))-1 -> -0.3099731627 | F1: Weather Normalization | N1: Stacked Hack Energy
A2: Current Year | B2: 2020-04-01 | C2: 2020-05-01 | D2: 2020-06-01
A3: Electricity | B3: ='Energy Data'!EY9*'Reference Data'!$E$4 -> 3608.2236 | C3: ='Energy Data'!EZ9*'Reference Data'!$E$4 -> 3299.96144 | D3: ='Energy Data'!FA9*'Reference Data'!$E$4 -> 3977.10064 | F3: TDD | G3: 2018 | H3: 2019 | I3: 2020 | J3: 3 Year AVG | K3: % Change '20 vs'19 | O3: Elec | P3: Gas | Q3: Steam | R3: Total
A4: Gas | B4: ='Energy Data'!EY10*'Reference Data'!$E$5 -> 57.3 | C4: ='Energy Data'!EZ10*'Reference Data'!$E$5 -> 58.5 | D4: ='Energy Data'!FA10*'Reference Data'!$E$5 -> 31.2 | F4: Apr | G4: ='Reference Data'!$G$97 -> 472 | H4: ='Reference Data'!$G$85 -> 300 | I4: ='Reference Data'!$G$73 -> 430 | J4: =AVERAGE(G4:I4) -> 400.6666667 | K4: =(I4/H4)-1 -> 0.4333333333
A5: Steam | B5: ='Energy Data'!EY12*'Reference Data'!$E$6 -> 1484.1178 | C5: ='Energy Data'!EZ12*'Reference Data'!$E$6 -> 1498.4945 | D5: ='Energy Data'!FA12*'Reference Data'!$E$6 -> 994.2041 | F5: May | G5: ='Reference Data'!$G$98 -> 188 | H5: ='Reference Data'!$G$86 -> 172 | I5: ='Reference Data'!$G$74 -> 221 | J5: 193.6666667 | K5: 0.2848837209 | M5: Apr
A6: Total | B6: =SUM(B3:B5) -> 5149.6414 | C6: 4856.95594 | D6: 5002.50474 | F6: Jun | G6: ='Reference Data'!$G$99 -> 231 | H6: ='Reference Data'!$G$87 -> 251 | I6: ='Reference Data'!$G$75 -> 304 | J6: 262 | K6: 0.2111553785 | N6: 2019 | O6: =B9 -> 5028.85072 | P6: =B10 -> 53.7 | Q6: =B11 -> 3267.9345 | R6: =O6+P6+Q6 -> 8350.48522
N7: 2020 | O7: =B3 -> 3608.2236 | P7: =B4 -> 57.3 | Q7: =B5 -> 1484.1178 | R7: 5149.6414
A8: Prior Year | B8: 2019-04-01 | C8: 2019-05-01 | D8: 2019-06-01 | F8: mmBtu/TDD | G8: Elec | H8: Gas | I8: Steam | J8: Total | K8: % change '20 vs '19
A9: Electricity | B9: ='Energy Data'!EM9*'Reference Data'!$E$4 -> 5028.85072 | C9: ='Energy Data'!EN9*'Reference Data'!$E$4 -> 5546.8076 | D9: ='Energy Data'!EO9*'Reference Data'!$E$4 -> 5285.50832 | M9: May
A10: Gas | B10: ='Energy Data'!EM10*'Reference Data'!$E$5 -> 53.7 | C10: ='Energy Data'!EN10*'Reference Data'!$E$5 -> 62.5 | D10: ='Energy Data'!EO10*'Reference Data'!$E$5 -> 36.7 | F10: Apr | N10: 2019 | O10: =C9 -> 5546.8076 | P10: =C10 -> 62.5 | Q10: =C11 -> 1616.8258 | R10: =O10+P10+Q10 -> 7226.1334
A11: Steam | B11: ='Energy Data'!EM12*'Reference Data'!$E$6 -> 3267.9345 | C11: ='Energy Data'!EN12*'Reference Data'!$E$6 -> 1616.8258 | D11: ='Energy Data'!EO12*'Reference Data'!$E$6 -> 852.6489 | F11: 2019 | G11: =B9/$H$4 -> 16.76283573 | H11: =B10/$H$4 -> 0.179 | I11: =B11/$H$4 -> 10.893115 | J11: =SUM(G11:I11) -> 27.83495073 | N11: 2020 | O11: =C3 -> 3299.96144 | P11: =C4 -> 58.5 | Q11: =C5 -> 1498.4945 | R11: 4856.95594
A12: Total | B12: =SUM(B9:B11) -> 8350.48522 | C12: 7226.1334 | D12: 6174.85722 | F12: 2020 | G12: =B3/$I$4 -> 8.391217674 | H12: =B4/$I$4 -> 0.133255814 | I12: =B5/$I$4 -> 3.451436744 | J12: 11.97591023 | K12: =(J12/J11)-1 -> -0.5697527778
M13: Jun
A14: GHG Emissions (MtCO2e) | F14: May | N14: 2019 | O14: =D9 -> 5285.50832 | P14: =D10 -> 36.7 | Q14: =D11 -> 852.6489 | R14: =O14+P14+Q14 -> 6174.85722
A15: Current Year | B15: 2020-04-01 | C15: 2020-05-01 | D15: 2020-06-01 | F15: 2019 | G15: =C9/$H$5 -> 32.2488814 | H15: =C10/$H$5 -> 0.363372093 | I15: =C11/$H$5 -> 9.40015 | J15: =SUM(G15:I15) -> 42.01240349 | N15: 2020 | O15: =D3 -> 3977.10064 | P15: =D4 -> 31.2 | Q15: =D5 -> 994.2041 | R15: 5002.50474
A16: Electricity | B16: ='Energy Data'!EY9*'Reference Data'!$I$4 -> #VALUE! | C16: ='Energy Data'!EZ9*'Reference Data'!$I$4 -> #VALUE! | D16: ='Energy Data'!FA9*'Reference Data'!$I$4 -> #VALUE! | F16: 2020 | G16: =C3/$I$5 -> 14.93195222 | H16: =C4/$I$5 -> 0.2647058824 | I16: =C5/$I$5 -> 6.7805181 | J16: 21.9771762 | K16: =(J16/J15)-1 -> -0.4768883859
A17: Gas | B17: ='Energy Data'!EY10*'Reference Data'!$E$5*'Reference Data'!$M$8*'Reference Data'!$I$5 -> 2.902818 | C17: ='Energy Data'!EZ10*'Reference Data'!$E$5*'Reference Data'!$M$8*'Reference Data'!$I$5 -> 2.96361 | D17: ='Energy Data'!FA10*'Reference Data'!$E$5*'Reference Data'!$M$8*'Reference Data'!$I$5 -> 1.580592
A18: Steam | B18: ='Energy Data'!EY12*'Reference Data'!$E$6*'Reference Data'!$M$8*'Reference Data'!$I$6 -> #VALUE! | C18: ='Energy Data'!EZ12*'Reference Data'!$E$6*'Reference Data'!$M$8*'Reference Data'!$I$6 -> #VALUE! | D18: ='Energy Data'!FA12*'Reference Data'!$E$6*'Reference Data'!$M$8*'Reference Data'!$I$6 -> #VALUE! | F18: Jun | M18: Stacked Hack GHG
F19: 2019 | G19: =D9/$H$6 -> 21.05780207 | H19: =D10/$H$6 -> 0.1462151394 | I19: =D11/$H$6 -> 3.39700757 | J19: =SUM(G19:I19) -> 24.60102478 | O19: Elec | P19: Gas | Q19: Steam | R19: Total
A20: Prior Year | B20: 2019-04-01 | C20: 2019-05-01 | D20: 2019-06-01 | F20: 2020 | G20: =D3/$I$6 -> 13.08256789 | H20: =D4/$I$6 -> 0.1026315789 | I20: =D5/$I$6 -> 3.270408224 | J20: 16.4556077 | K20: =(J20/J19)-1 -> -0.3311007227
A21: Electricity | B21: ='Energy Data'!EM9*'Reference Data'!$I$4 -> #VALUE! | C21: ='Energy Data'!EN9*'Reference Data'!$I$4 -> #VALUE! | D21: ='Energy Data'!EO9*'Reference Data'!$I$4 -> #VALUE! | M21: Apr
A22: Gas | B22: ='Energy Data'!EM10*'Reference Data'!$E$5*'Reference Data'!$M$8*'Reference Data'!$I$5 -> 2.720442 | C22: ='Energy Data'!EN10*'Reference Data'!$E$5*'Reference Data'!$M$8*'Reference Data'!$I$5 -> 3.16625 | D22: ='Energy Data'!EO10*'Reference Data'!$E$5*'Reference Data'!$M$8*'Reference Data'!$I$5 -> 1.859222 | N22: 2019 | O22: =B21 -> #VALUE! | P22: =B22 -> 2.720442 | Q22: =B23 -> #VALUE! | R22: =O22+P22+Q22 -> #VALUE!
A23: Steam | B23: ='Energy Data'!EM12*'Reference Data'!$E$6*'Reference Data'!$M$8*'Reference Data'!$I$6 -> #VALUE! | C23: ='Energy Data'!EN12*'Reference Data'!$E$6*'Reference Data'!$M$8*'Reference Data'!$I$6 -> #VALUE! | D23: ='Energy Data'!EO12*'Reference Data'!$E$6*'Reference Data'!$M$8*'Reference Data'!$I$6 -> #VALUE! | N23: 2020 | O23: =B16 -> #VALUE! | P23: =B17 -> 2.902818 | Q23: =B18 -> #VALUE! | R23: #VALUE!
H24: APR | I24: MAY | J24: JUN
F25: weather-normal mmBtu = mmBtu/DD * 3-yr Avg DD | G25: 2019 | H25: =B12/H4*J4 -> 11152.53693 | M25: May
G26: 2020 | H26: =B6/I4*J4 -> 4798.348033 | N26: 2019 | O26: =C21 -> #VALUE! | P26: =C22 -> 3.16625 | Q26: =C23 -> #VALUE! | R26: =O26+P26+Q26 -> #VALUE!
G27: % change | H27: =H26/H25-1 -> -0.5697527778 | N27: 2020 | O27: =C16 -> #VALUE! | P27: =C17 -> 2.96361 | Q27: =C18 -> #VALUE! | R27: #VALUE!
M29: Jun
N30: 2019 | O30: =D21 -> #VALUE! | P30: =D22 -> 1.859222 | Q30: =D23 -> #VALUE! | R30: =O30+P30+Q30 -> #VALUE!
N31: 2020 | O31: =D16 -> #VALUE! | P31: =D17 -> 1.580592 | Q31: =D18 -> #VALUE! | R31: #VALUE!

Sheet Use & Weather Trends (hidden)
F1: Energy Use & Weather Trends
I20: Weather Trends
I21: √ | J21: The college used less electricity as temperatures rose in FY20, an indication of efficient operations and/or COVID-19 curtailments.
I26: √ | J26: The college used less gas and steam in FY20, as the need for heating slacked off, indicating normal operations and/or COVID-19 curtailments.
I30: HDD | J30: Heating Degree Days (a measure of cold weather)
I31: CDD | J31: Cooling Degree Days (a measure of hot weather)

Sheet Energy Usage & Expenses (hidden)
E1: College Energy Use and Expenses by Resource

Sheet Demand (hidden)
G1: College Electric Demand (kW)

Sheet EUI (hidden)

Sheet GHG Emissions (hidden)

Sheet Transition to CUNY (hidden)

Sheet mmBtu.Check (hidden)
A2: FY | B2: EC3 mmBtus | C2: Calculated mmBtus (sans fuel oil) | D2: % Difference
A3: 2008 | B3: =SUM('Energy Data'!B15:M15) -> 82833.9357 | C3: =SUM(FY.08.Total.mmBtu) -> 84342.2751 | D3: =(C3-B3)/B3 -> 0.01820919635
A4: 2009 | B4: =SUM('Energy Data'!N15:Y15) -> 89133.0908 | C4: =SUM(FY.09.Total.mmBtu) -> 91208.55 | D4: 0.02328494593
A5: 2010 | B5: =SUM('Energy Data'!Z15:AK15) -> 90849.0592 | C5: =SUM(FY.10.Total.mmBtu) -> 96087.69638 | D5: 0.05766308673
A6: 2011 | B6: =SUM('Energy Data'!AL15:AW15) -> 120096.1369 | C6: =SUM(FY.11.Total.mmBtu) -> 139289.7266 | D6: 0.1598185435
A7: 2012 | B7: =SUM('Energy Data'!AX15:BI15) -> 152819.2319 | C7: =SUM(FY.12.Total.mmBtu) -> 176751.0457 | D7: 0.1566021075
A8: 2013 | B8: =SUM('Energy Data'!BJ15:BU15) -> 192249.4263 | C8: =SUM(FY.13.Total.mmBtu) -> 182931.7885 | D8: -0.04846640107
A9: 2014 | B9: =SUM('Energy Data'!BV15:CG15) -> 180289.6052 | C9: =SUM(FY.14.Total.mmBtu) -> 171598.2771 | D9: -0.04820759417
A10: 2015 | B10: =SUM('Energy Data'!CH15:CS15) -> 168581.0619 | C10: =SUM(FY.15.Total.mmBtu) -> 159017.9579 | D10: -0.05672703643
A11: 2016 | B11: =SUM('Energy Data'!CT15:DE15) -> 138828.7146 | C11: =SUM(FY.16.Total.mmBtu) -> 128877.3057 | D11: -0.07168120045
A12: 2017 | B12: =SUM('Energy Data'!DF15:DQ15) -> 129675.3612 | C12: =SUM(FY.17.Total.mmBtu) -> 130175.0884 | D12: 0.003853679029
A13: 2018 | B13: =SUM('Energy Data'!DR15:EC15) -> 133921.3977 | C13: =SUM(FY.18.Total.mmBtu) -> 122989.6322 | D13: -0.08162822154
A14: 2019 | B14: =SUM('Energy Data'!ED15:EO15) -> 109263.4565 | C14: =SUM(FY.19.Total.mmBtu) -> 106169.3817 | D14: -0.02831756288
A15: 2020 | B15: =SUM('Energy Data'!EP15:FA15) -> 94140.2926 | C15: =SUM(FY.20.Total.mmBtu) -> 60963.51426 | D15: -0.3524184748

Sheet Notes (hidden)
A1: Notes
A3: Caution: never Move or Copy the "Reference Data" sheet from Master to College Template that will break named ranges that are defined in the College Template. Always "rubberband" the content in the Master Ref Data sheet and copy it to College Template that way.
A5: To create a college-specific workbook, see "Notes" in the Master ("CUNY Energy Reports")
